Workbook

Sheet EventConfig
A1: ID | B1: EventLinksId | C1: EventTriggerType | D1: EventTag | E1: EventType | F1: Score | G1: EventQuality | H1: PrizeType | I1: PrizeIDs | J1: PrizeNums | K1: RefreshProbability | L1: RefreshCount | M1: placeID | N1: SmallPlacesId | P1: XiantuID | Q1: =SUMIF(C:C,2,K:K) -> 0 | R1: EventConditionId | S1: EventValue | T1: EventCount | U1: EventName | V1: Description
A2: int | B2: int[] | C2: int | D2: int | E2: int | F2: int | G2: int | H2: int[] | I2: int[] | J2: int[] | K2: int | L2: int | M2: int | N2: int | P2: int | R2: int | S2: int[] | T2: int | U2: int | V2: int
W3: 语言表最大值 | X3: =MAX(U:V) -> 4281 | Z3: 1 | AA3: 2 | AB3: 3 | AC3: 4 | AD3: 5 | AE3: 6 | AF3: 7 | AG3: 8 | AH3: 9 | AI3: 10 | AJ3: 11 | AK3: 12 | AL3: 13 | AM3: 14 | AN3: 15 | AO3: 16 | AP3: 17 | AQ3: 18 | AR3: 19 | AS3: 20
A4: ID | B4: 事件包含的ID | C4: 事件类型： 1.通用事件 2.挂机事件 4.主线任务 5.仙山探险 6.支线事件 88.特定任务触发的事件 99.无标记 | D4: tag 1主线2支线 3通用 4地图通用 5道友6任务 7资源 | E4: 1.正常触发 2.直接结算 | F4: 增加进度值 | G4: 事件品质 | H4: 产出tag 在辅助表查询 | I4: 事件结局奖励 | J4: 事件结局奖励数量 | K4: 刷新的概率 （100=100%） | L4: 最大刷新数量 | M4: 属于哪张地图 | N4: 属于哪张小地图 | P4: 仙途日志ID | Q4: 触发条件 | R4: 触发条件类型 只能配处于什么状态和数值，不能配变化的数值 | S4: 触发效果值 | T4: 触发判定数量or次数 | U4: 任务标题 | V4: 任务详情界面的总描述 | W4: 标题 | X4: 整体描述 | Y4: 总步数 | Z4: 步骤1 | AA4: 步骤2 | AB4: 步骤3 | AC4: 步骤4 | AD4: 步骤5 | AE4: 步骤6 | AF4: 步骤7 | AG4: 步骤8 | AH4: 步骤9 | AI4: 步骤10 | AJ4: 步骤11 | AK4: 步骤12 | AL4: 步骤13 | AM4: 步骤14 | AN4: 步骤15 | AO4: 步骤16 | AP4: 步骤17 | AQ4: 步骤18 | AR4: 步骤19 | AS4: 步骤20 | AT4: 道具1 | AU4: 数量1 | AV4: 道具2 | AW4: 数量2
A5: 1 | B5: =IF(A5="","",_xlfn.TEXTJOIN(";",1,Z5:AS5,102)) -> 1001;1002;1003;1004;1005;100;102 | C5: 99 | D5: 7 | E5: 1 | F5: 0 | G5: 1 | H5: 5 | I5: =_xlfn.TEXTJOIN(";",1,AT5,AV5) -> 1003;999001 | J5: =_xlfn.TEXTJOIN(";",1,AU5,AW5) -> -1000;1 | K5: 100 | Q5: =IF(R5="","",VLOOKUP(R5,条件类型查询!A:B,2,FALSE)) ->  | U5: 4001 | V5: 4076 | W5: 受伤的狼 | X5: 你发现一只奄奄一息的狼，决定上前一探究竟。 | Y5: =COUNTIF(EventLinkConfig!O:O,EventConfig!A5) -> 5 | Z5: 1001 | AA5: 1002 | AB5: 1003 | AC5: 1004 | AD5: 1005 | AS5: 100 | AT5: 1003 | AU5: -1000 | AV5: 999001 | AW5: 1
A6: 2 | B6: =IF(A6="","",_xlfn.TEXTJOIN(";",1,Z6:AS6,102)) -> 1010;1011;1012;1013;1014;1015;1016;100;102 | C6: 1 | D6: 7 | E6: 1 | F6: 0 | G6: 1 | H6: 6 | I6: =_xlfn.TEXTJOIN(";",1,AT6,AV6) -> 1003;999002 | J6: =_xlfn.TEXTJOIN(";",1,AU6,AW6) -> -1000;1 | K6: 100 | Q6: =IF(R6="","",VLOOKUP(R6,条件类型查询!A:B,2,FALSE)) ->  | U6: 4002 | V6: 4077 | W6: 鹬蚌相争 | X6: 附近的小树林闹的不可开交，你决定去看看怎么回事。 | Y6: =COUNTIF(EventLinkConfig!O:O,EventConfig!A6) -> 6 | Z6: 1010 | AA6: 1011 | AB6: 1012 | AC6: 1013 | AD6: 1014 | AE6: 1015 | AF6: 1016 | AS6: 100 | AT6: 1003 | AU6: -1000 | AV6: 999002 | AW6: 1
A7: 4 | B7: 1030;100;102 | C7: 1 | D7: 7 | E7: 2 | F7: 0 | G7: 1 | H7: 1 | I7: 1003;1001 | J7: -1000;-5000 | K7: 100 | Q7: =IF(R7="","",VLOOKUP(R7,条件类型查询!A:B,2,FALSE)) ->  | U7: 4003 | V7: 4078 | W7: 溅血背包 | X7: 不远处有一个小红点，走近一看你发现是一个带血的背包。 | Y7: =COUNTIF(EventLinkConfig!O:O,EventConfig!A7) -> 1 | Z7: 1030 | AS7: 100 | AT7: 1003 | AU7: -1000 | AV7: 1001 | AW7: -5000
A8: 5 | B8: 1040;100;102 | C8: 1 | D8: 7 | E8: 2 | F8: 0 | G8: 1 | H8: 2 | I8: 1003;1005 | J8: -1000;-5000 | K8: 100 | Q8: =IF(R8="","",VLOOKUP(R8,条件类型查询!A:B,2,FALSE)) ->  | U8: 4004 | V8: 4079 | W8: 废弃矿山 | X8: 底下一座矿山甚是磅礴雄伟，走，去看一看。 | Y8: =COUNTIF(EventLinkConfig!O:O,EventConfig!A8) -> 1 | Z8: 1040 | AS8: 100 | AT8: 1003 | AU8: -1000 | AV8: 1005 | AW8: -5000
A9: 6 | B9: 1050;100;102 | C9: 1 | D9: 7 | E9: 2 | F9: 0 | G9: 1 | H9: 3 | I9: 1003;1006 | J9: -1000;-5000 | K9: 100 | Q9: =IF(R9="","",VLOOKUP(R9,条件类型查询!A:B,2,FALSE)) ->  | U9: 4005 | V9: 4080 | W9: 吵架声 | X9: 你被一男一女的吵架声吸引。 | Y9: =COUNTIF(EventLinkConfig!O:O,EventConfig!A9) -> 1 | Z9: 1050 | AS9: 100 | AT9: 1003 | AU9: -1000 | AV9: 1006 | AW9: -5000
A10: 7 | B10: 1060;100;102 | C10: 1 | D10: 7 | E10: 2 | F10: 0 | G10: 1 | H10: 4 | I10: 1003;999001 | J10: -1000;1 | K10: 100 | Q10: =IF(R10="","",VLOOKUP(R10,条件类型查询!A:B,2,FALSE)) ->  | U10: 4006 | V10: 4081 | W10: 一座道观 | X10: 远处一座道观仙气缭绕，似有仙人在此。 | Y10: =COUNTIF(EventLinkConfig!O:O,EventConfig!A10) -> 1 | Z10: 1060 | AS10: 100 | AT10: 1003 | AU10: -1000 | AV10: 999001 | AW10: 1
A11: 1011 | B11: =IF(A11="","",_xlfn.TEXTJOIN(";",1,Z11:AS11,102)) -> 101101;100;102 | C11: 1 | D11: 7 | E11: 1 | F11: 0 | G11: 1 | H11: 7 | I11: 1003;999002 | J11: -1000;1 | K11: 100 | U11: 4007 | V11: 4082 | W11: 药田 | X11: 神识探索至一处山洞之中，似乎别有洞天 | Y11: =COUNTIF(EventLinkConfig!O:O,EventConfig!A11) -> 1 | Z11: =IF($Y11>=Z$3,$A11*100+Z$3,"") -> 101101 | AS11: 100 | AT11: 1003 | AU11: -1000 | AV11: 999002 | AW11: 1
A12: 1012 | B12: 101201;100;102 | C12: 1 | D12: 7 | E12: 1 | F12: 0 | G12: 3 | H12: 7 | I12: 1003;1001 | J12: -1000;-5000 | K12: 100 | U12: 4008 | V12: 4083 | W12: 矿井 | X12: 神识探索至一处矿井之中，此处灵气氤氲 | Y12: =COUNTIF(EventLinkConfig!O:O,EventConfig!A12) -> 1 | Z12: 101201 | AS12: 100 | AT12: 1003 | AU12: -1000 | AV12: 1001 | AW12: -5000
A13: 1013 | B13: 101301;100;102 | C13: 1 | D13: 7 | E13: 1 | F13: 0 | G13: 3 | H13: 7 | I13: 1003;1005 | J13: -1000;-5000 | K13: 100 | U13: 4009 | V13: 4084 | W13: 寺庙 | X13: 神识经过一处荒废寺庙之外，寺庙之中似乎有不同寻常之物 | Y13: =COUNTIF(EventLinkConfig!O:O,EventConfig!A13) -> 1 | Z13: 101301 | AS13: 100 | AT13: 1003 | AU13: -1000 | AV13: 1005 | AW13: -5000
A14: 1014 | B14: 101401;100;102 | C14: 1 | D14: 7 | E14: 1 | F14: 0 | G14: 3 | H14: 7 | I14: 1003;1006 | J14: -1000;-5000 | K14: 100 | U14: 4010 | V14: 4085 | W14: 洞府遗址 | X14: 神识至一处灵气充盈之地，似乎是处洞府 | Y14: =COUNTIF(EventLinkConfig!O:O,EventConfig!A14) -> 1 | Z14: 101401 | AS14: 100 | AT14: 1003 | AU14: -1000 | AV14: 1006 | AW14: -5000
A15: 1015 | B15: 101501;101502;100;102 | C15: 1 | D15: 7 | E15: 1 | F15: 0 | G15: 1 | H15: 8 | I15: 1003;999001 | J15: -1000;1 | K15: 100 | U15: 4011 | V15: 4086 | W15: 拦路山贼 | X15: 一个不知好歹的山贼拦住了你的去路 | Y15: =COUNTIF(EventLinkConfig!O:O,EventConfig!A15) -> 2 | Z15: 101501 | AA15: 101502 | AS15: 100 | AT15: 1003 | AU15: -1000 | AV15: 999001 | AW15: 1
A16: 1016 | B16: 101601;101602;100;102 | C16: 1 | D16: 7 | E16: 1 | F16: 0 | G16: 1 | H16: 8 | I16: 1003;999002 | J16: -1000;1 | K16: 100 | U16: 4012 | V16: 4087 | W16: 丢袈裟的和尚 | X16: 一位和尚叫住了你，似乎有什么急事 | Y16: =COUNTIF(EventLinkConfig!O:O,EventConfig!A16) -> 2 | Z16: 101601 | AA16: 101602 | AS16: 100 | AT16: 1003 | AU16: -1000 | AV16: 999002 | AW16: 1
A17: 1017 | B17: 101701;100;102 | C17: 1 | D17: 7 | E17: 1 | F17: 0 | G17: 1 | H17: 8 | I17: 1003;1001 | J17: -1000;-5000 | K17: 100 | R17: 10 | S17: 30009 | U17: 4013 | V17: 4088 | W17: 丢袈裟的和尚 | X17: 将袈裟还给和尚 | Y17: =COUNTIF(EventLinkConfig!O:O,EventConfig!A17) -> 1 | Z17: 101701 | AS17: 100 | AT17: 1003 | AU17: -1000 | AV17: 1001 | AW17: -5000
A18: 1018 | B18: 101801;101802;101803;101804;100;102 | C18: 1 | D18: 7 | E18: 1 | F18: 0 | G18: 1 | H18: 8 | I18: 1003;1005 | J18: -1000;-5000 | K18: 100 | U18: 4014 | V18: 4089 | W18: 云游修士 | X18: 一名云游修士前来问道 | Y18: =COUNTIF(EventLinkConfig!O:O,EventConfig!A18) -> 4 | Z18: 101801 | AA18: 101802 | AB18: 101803 | AC18: 101804 | AS18: 100 | AT18: 1003 | AU18: -1000 | AV18: 1005 | AW18: -5000
A19: 1019 | B19: 101901;101902;101903;100;102 | C19: 1 | D19: 7 | E19: 1 | F19: 0 | G19: 1 | H19: 9 | I19: 1003;1006 | J19: -1000;-5000 | K19: 100 | U19: 4015 | V19: 4090 | W19: 镇压妖王 | X19: 逍遥宗长老前来求教 | Y19: =COUNTIF(EventLinkConfig!O:O,EventConfig!A19) -> 3 | Z19: 101901 | AA19: 101902 | AB19: 101903 | AS19: 100 | AT19: 1003 | AU19: -1000 | AV19: 1006 | AW19: -5000
A20: 1020 | B20: 102001;102002;100;102 | C20: 1 | D20: 7 | E20: 1 | F20: 0 | G20: 1 | H20: 9 | I20: 1003;999001 | J20: -1000;1 | K20: 100 | U20: 4016 | V20: 4091 | W20: 清剿妖兽 | X20: 妖兽入侵了村子，消灭掉它们 | Y20: =COUNTIF(EventLinkConfig!O:O,EventConfig!A20) -> 2 | Z20: 102001 | AA20: 102002 | AS20: 100 | AT20: 1003 | AU20: -1000 | AV20: 999001 | AW20: 1
A21: 1021 | B21: 102101;102102;102103;100;102 | C21: 1 | D21: 7 | E21: 1 | F21: 0 | G21: 1 | H21: 9 | I21: 1003;999002 | J21: -1000;1 | K21: 100 | U21: 4017 | V21: 4092 | W21: 失窃的琉璃盏 | X21: 琉璃盏被妖兽盗窃，前去寻回 | Y21: =COUNTIF(EventLinkConfig!O:O,EventConfig!A21) -> 3 | Z21: =IF($Y21>=Z$3,$A21*100+Z$3,"") -> 102101 | AA21: 102102 | AB21: 102103 | AS21: 100 | AT21: 1003 | AU21: -1000 | AV21: 999002 | AW21: 1
A22: 1022 | B22: 102201;102202;102203;102204;102205;102206;102207;100;102 | C22: 1 | D22: 7 | E22: 1 | F22: 0 | G22: 1 | H22: 10 | I22: 1003;1001 | J22: -1000;-5000 | K22: 100 | U22: 4018 | V22: 4093 | W22: 论道何长 | X22: 明镜道长前来论道 | Y22: =COUNTIF(EventLinkConfig!O:O,EventConfig!A22) -> 7 | Z22: 102201 | AA22: 102202 | AB22: 102203 | AC22: 102204 | AD22: 102205 | AE22: 102206 | AF22: 102207 | AS22: 100 | AT22: 1003 | AU22: -1000 | AV22: 1001 | AW22: -5000
A23: 1023 | B23: 102301;102302;102303;100;102 | C23: 1 | D23: 7 | E23: 1 | F23: 0 | G23: 1 | H23: 10 | I23: 1003;1005 | J23: -1000;-5000 | K23: 100 | U23: 4019 | V23: 4094 | W23: 炼丹药童 | X23: 炼丹药童前来询问丹药 | Y23: =COUNTIF(EventLinkConfig!O:O,EventConfig!A23) -> 3 | Z23: 102301 | AA23: 102302 | AB23: 102303 | AS23: 100 | AT23: 1003 | AU23: -1000 | AV23: 1005 | AW23: -5000
A24: 1024 | B24: 102401;102402;102403;100;102 | C24: 1 | D24: 7 | E24: 1 | F24: 0 | G24: 1 | H24: 11 | I24: 1003;1006 | J24: -1000;-5000 | K24: 100 | U24: 4020 | V24: 4095 | W24: 风无咎前来切磋 | X24: 风无咎前来与你武艺论道 | Y24: =COUNTIF(EventLinkConfig!O:O,EventConfig!A24) -> 3 | Z24: 102401 | AA24: 102402 | AB24: 102403 | AS24: 100 | AT24: 1003 | AU24: -1000 | AV24: 1006 | AW24: -5000
A25: 1025 | B25: 102501;102502;102503;100;102 | C25: 1 | D25: 7 | E25: 1 | F25: 0 | G25: 1 | H25: 1 | I25: 1003;1002 | J25: -1000;100 | K25: 100 | U25: 4021 | V25: 4096 | W25: 魔族来犯 | X25: 与魔族交涉 | Y25: =COUNTIF(EventLinkConfig!O:O,EventConfig!A25) -> 3 | Z25: 102501 | AA25: 102502 | AB25: 102503 | AS25: 100 | AT25: 1003 | AU25: -1000 | AV25: 1002 | AW25: 100
A26: 1026 | B26: 102601;102602;100;102 | C26: 1 | D26: 7 | E26: 1 | F26: 0 | G26: 1 | H26: 2 | I26: 1003;1004 | J26: -1000;10 | K26: 100 | U26: 4022 | V26: 4097 | W26: 妖族入侵 | X26: 击败妖族 | Y26: =COUNTIF(EventLinkConfig!O:O,EventConfig!A26) -> 2 | Z26: 102601 | AA26: 102602 | AS26: 100 | AT26: 1003 | AU26: -1000 | AV26: 1004 | AW26: 10
A27: 1027 | B27: 102701;102702;100;102 | C27: 1 | D27: 7 | E27: 1 | F27: 0 | G27: 1 | H27: 3 | I27: 1003;1501 | J27: -1000;1 | K27: 100 | U27: 4023 | V27: 4098 | W27: 北海危机 | X27: 击败拦路妖兽 | Y27: =COUNTIF(EventLinkConfig!O:O,EventConfig!A27) -> 2 | Z27: 102701 | AA27: 102702 | AS27: 100 | AT27: 1003 | AU27: -1000 | AV27: 1501 | AW27: 1
A28: 1028 | B28: 102801;102802;102803;102804;102805;100;102 | C28: 1 | D28: 7 | E28: 1 | F28: 0 | G28: 1 | H28: 4 | I28: 1003;1601 | J28: -1000;1 | K28: 100 | U28: 4024 | V28: 4099 | W28: 保护北海 | X28: 击败入侵妖兽 | Y28: =COUNTIF(EventLinkConfig!O:O,EventConfig!A28) -> 5 | Z28: 102801 | AA28: 102802 | AB28: 102803 | AC28: 102804 | AD28: 102805 | AS28: 100 | AT28: 1003 | AU28: -1000 | AV28: 1601 | AW28: 1
A29: 1029 | B29: 102901;102902;102903;102904;102905;102906;102907;102908;100;102 | C29: 1 | D29: 7 | E29: 1 | F29: 0 | G29: 1 | H29: 7 | I29: 1003;21012 | J29: -1000;1 | K29: 100 | U29: 4025 | V29: 4100 | W29: 境明论道 | X29: 境明道长邀请你与其论道 | Y29: =COUNTIF(EventLinkConfig!O:O,EventConfig!A29) -> 8 | Z29: 102901 | AA29: 102902 | AB29: 102903 | AC29: 102904 | AD29: 102905 | AE29: 102906 | AF29: 102907 | AG29: 102908 | AS29: 100 | AT29: 1003 | AU29: -1000 | AV29: 21012 | AW29: 1
A30: 1030 | B30: 103001;103002;103003;103004;103005;103006;103007;100;102 | C30: 1 | D30: 7 | E30: 1 | F30: 0 | G30: 1 | H30: 8 | I30: 1003;21013 | J30: -1000;1 | K30: 100 | U30: 4026 | V30: 4101 | W30: 听经习道 | X30: 前去寺庙之中听经 | Y30: =COUNTIF(EventLinkConfig!O:O,EventConfig!A30) -> 7 | Z30: 103001 | AA30: 103002 | AB30: 103003 | AC30: 103004 | AD30: 103005 | AE30: 103006 | AF30: 103007 | AS30: 100 | AT30: 1003 | AU30: -1000 | AV30: 21013 | AW30: 1
A31: 1031 | B31: 103101;103102;103103;103104;103105;100;102 | C31: 1 | D31: 7 | E31: 1 | F31: 0 | G31: 1 | H31: 9 | I31: 1003;1002 | J31: -1000;50 | K31: 100 | U31: 4027 | V31: 4102 | W31: 境明论道二 | X31: 境明道长邀请你与其论道 | Y31: =COUNTIF(EventLinkConfig!O:O,EventConfig!A31) -> 5 | Z31: 103101 | AA31: 103102 | AB31: 103103 | AC31: 103104 | AD31: 103105 | AS31: 100 | AT31: 1003 | AU31: -1000 | AV31: 1002 | AW31: 50
C33: 2 | D33: 3 | E33: 1 | F33: 0 | G33: 1 | I33: =_xlfn.TEXTJOIN(";",1,AT33,AV33) -> 1003 | J33: =_xlfn.TEXTJOIN(";",1,AU33,AW33) -> -5 | W33: 挂机1 | X33: 修为 | Y33: =COUNTIF(EventLinkConfig!O:O,EventConfig!A33) -> 0 | Z33: =IF($Y33>=Z$3,$A33*100+Z$3,"") ->  | AS33: 100 | AT33: 1003 | AU33: -5
C34: 2 | D34: 3 | E34: 1 | F34: 0 | G34: 1 | I34: =_xlfn.TEXTJOIN(";",1,AT34,AV34) -> 1005 | J34: =_xlfn.TEXTJOIN(";",1,AU34,AW34) -> -5 | W34: 挂机2 | X34: 灵气 | Y34: =COUNTIF(EventLinkConfig!O:O,EventConfig!A34) -> 0 | AS34: 100 | AT34: 1005 | AU34: -5
C35: 2 | D35: 3 | E35: 1 | F35: 0 | G35: 1 | I35: 1006 | J35: -5 | W35: 挂机3 | X35: 玄晶 | Y35: =COUNTIF(EventLinkConfig!O:O,EventConfig!A35) -> 0 | AS35: 100 | AT35: 1006 | AU35: -5
C36: 2 | D36: 3 | E36: 1 | F36: 0 | G36: 1 | I36: 1001 | J36: -5 | W36: 挂机4 | X36: 灵石 | Y36: =COUNTIF(EventLinkConfig!O:O,EventConfig!A36) -> 0 | AS36: 100 | AT36: 1001 | AU36: -5
C37: 2 | D37: 3 | E37: 1 | F37: 0 | G37: 1 | I37: 1001 | J37: -5 | W37: 挂机5 | X37: 神识丹 | Y37: =COUNTIF(EventLinkConfig!O:O,EventConfig!A37) -> 0 | AS37: 100 | AT37: 1001 | AU37: -5
B38: =IF(A38="","",_xlfn.TEXTJOIN(";",1,Z38:AS38,102)) ->  | C38: 2 | D38: 3 | E38: 1 | F38: 0 | G38: 1 | I38: 1001 | J38: -5 | W38: 挂机6 | X38: 妖丹 | Y38: =COUNTIF(EventLinkConfig!O:O,EventConfig!A38) -> 0 | AS38: 100 | AT38: 1001 | AU38: -5
A40: 10000 | B40: =IF(Y40>0,_xlfn.TEXTJOIN(";",1,ROW(INDIRECT(CONCATENATE("",A40*100+1,":",A40*100+Y40,""))),102),"") -> 1000001;1000002;1000003;1000004;1000005;1000006;1000007;1000008;1000009;1000010;1000011;1000012;1000013;1000014;1000015;1000016;1000017;1000018;1000019;1000020;1000021;102 | C40: 99 | D40: 1 | E40: 1 | F40: 10 | G40: 1 | M40: 1 | P40: 1 | U40: 4259 | W40: 渡劫之殇 | Y40: =COUNTIF(EventLinkConfig!O:O,EventConfig!A40) -> 21 | Z40: =IF($Y40>=Z$3,$A40*100+Z$3,"") -> 1000001 | AA40: 1000002 | AB40: 1000003 | AC40: 1000004 | AD40: 1000005 | AE40: 1000006 | AF40: 1000007 | AG40: 1000008 | AH40: 1000009 | AI40: 1000010 | AJ40: 1000011 | AK40: 1000012 | AL40: 1000013 | AM40: 1000014 | AN40: 1000015 | AO40: 1000016
A41: 10001 | B41: =IF(Y41>0,_xlfn.TEXTJOIN(";",1,ROW(INDIRECT(CONCATENATE("",A41*100+1,":",A41*100+Y41,""))),102),"") -> 1000101;1000102;1000103;1000104;102 | C41: 4 | D41: 1 | E41: 1 | F41: 10 | G41: 1 | I41: =_xlfn.TEXTJOIN(";",1,AT41,AV41) -> 12004;1702 | J41: =_xlfn.TEXTJOIN(";",1,AU41,AW41) -> 1;1 | M41: 1 | P41: 1 | U41: 4028 | V41: 4103 | W41: 鲲鹏何在 | X41: 神识未灭 | Y41: =COUNTIF(EventLinkConfig!O:O,EventConfig!A41) -> 4 | Z41: 1000101 | AA41: 1000102 | AB41: 1000103 | AC41: 1000104 | AT41: 12004 | AU41: 1 | AV41: 1702 | AW41: =[1]升级!$AM3 -> 1
A42: 10002 | B42: =IF(Y42>0,_xlfn.TEXTJOIN(";",1,ROW(INDIRECT(CONCATENATE("",A42*100+1,":",A42*100+Y42,""))),102),"") -> 1000201;1000202;1000203;102 | C42: 4 | D42: 1 | E42: 1 | F42: 10 | G42: 1 | I42: =_xlfn.TEXTJOIN(";",1,AT42,AV42) -> 12507;1702 | J42: =_xlfn.TEXTJOIN(";",1,AU42,AW42) -> 1;1 | M42: 1 | N42: 2 | P42: 1 | U42: 4029 | V42: 4104 | W42: 北海迷径1 | X42: 御剑而行 | Y42: =COUNTIF(EventLinkConfig!O:O,EventConfig!A42) -> 3 | Z42: 1000201 | AA42: 1000202 | AB42: 1000203 | AT42: 12507 | AU42: 1 | AV42: 1702 | AW42: =[1]升级!$AM4 -> 1
A43: 10003 | B43: =IF(Y43>0,_xlfn.TEXTJOIN(";",1,ROW(INDIRECT(CONCATENATE("",A43*100+1,":",A43*100+Y43,""))),102),"") -> 1000301;1000302;1000303;1000304;1000305;1000306;1000307;1000308;1000309;102 | C43: 4 | D43: 1 | E43: 1 | F43: 10 | G43: 1 | I43: 12005;1702 | J43: 1;1 | M43: 1 | N43: 2 | P43: 1 | U43: 4030 | V43: 4105 | W43: 北海迷径2 | X43: 雀笑大鹏 | Y43: =COUNTIF(EventLinkConfig!O:O,EventConfig!A43) -> 9 | Z43: 1000301 | AA43: 1000302 | AB43: 1000303 | AC43: 1000304 | AD43: 1000305 | AE43: 1000306 | AF43: 1000307 | AG43: 1000308 | AH43: 1000309 | AT43: 12005 | AU43: 1 | AV43: 1702 | AW43: =[1]升级!$AM5 -> 1
A44: 10004 | B44: =IF(Y44>0,_xlfn.TEXTJOIN(";",1,ROW(INDIRECT(CONCATENATE("",A44*100+1,":",A44*100+Y44,""))),102),"") -> 1000401;1000402;1000403;1000404;102 | C44: 4 | D44: 1 | E44: 1 | F44: 10 | G44: 1 | I44: 10001;1702 | J44: 1;1 | M44: 1 | N44: 2 | P44: 1 | U44: 4031 | V44: 4106 | W44: 古径阵法 | X44: 击败结界兽 | Y44: =COUNTIF(EventLinkConfig!O:O,EventConfig!A44) -> 4 | Z44: 1000401 | AA44: 1000402 | AB44: 1000403 | AC44: 1000404 | AT44: 10001 | AU44: 1 | AV44: 1702 | AW44: =[1]升级!$AM6 -> 1
A45: 10005 | B45: =IF(Y45>0,_xlfn.TEXTJOIN(";",1,ROW(INDIRECT(CONCATENATE("",A45*100+1,":",A45*100+Y45,""))),102),"") -> 1000501;1000502;1000503;1000504;1000505;1000506;1000507;1000508;1000509;1000510;1000511;1000512;1000513;1000514;102 | C45: 4 | D45: 1 | E45: 1 | F45: 10 | G45: 1 | I45: 12501;1702 | J45: 1;1 | M45: 1 | N45: 2 | P45: 1 | Q45: 11 | U45: 4032 | V45: 4107 | W45: 浮空之岛1 | X45: 初见疯道人 | Y45: =COUNTIF(EventLinkConfig!O:O,EventConfig!A45) -> 14 | Z45: 1000501 | AA45: 1000502 | AB45: 1000503 | AC45: 1000504 | AD45: 1000505 | AE45: 1000506 | AF45: 1000507 | AG45: 1000508 | AH45: 1000509 | AI45: 1000510 | AJ45: 1000511 | AK45: 1000512 | AL45: 1000513 | AM45: 1000514 | AT45: 12501 | AU45: 1 | AV45: 1702 | AW45: =[1]升级!$AM7 -> 1
A46: 10006 | B46: =IF(Y46>0,_xlfn.TEXTJOIN(";",1,ROW(INDIRECT(CONCATENATE("",A46*100+1,":",A46*100+Y46,""))),102),"") -> 1000601;1000602;1000603;1000604;1000605;1000606;102 | C46: 4 | D46: 1 | E46: 1 | F46: 10 | G46: 1 | I46: 12009;1702 | J46: 1;2 | M46: 1 | N46: 3 | P46: 1 | U46: 4033 | V46: 4108 | W46: 浮空之岛2 | X46: 筑基中期 | Y46: =COUNTIF(EventLinkConfig!O:O,EventConfig!A46) -> 6 | Z46: 1000601 | AA46: 1000602 | AB46: 1000603 | AC46: 1000604 | AD46: 1000605 | AE46: 1000606 | AT46: 12009 | AU46: 1 | AV46: 1702 | AW46: =[1]升级!$AM8 -> 2
A47: 10007 | B47: =IF(Y47>0,_xlfn.TEXTJOIN(";",1,ROW(INDIRECT(CONCATENATE("",A47*100+1,":",A47*100+Y47,""))),102),"") -> 1000701;1000702;1000703;1000704;1000705;102 | C47: 4 | D47: 1 | E47: 1 | F47: 10 | G47: 1 | I47: 12506;1702 | J47: 1;2 | M47: 1 | N47: 3 | P47: 1 | U47: 4034 | V47: 4109 | W47: 风中洞府1 | X47: 击败痴道人 | Y47: =COUNTIF(EventLinkConfig!O:O,EventConfig!A47) -> 5 | Z47: 1000701 | AA47: 1000702 | AB47: 1000703 | AC47: 1000704 | AD47: 1000705 | AT47: 12506 | AU47: 1 | AV47: 1702 | AW47: =[1]升级!$AM9 -> 2
A48: 10008 | B48: =IF(Y48>0,_xlfn.TEXTJOIN(";",1,ROW(INDIRECT(CONCATENATE("",A48*100+1,":",A48*100+Y48,""))),102),"") -> 1000801;1000802;1000803;1000804;1000805;1000806;1000807;1000808;1000809;1000810;1000811;1000812;1000813;1000814;102 | C48: 4 | D48: 1 | E48: 1 | F48: 10 | G48: 1 | I48: 10003;1702 | J48: 1;2 | M48: 1 | N48: 3 | P48: 1 | U48: 4035 | V48: 4110 | W48: 风中洞府2 | X48: 疯痴相聚 | Y48: =COUNTIF(EventLinkConfig!O:O,EventConfig!A48) -> 14 | Z48: 1000801 | AA48: 1000802 | AB48: 1000803 | AC48: 1000804 | AD48: 1000805 | AE48: 1000806 | AF48: 1000807 | AG48: 1000808 | AH48: 1000809 | AI48: 1000810 | AJ48: 1000811 | AK48: 1000812 | AL48: 1000813 | AM48: 1000814 | AT48: 10003 | AU48: 1 | AV48: 1702 | AW48: =[1]升级!$AM10 -> 2
A49: 10009 | B49: =IF(Y49>0,_xlfn.TEXTJOIN(";",1,ROW(INDIRECT(CONCATENATE("",A49*100+1,":",A49*100+Y49,""))),102),"") -> 1000901;1000902;1000903;102 | C49: 4 | D49: 1 | E49: 1 | F49: 10 | G49: 1 | I49: 12010;1702 | J49: 1;2 | M49: 1 | N49: 3 | P49: 1 | Q49: 21 | U49: 4036 | V49: 4111 | W49: 风灵之力 | X49: 筑基后期 | Y49: =COUNTIF(EventLinkConfig!O:O,EventConfig!A49) -> 3 | Z49: 1000901 | AA49: 1000902 | AB49: 1000903 | AT49: 12010 | AU49: 1 | AV49: 1702 | AW49: =[1]升级!$AM11 -> 2
A50: 10010 | B50: =IF(Y50>0,_xlfn.TEXTJOIN(";",1,ROW(INDIRECT(CONCATENATE("",A50*100+1,":",A50*100+Y50,""))),102),"") -> 1001001;1001002;1001003;1001004;1001005;1001006;102 | C50: 4 | D50: 1 | E50: 1 | F50: 10 | G50: 1 | I50: 12502;1702 | J50: 1;2 | M50: 1 | N50: 4 | P50: 1 | U50: 4037 | V50: 4112 | W50: 北海深处1 | X50: 妖兽横行 | Y50: =COUNTIF(EventLinkConfig!O:O,EventConfig!A50) -> 6 | Z50: =IF($Y50>=Z$3,$A50*100+Z$3,"") -> 1001001 | AA50: 1001002 | AB50: 1001003 | AC50: 1001004 | AD50: 1001005 | AE50: 1001006 | AT50: 12502 | AU50: 1 | AV50: 1702 | AW50: =[1]升级!$AM12 -> 2
A51: 10011 | B51: =IF(Y51>0,_xlfn.TEXTJOIN(";",1,ROW(INDIRECT(CONCATENATE("",A51*100+1,":",A51*100+Y51,""))),102),"") -> 1001101;1001102;1001103;1001104;1001105;1001106;1001107;1001108;1001109;1001110;1001111;1001112;102 | C51: 4 | D51: 1 | E51: 1 | F51: 10 | G51: 1 | I51: 12014;1702 | J51: 1;2 | M51: 1 | N51: 4 | P51: 1 | Q51: 31 | U51: 4038 | V51: 4113 | W51: 北海深处2 | X51: 遇见鲲鹏 | Y51: =COUNTIF(EventLinkConfig!O:O,EventConfig!A51) -> 12 | Z51: 1001101 | AA51: 1001102 | AB51: 1001103 | AC51: 1001104 | AD51: 1001105 | AE51: 1001106 | AF51: 1001107 | AG51: 1001108 | AH51: 1001109 | AI51: 1001110 | AJ51: 1001111 | AK51: 1001112 | AT51: 12014 | AU51: 1 | AV51: 1702 | AW51: =[1]升级!$AM13 -> 2
A52: 10012 | B52: =IF(Y52>0,_xlfn.TEXTJOIN(";",1,ROW(INDIRECT(CONCATENATE("",A52*100+1,":",A52*100+Y52,""))),102),"") -> 1001201;1001202;1001203;102 | C52: 4 | D52: 1 | E52: 1 | F52: 10 | G52: 1 | I52: 12508;1702 | J52: 1;2 | M52: 2 | P52: 1 | U52: 4039 | V52: 4114 | W52: 尧都寻踪 | Y52: =COUNTIF(EventLinkConfig!O:O,EventConfig!A52) -> 3 | Z52: 1001201 | AA52: 1001202 | AB52: 1001203 | AT52: 12508 | AU52: 1 | AV52: 1702 | AW52: =[1]升级!$AM14 -> 2
A53: 10013 | B53: =IF(Y53>0,_xlfn.TEXTJOIN(";",1,ROW(INDIRECT(CONCATENATE("",A53*100+1,":",A53*100+Y53,""))),102),"") -> 1001301;1001302;1001303;1001304;1001305;1001306;1001307;1001308;1001309;1001310;1001311;1001312;102 | C53: 4 | D53: 1 | E53: 1 | F53: 10 | G53: 1 | I53: 10006;1702 | J53: 1;2 | M53: 2 | P53: 1 | U53: 4040 | V53: 4115 | W53: 尧之都 | X53: 尧让天下 | Y53: =COUNTIF(EventLinkConfig!O:O,EventConfig!A53) -> 12 | Z53: 1001301 | AA53: 1001302 | AB53: 1001303 | AC53: 1001304 | AD53: 1001305 | AE53: 1001306 | AF53: 1001307 | AG53: 1001308 | AH53: 1001309 | AI53: 1001310 | AJ53: 1001311 | AK53: 1001312 | AT53: 10006 | AU53: 1 | AV53: 1702 | AW53: =[1]升级!$AM15 -> 2
A54: 10014 | B54: =IF(Y54>0,_xlfn.TEXTJOIN(";",1,ROW(INDIRECT(CONCATENATE("",A54*100+1,":",A54*100+Y54,""))),102),"") -> 1001401;1001402;1001403;1001404;1001405;1001406;1001407;1001408;1001409;1001410;1001411;1001412;1001413;1001414;1001415;1001416;102 | C54: 4 | D54: 1 | E54: 1 | F54: 10 | G54: 1 | I54: 12015;1702 | J54: 1;2 | M54: 2 | P54: 1 | Q54: 41 | U54: 4041 | V54: 4116 | W54: 山林清音 | X54: 访贤许由 | Y54: =COUNTIF(EventLinkConfig!O:O,EventConfig!A54) -> 16 | Z54: 1001401 | AA54: 1001402 | AB54: 1001403 | AC54: 1001404 | AD54: 1001405 | AE54: 1001406 | AF54: 1001407 | AG54: 1001408 | AH54: 1001409 | AI54: 1001410 | AJ54: 1001411 | AK54: 1001412 | AL54: 1001413 | AM54: 1001414 | AN54: 1001415 | AO54: 1001416 | AT54: 12015 | AU54: 1 | AV54: 1702 | AW54: =[1]升级!$AM16 -> 2
A55: 10015 | B55: =IF(Y55>0,_xlfn.TEXTJOIN(";",1,ROW(INDIRECT(CONCATENATE("",A55*100+1,":",A55*100+Y55,""))),102),"") -> 1001501;1001502;1001503;1001504;1001505;1001506;1001507;1001508;102 | C55: 4 | D55: 1 | E55: 1 | F55: 10 | G55: 1 | I55: 12503;1702 | J55: 1;2 | M55: 2 | P55: 1 | U55: 4042 | V55: 4117 | W55: 山中劳作 | X55: 割草喝茶 | Y55: =COUNTIF(EventLinkConfig!O:O,EventConfig!A55) -> 8 | Z55: 1001501 | AA55: 1001502 | AB55: 1001503 | AC55: 1001504 | AD55: 1001505 | AE55: 1001506 | AF55: 1001507 | AG55: 1001508 | AT55: 12503 | AU55: 1 | AV55: 1702 | AW55: =[1]升级!$AM17 -> 2
A56: 10016 | B56: =IF(Y56>0,_xlfn.TEXTJOIN(";",1,ROW(INDIRECT(CONCATENATE("",A56*100+1,":",A56*100+Y56,""))),102),"") -> 1001601;1001602;1001603;1001604;1001605;1001606;1001607;1001608;102 | C56: 4 | D56: 1 | E56: 1 | F56: 10 | G56: 1 | I56: 12019;1702 | J56: 1;2 | M56: 2 | P56: 1 | Q56: 51 | U56: 4043 | V56: 4118 | W56: 风起夜战 | X56: 再来一杯 | Y56: =COUNTIF(EventLinkConfig!O:O,EventConfig!A56) -> 8 | Z56: 1001601 | AA56: 1001602 | AB56: 1001603 | AC56: 1001604 | AD56: 1001605 | AE56: 1001606 | AF56: 1001607 | AG56: 1001608 | AT56: 12019 | AU56: 1 | AV56: 1702 | AW56: =[1]升级!$AM18 -> 2
A57: 10017 | B57: =IF(Y57>0,_xlfn.TEXTJOIN(";",1,ROW(INDIRECT(CONCATENATE("",A57*100+1,":",A57*100+Y57,""))),102),"") -> 1001701;1001702;1001703;1001704;1001705;1001706;1001707;1001708;1001709;1001710;1001711;1001712;1001713;102 | C57: 4 | D57: 1 | E57: 1 | F57: 10 | G57: 1 | I57: 12509;1702 | J57: 1;2 | M57: 2 | P57: 1 | U57: 4044 | V57: 4119 | W57: 吃茶三问 | X57: 战胜妖王 | Y57: =COUNTIF(EventLinkConfig!O:O,EventConfig!A57) -> 13 | Z57: 1001701 | AA57: 1001702 | AB57: 1001703 | AC57: 1001704 | AD57: 1001705 | AE57: 1001706 | AF57: 1001707 | AG57: 1001708 | AH57: 1001709 | AI57: 1001710 | AJ57: 1001711 | AK57: 1001712 | AL57: 1001713 | AT57: 12509 | AU57: 1 | AV57: 1702 | AW57: =[1]升级!$AM19 -> 2
A58: 10018 | B58: =IF(Y58>0,_xlfn.TEXTJOIN(";",1,ROW(INDIRECT(CONCATENATE("",A58*100+1,":",A58*100+Y58,""))),102),"") -> 1001801;1001802;1001803;1001804;1001805;1001806;1001807;1001808;1001809;1001810;102 | C58: 4 | D58: 1 | E58: 1 | F58: 10 | G58: 1 | I58: 10008;1702 | J58: 1;1 | M58: 2 | P58: 1 | Q58: 61 | U58: 4045 | V58: 4120 | W58: 尧让天下 | X58: 复命尧帝 | Y58: =COUNTIF(EventLinkConfig!O:O,EventConfig!A58) -> 10 | Z58: 1001801 | AA58: 1001802 | AB58: 1001803 | AC58: 1001804 | AD58: 1001805 | AE58: 1001806 | AF58: 1001807 | AG58: 1001808 | AH58: 1001809 | AI58: 1001810 | AT58: 10008 | AU58: 1 | AV58: 1702 | AW58: =[1]升级!$AM20 -> 1
A59: 10019 | B59: =IF(Y59>0,_xlfn.TEXTJOIN(";",1,ROW(INDIRECT(CONCATENATE("",A59*100+1,":",A59*100+Y59,""))),102),"") -> 1001901;1001902;1001903;1001904;1001905;1001906;1001907;1001908;1001909;1001910;1001911;1001912;1001913;1001914;1001915;1001916;1001917;1001918;1001919;1001920;102 | C59: 4 | D59: 1 | E59: 1 | F59: 10 | G59: 1 | I59: 12020;1702 | J59: 1;2 | M59: 2 | P59: 1 | U59: 4046 | V59: 4121 | W59: 无用之树 | X59: 树下闲话 | Y59: =COUNTIF(EventLinkConfig!O:O,EventConfig!A59) -> 20 | Z59: 1001901 | AA59: 1001902 | AB59: 1001903 | AC59: 1001904 | AD59: 1001905 | AE59: 1001906 | AF59: 1001907 | AG59: 1001908 | AH59: 1001909 | AI59: 1001910 | AJ59: 1001911 | AK59: 1001912 | AL59: 1001913 | AM59: 1001914 | AN59: 1001915 | AO59: 1001916 | AP59: =IF($Y59>=AP$3,$A59*100+AP$3,"") -> 1001917 | AQ59: =IF($Y59>=AQ$3,$A59*100+AQ$3,"") -> 1001918 | AR59: =IF($Y59>=AR$3,$A59*100+AR$3,"") -> 1001919 | AS59: =IF($Y59>=AS$3,$A59*100+AS$3,"") -> 1001920 | AT59: 12020 | AU59: 1 | AV59: 1702 | AW59: =[1]升级!$AM21 -> 2
A60: 10020 | B60: =IF(Y60>0,_xlfn.TEXTJOIN(";",1,ROW(INDIRECT(CONCATENATE("",A60*100+1,":",A60*100+Y60,""))),102),"") -> 1002001;1002002;102 | C60: 4 | D60: 1 | E60: 1 | F60: 10 | G60: 1 | I60: 12505;1702 | J60: 1;1 | M60: 2 | P60: 1 | U60: 4047 | V60: 4122 | W60: 樗木之灵 | X60: 切磋切磋 | Y60: =COUNTIF(EventLinkConfig!O:O,EventConfig!A60) -> 2 | Z60: =IF($Y60>=Z$3,$A60*100+Z$3,"") -> 1002001 | AA60: 1002002 | AT60: 12505 | AU60: 1 | AV60: 1702 | AW60: =[1]升级!$AM22 -> 1
A61: 10021 | B61: =IF(Y61>0,_xlfn.TEXTJOIN(";",1,ROW(INDIRECT(CONCATENATE("",A61*100+1,":",A61*100+Y61,""))),102),"") -> 1002101;1002102;1002103;1002104;102 | C61: 4 | D61: 1 | E61: 1 | F61: 10 | G61: 1 | I61: 12024;1702 | J61: 1;2 | M61: 2 | P61: 1 | Q61: 71 | U61: 4048 | V61: 4123 | W61: 游尧都 | X61: 金丹前期 | Y61: =COUNTIF(EventLinkConfig!O:O,EventConfig!A61) -> 4 | Z61: 1002101 | AA61: 1002102 | AB61: 1002103 | AC61: 1002104 | AT61: 12024 | AU61: 1 | AV61: 1702 | AW61: =[1]升级!$AM23 -> 2
A62: 10022 | B62: =IF(Y62>0,_xlfn.TEXTJOIN(";",1,ROW(INDIRECT(CONCATENATE("",A62*100+1,":",A62*100+Y62,""))),102),"") -> 1002201;1002202;1002203;1002204;1002205;1002206;1002207;1002208;1002209;1002210;1002211;1002212;102 | C62: 4 | D62: 1 | E62: 1 | F62: 10 | G62: 1 | I62: 12510;1702 | J62: 1;2 | M62: 2 | P62: 1 | Q62: 81 | U62: 4049 | V62: 4124 | W62: 再见尧帝 | X62: 仙山传说 | Y62: =COUNTIF(EventLinkConfig!O:O,EventConfig!A62) -> 12 | Z62: 1002201 | AA62: 1002202 | AB62: 1002203 | AC62: 1002204 | AD62: 1002205 | AE62: 1002206 | AF62: 1002207 | AG62: 1002208 | AH62: 1002209 | AI62: 1002210 | AJ62: 1002211 | AK62: 1002212 | AT62: 12510 | AU62: 1 | AV62: 1702 | AW62: =[1]升级!$AM24 -> 2
A63: 10023 | B63: =IF(Y63>0,_xlfn.TEXTJOIN(";",1,ROW(INDIRECT(CONCATENATE("",A63*100+1,":",A63*100+Y63,""))),102),"") -> 1002301;1002302;1002303;102 | C63: 4 | D63: 1 | E63: 1 | F63: 10 | G63: 1 | I63: 10010;1702 | J63: 1;2 | M63: 3 | P63: 1 | U63: 4050 | V63: 4125 | W63: 云海漫行 | X63: 入山幻阵 | Y63: =COUNTIF(EventLinkConfig!O:O,EventConfig!A63) -> 3 | Z63: 1002301 | AA63: 1002302 | AB63: 1002303 | AT63: 10010 | AU63: 1 | AV63: 1702 | AW63: =[1]升级!$AM25 -> 2
A64: 10024 | B64: =IF(Y64>0,_xlfn.TEXTJOIN(";",1,ROW(INDIRECT(CONCATENATE("",A64*100+1,":",A64*100+Y64,""))),102),"") -> 1002401;1002402;1002403;1002404;1002405;1002406;1002407;1002408;1002409;1002410;1002411;1002412;1002413;102 | C64: 4 | D64: 1 | E64: 1 | F64: 10 | G64: 1 | I64: 12025;1702 | J64: 1;3 | M64: 3 | P64: 1 | Q64: 91 | U64: 4051 | V64: 4126 | W64: 初见惠子 | X64: 葫芦种子 | Y64: =COUNTIF(EventLinkConfig!O:O,EventConfig!A64) -> 13 | Z64: 1002401 | AA64: 1002402 | AB64: 1002403 | AC64: 1002404 | AD64: 1002405 | AE64: 1002406 | AF64: 1002407 | AG64: 1002408 | AH64: 1002409 | AI64: 1002410 | AJ64: 1002411 | AK64: 1002412 | AL64: 1002413 | AT64: 12025 | AU64: 1 | AV64: 1702 | AW64: =[1]升级!$AM26 -> 3
A65: 10025 | B65: =IF(Y65>0,_xlfn.TEXTJOIN(";",1,ROW(INDIRECT(CONCATENATE("",A65*100+1,":",A65*100+Y65,""))),102),"") -> 1002501;1002502;1002503;1002504;1002505;1002506;1002507;1002508;102 | C65: 4 | D65: 1 | E65: 1 | F65: 10 | G65: 1 | I65: 12504;1702 | J65: 1;3 | M65: 3 | P65: 1 | Q65: 101 | U65: 4052 | V65: 4127 | W65: 葫芦肥料 | X65: 天肥地肥 | Y65: =COUNTIF(EventLinkConfig!O:O,EventConfig!A65) -> 8 | Z65: 1002501 | AA65: 1002502 | AB65: 1002503 | AC65: 1002504 | AD65: 1002505 | AE65: 1002506 | AF65: 1002507 | AG65: 1002508 | AT65: 12504 | AU65: 1 | AV65: 1702 | AW65: =[1]升级!$AM27 -> 3
A66: 10026 | B66: =IF(Y66>0,_xlfn.TEXTJOIN(";",1,ROW(INDIRECT(CONCATENATE("",A66*100+1,":",A66*100+Y66,""))),102),"") -> 1002601;1002602;1002603;1002604;1002605;1002606;1002607;1002608;1002609;102 | C66: 4 | D66: 1 | E66: 1 | F66: 10 | G66: 1 | I66: 1702 | J66: 4 | M66: 3 | P66: 1 | Q66: 111 | U66: 4053 | V66: 4128 | W66: 藐姑射山 | X66: 登山 | Y66: =COUNTIF(EventLinkConfig!O:O,EventConfig!A66) -> 9 | Z66: 1002601 | AA66: 1002602 | AB66: 1002603 | AC66: 1002604 | AD66: 1002605 | AE66: 1002606 | AF66: 1002607 | AG66: 1002608 | AH66: 1002609 | AV66: 1702 | AW66: =[1]升级!$AM28 -> 4
A67: 10027 | B67: =IF(Y67>0,_xlfn.TEXTJOIN(";",1,ROW(INDIRECT(CONCATENATE("",A67*100+1,":",A67*100+Y67,""))),102),"") -> 1002701;1002702;1002703;1002704;1002705;1002706;1002707;1002708;1002709;1002710;1002711;1002712;1002713;1002714;1002715;1002716;1002717;1002718;1002719;1002720;1002721;1002722;1002723;1002724;1002725;1002726;1002727;1002728;1002729;1002730;1002731;1002732;1002733;1002734;1002735;1002736;102 | C67: 4 | D67: 1 | E67: 1 | F67: 10 | G67: 1 | I67: 1702 | J67: 2 | M67: 3 | P67: 1 | Q67: 121 | U67: 4054 | V67: 4129 | W67: 藐姑射山 | X67: 雾中幻径 | Y67: =COUNTIF(EventLinkConfig!O:O,EventConfig!A67) -> 36 | Z67: 1002701 | AA67: 1002702 | AB67: 1002703 | AC67: 1002704 | AD67: 1002705 | AE67: 1002706 | AF67: 1002707 | AG67: 1002708 | AH67: 1002709 | AI67: 1002710 | AJ67: 1002711 | AK67: 1002712 | AL67: 1002713 | AM67: 1002714 | AN67: 1002715 | AO67: 1002716 | AV67: 1702 | AW67: =[1]升级!$AM29 -> 2
A68: 10028 | B68: =IF(Y68>0,_xlfn.TEXTJOIN(";",1,ROW(INDIRECT(CONCATENATE("",A68*100+1,":",A68*100+Y68,""))),102),"") -> 1002801;102 | C68: 4 | D68: 1 | E68: 1 | F68: 10 | G68: 1 | I68: 1702 | J68: 3 | M68: 3 | P68: 1 | U68: 4055 | V68: 4130 | W68: 露水清心 | Y68: =COUNTIF(EventLinkConfig!O:O,EventConfig!A68) -> 1 | Z68: 1002801 | AV68: 1702 | AW68: =[1]升级!$AM30 -> 3
A69: 10029 | B69: =IF(Y69>0,_xlfn.TEXTJOIN(";",1,ROW(INDIRECT(CONCATENATE("",A69*100+1,":",A69*100+Y69,""))),102),"") -> 1002901;1002902;1002903;1002904;1002905;1002906;1002907;1002908;1002909;1002910;1002911;1002912;1002913;1002914;1002915;1002916;1002917;1002918;1002919;1002920;102 | C69: 4 | D69: 1 | E69: 1 | F69: 10 | G69: 1 | I69: 1702 | J69: 2 | M69: 3 | P69: 1 | Q69: 131 | U69: 4056 | V69: 4131 | W69: 山顶神仙 | Y69: =COUNTIF(EventLinkConfig!O:O,EventConfig!A69) -> 20 | Z69: 1002901 | AA69: 1002902 | AB69: 1002903 | AC69: 1002904 | AD69: 1002905 | AE69: 1002906 | AF69: 1002907 | AG69: 1002908 | AH69: 1002909 | AI69: 1002910 | AJ69: 1002911 | AK69: 1002912 | AL69: 1002913 | AM69: 1002914 | AN69: 1002915 | AO69: 1002916 | AV69: 1702 | AW69: =[1]升级!$AM31 -> 2
A70: 10030 | B70: =IF(Y70>0,_xlfn.TEXTJOIN(";",1,ROW(INDIRECT(CONCATENATE("",A70*100+1,":",A70*100+Y70,""))),102),"") -> 1003001;1003002;1003003;1003004;1003005;1003006;1003007;1003008;102 | C70: 4 | D70: 1 | E70: 1 | F70: 10 | G70: 1 | I70: 1702 | J70: 3 | M70: 3 | P70: 1 | Q70: 141 | U70: 4057 | V70: 4132 | W70: 心魔之战 | X70: 破除枷锁 | Y70: =COUNTIF(EventLinkConfig!O:O,EventConfig!A70) -> 8 | Z70: 1003001 | AA70: 1003002 | AB70: 1003003 | AC70: 1003004 | AD70: 1003005 | AE70: 1003006 | AF70: 1003007 | AG70: 1003008 | AV70: 1702 | AW70: =[1]升级!$AM32 -> 3
A71: 10031 | B71: =IF(Y71>0,_xlfn.TEXTJOIN(";",1,ROW(INDIRECT(CONCATENATE("",A71*100+1,":",A71*100+Y71,""))),102),"") -> 1003101;1003102;1003103;1003104;1003105;1003106;1003107;1003108;1003109;1003110;1003111;1003112;1003113;1003114;1003115;1003116;102 | C71: 4 | D71: 1 | E71: 1 | F71: 10 | G71: 1 | M71: 3 | P71: 1 | Q71: 151 | U71: 4191 | V71: 4192 | W71: 鲲鹏飞天 | Y71: =COUNTIF(EventLinkConfig!O:O,EventConfig!A71) -> 16 | Z71: 1003101 | AA71: 1003102 | AB71: 1003103 | AC71: 1003104 | AD71: 1003105 | AE71: 1003106 | AF71: 1003107 | AG71: 1003108 | AH71: 1003109 | AI71: 1003110 | AJ71: 1003111 | AK71: 1003112 | AL71: 1003113 | AM71: 1003114 | AN71: 1003115 | AO71: 1003116
A73: 20001 | B73: 1001;1002;1003;1004;1005;102 | C73: 5 | E73: 1 | F73: 0 | G73: 1 | I73: 1001 | J73: 10 | U73: 4058 | V73: 4133 | W73: 受伤的狼 | X73: 你发现一只奄奄一息的狼，决定上前一探究竟。 | Z73: 1001 | AA73: 1002 | AB73: 1003 | AC73: 1004 | AD73: 1005
A74: 20002 | B74: =IF(A74="","",_xlfn.TEXTJOIN(";",1,Z74:AS74,102)) -> 1010;1011;1012;1013;1014;1015;1016;102 | C74: 5 | E74: 1 | F74: 0 | G74: 1 | I74: 1001 | J74: 10 | Q74: =IF(R74="","",VLOOKUP(R74,条件类型查询!A:B,2,FALSE)) ->  | U74: 4059 | V74: 4134 | W74: 鹬蚌相争 | X74: 附近的小树林闹的不可开交，你决定去看看怎么回事。 | Z74: 1010 | AA74: 1011 | AB74: 1012 | AC74: 1013 | AD74: 1014 | AE74: 1015 | AF74: 1016
A75: 20003 | B75: 1001;1002;1003;1004;1005;102 | C75: 5 | E75: 1 | F75: 0 | G75: 1 | I75: 1001 | J75: 10 | U75: 4060 | V75: 4135 | W75: 受伤的鸟 | X75: 你发现一只奄奄一息的鸟，决定上前一探究竟。 | Z75: 1001 | AA75: 1002 | AB75: 1003 | AC75: 1004 | AD75: 1005
A77: 9001 | B77: 1001;1002;1003;1004;1005;102 | C77: 6 | D77: 3 | E77: 1 | F77: 0 | G77: 1 | I77: 1001 | J77: 10 | U77: 4061 | V77: 4136 | W77: 受伤的狼 | X77: 你发现一只奄奄一息的狼，决定上前一探究竟。 | Z77: 1001 | AA77: 1002 | AB77: 1003 | AC77: 1004 | AD77: 1005
A78: 9002 | B78: 1010;1011;1012;1013;1014;1015;1016;102 | C78: 6 | D78: 3 | E78: 1 | F78: 0 | G78: 1 | I78: 1001 | J78: 10 | Q78: =IF(R78="","",VLOOKUP(R78,条件类型查询!A:B,2,FALSE)) ->  | U78: 4062 | V78: 4137 | W78: 鹬蚌相争 | X78: 附近的小树林闹的不可开交，你决定去看看怎么回事。 | Z78: 1010 | AA78: 1011 | AB78: 1012 | AC78: 1013 | AD78: 1014 | AE78: 1015 | AF78: 1016
A79: 9025 | B79: 102 | C79: 6 | D79: 3 | E79: 1 | F79: 0 | G79: 1 | I79: 1001 | J79: 10 | M79: 1 | P79: 2 | U79: 4063 | V79: 4138 | W79: 惠子.没用的大葫芦 | X79: 惠子种的葫芦没用，他非常生气
A80: 9014 | B80: 9014;102 | C80: 6 | D80: 3 | E80: 1 | F80: 0 | G80: 1 | I80: 1001 | J80: 10 | M80: 2 | P80: 2 | U80: 4064 | V80: 4139 | W80: 发现魔修 | X80: 发现一群魔修，正在夺人钱财 | Z80: 9014
A81: 9031 | B81: 9031;102 | C81: 6 | D81: 3 | E81: 1 | F81: 0 | G81: 1 | I81: 1001 | J81: 10 | K81: 30 | L81: 2 | M81: 3 | P81: 2 | U81: 4065 | V81: 4140 | W81: 魔修 | X81: 打败魔休 | Z81: 9031
A82: 9003 | B82: 9003;9004;9005;9006;9007;9008;102 | C82: 6 | D82: 5 | E82: 1 | F82: 0 | G82: 1 | I82: 1001 | J82: 10 | U82: 4066 | V82: 4141 | W82: 幽谷剑鸣 | X82: 你在闭关修炼时，感受到一股凌厉的剑意波动。深入探查，发现一名白衣剑修“清霜”盘坐于谷中，周围剑气环绕，正与一柄散发不祥气息的灵剑对峙。她似在参悟剑诀，却灵气不足，剑灵桀骜。 | Z82: 9003 | AA82: 9004 | AB82: 9005 | AC82: 9006 | AD82: 9007 | AE82: 9008
A84: 3 | B84: =IF(A84="","",_xlfn.TEXTJOIN(";",1,Z84:AS84,102)) -> 1020;1021;1022;1023;1024;1025;1026;102 | C84: 99 | D84: 2 | E84: 1 | F84: 10 | G84: 1 | I84: 1001 | J84: 10 | M84: 1 | P84: 4 | Q84: =IF(R84="","",VLOOKUP(R84,条件类型查询!A:B,2,FALSE)) -> 拥有特定道具 | R84: 1 | S84: 1004 | T84: 1 | U84: 4067 | V84: 4142 | W84: 鹬蚌相争2 | X84: 附近的小树林闹的不可开交，你决定去看看怎么回事。 | Z84: 1020 | AA84: 1021 | AB84: 1022 | AC84: 1023 | AD84: 1024 | AE84: 1025 | AF84: 1026
A85: 1001 | B85: =IF(A85="","",_xlfn.TEXTJOIN(";",1,Z85:AS85,102)) -> 1001;1002;1003;1004;1005;100;102 | C85: 99 | D85: 4 | E85: 1 | F85: 10 | G85: 1 | I85: 1001 | J85: 10 | Q85: =IF(R85="","",VLOOKUP(R85,条件类型查询!A:B,2,FALSE)) ->  | U85: 4068 | V85: 4143 | W85: 受伤的鸟 | X85: 你发现一只奄奄一息的鸟，决定上前一探究竟。 | Z85: 1001 | AA85: 1002 | AB85: 1003 | AC85: 1004 | AD85: 1005 | AS85: 100
A86: 30001 | B86: 100;102 | C86: 98 | D86: 6 | E86: 1 | F86: 0 | G86: 1 | K86: 50 | L86: 5 | Q86: =IF(R86="","",VLOOKUP(R86,条件类型查询!A:B,2,FALSE)) ->  | Y86: =COUNTIF(EventLinkConfig!O:O,EventConfig!A86) -> 0 | Z86: =IF($Y86>=Z$3,$A86*100+Z$3,"") ->  | AS86: 100
A87: =A86+1 -> 30002 | B87: 100;102 | C87: 98 | D87: 6 | E87: 1 | F87: 0 | G87: 1 | K87: 50 | L87: 1 | Q87: =IF(R87="","",VLOOKUP(R87,条件类型查询!A:B,2,FALSE)) ->  | Y87: =COUNTIF(EventLinkConfig!O:O,EventConfig!A87) -> 0 | AS87: 100
A88: 30003 | B88: 3000301;100;102 | C88: 98 | D88: 6 | E88: 1 | F88: 0 | G88: 1 | K88: 50 | L88: 1 | M88: 1 | Q88: =IF(R88="","",VLOOKUP(R88,条件类型查询!A:B,2,FALSE)) ->  | Y88: =COUNTIF(EventLinkConfig!O:O,EventConfig!A88) -> 1 | Z88: 3000301 | AS88: 100
A89: 30004 | B89: 3000401;100;102 | C89: 98 | D89: 6 | E89: 1 | F89: 0 | G89: 1 | K89: 50 | L89: 3 | M89: 2 | Q89: =IF(R89="","",VLOOKUP(R89,条件类型查询!A:B,2,FALSE)) ->  | Y89: =COUNTIF(EventLinkConfig!O:O,EventConfig!A89) -> 1 | Z89: 3000401 | AS89: 100
A90: 30005 | B90: 3000501;100;102 | C90: 98 | D90: 6 | E90: 1 | F90: 0 | G90: 1 | K90: 50 | L90: 1 | M90: 2 | Q90: =IF(R90="","",VLOOKUP(R90,条件类型查询!A:B,2,FALSE)) ->  | Y90: =COUNTIF(EventLinkConfig!O:O,EventConfig!A90) -> 1 | Z90: 3000501 | AS90: 100
A91: 30006 | B91: 3000601;100;102 | C91: 98 | D91: 6 | E91: 1 | F91: 0 | G91: 1 | K91: 50 | L91: 1 | M91: 2 | Q91: =IF(R91="","",VLOOKUP(R91,条件类型查询!A:B,2,FALSE)) ->  | Y91: =COUNTIF(EventLinkConfig!O:O,EventConfig!A91) -> 1 | Z91: 3000601 | AS91: 100
A92: 30007 | B92: 3000701;100;102 | C92: 98 | D92: 6 | E92: 1 | F92: 0 | G92: 1 | K92: 50 | L92: 1 | M92: 3 | Q92: =IF(R92="","",VLOOKUP(R92,条件类型查询!A:B,2,FALSE)) ->  | Y92: =COUNTIF(EventLinkConfig!O:O,EventConfig!A92) -> 1 | Z92: 3000701 | AS92: 100
A93: 30008 | B93: 3000801;100;102 | C93: 98 | D93: 6 | E93: 1 | F93: 0 | G93: 1 | K93: 15 | L93: 1 | M93: 3 | Q93: =IF(R93="","",VLOOKUP(R93,条件类型查询!A:B,2,FALSE)) ->  | Y93: =COUNTIF(EventLinkConfig!O:O,EventConfig!A93) -> 1 | Z93: 3000801 | AS93: 100
A94: 30009 | B94: 3000901;3000902;100;102 | C94: 98 | D94: 6 | E94: 1 | F94: 0 | G94: 1 | I94: 1301 | J94: 1 | K94: 100 | L94: 1 | M94: 3 | Q94: =IF(R94="","",VLOOKUP(R94,条件类型查询!A:B,2,FALSE)) ->  | Y94: =COUNTIF(EventLinkConfig!O:O,EventConfig!A94) -> 2 | Z94: 3000901 | AA94: 3000902 | AS94: 100
A95: 30010 | B95: 3001001;100;102 | C95: 98 | D95: 6 | E95: 1 | F95: 0 | G95: 1 | I95: 1001 | J95: 1 | K95: 100 | L95: 1 | M95: 3 | Q95: =IF(R95="","",VLOOKUP(R95,条件类型查询!A:B,2,FALSE)) -> 前置事件 | R95: 10 | S95: 1021 | Y95: =COUNTIF(EventLinkConfig!O:O,EventConfig!A95) -> 1 | Z95: 3001001 | AS95: 100
A96: 30011 | B96: 3001101;3001102;100;102 | C96: 98 | D96: 6 | E96: 1 | F96: 0 | G96: 1 | I96: 20003 | J96: 3 | K96: 100 | L96: 1 | M96: 2 | Q96: =IF(R96="","",VLOOKUP(R96,条件类型查询!A:B,2,FALSE)) ->  | Y96: =COUNTIF(EventLinkConfig!O:O,EventConfig!A96) -> 2 | Z96: 3001101 | AA96: 3001102 | AS96: 100
A97: 30012 | B97: 3001201;102 | C97: 98 | D97: 6 | E97: 1 | F97: 0 | G97: 1 | I97: 20004 | J97: 1 | K97: 20 | L97: 1 | M97: 2 | Q97: =IF(R97="","",VLOOKUP(R97,条件类型查询!A:B,2,FALSE)) ->  | Y97: =COUNTIF(EventLinkConfig!O:O,EventConfig!A97) -> 1 | Z97: 3001201
A98: 30013 | B98: =IF(A98="","",_xlfn.TEXTJOIN(";",1,Z98:AS98,102)) -> 3001301;102 | C98: 98 | D98: 6 | E98: 1 | F98: 0 | G98: 1 | I98: 20005 | J98: 1 | K98: 20 | L98: 1 | M98: 1 | Q98: =IF(R98="","",VLOOKUP(R98,条件类型查询!A:B,2,FALSE)) ->  | T98: 3 | U98: 4163 | V98: 4164 | W98: 搜集风铃 | X98: 为雀灵儿搜集风铃 | Y98: =COUNTIF(EventLinkConfig!O:O,EventConfig!A98) -> 1 | Z98: 3001301
A99: 30014 | B99: =IF(A99="","",_xlfn.TEXTJOIN(";",1,Z99:AS99,102)) -> 3001401;102 | C99: 98 | D99: 6 | E99: 1 | F99: 0 | G99: 1 | I99: 1001 | J99: 100 | K99: 20 | L99: 1 | M99: 1 | Q99: =IF(R99="","",VLOOKUP(R99,条件类型查询!A:B,2,FALSE)) ->  | T99: 1 | U99: 4177 | V99: 4178 | W99: 击败风妖 | X99: 云枝-击败风妖 | Y99: =COUNTIF(EventLinkConfig!O:O,EventConfig!A99) -> 1 | Z99: 3001401
A100: 30015 | B100: =IF(A100="","",_xlfn.TEXTJOIN(";",1,Z100:AS100,102)) -> 3001501;102 | C100: 98 | D100: 6 | E100: 1 | F100: 0 | G100: 1 | I100: 20006 | J100: 1 | K100: 33 | L100: 1 | M100: 1 | Q100: =IF(R100="","",VLOOKUP(R100,条件类型查询!A:B,2,FALSE)) ->  | T100: 3 | U100: 4193 | V100: 4194 | W100: 搜集风灵碎片 | X100: 风瑶-2. 风灵碎片.岛间搜寻 | Y100: =COUNTIF(EventLinkConfig!O:O,EventConfig!A100) -> 1 | Z100: 3001501
A101: 30016 | B101: =IF(A101="","",_xlfn.TEXTJOIN(";",1,Z101:AS101,102)) -> 3001601;3001602;3001603;3001604;102 | C101: 98 | D101: 6 | E101: 1 | F101: 0 | G101: 1 | I101: 1001 | J101: 100 | K101: 20 | L101: 1 | M101: 1 | Q101: =IF(R101="","",VLOOKUP(R101,条件类型查询!A:B,2,FALSE)) ->  | T101: 1 | U101: 4195 | V101: 4196 | W101: 云隐秘闻 | X101: 风瑶-3. 风中疑云.探听消息 | Y101: =COUNTIF(EventLinkConfig!O:O,EventConfig!A101) -> 4 | Z101: =IF($Y101>=Z$3,$A101*100+Z$3,"") -> 3001601 | AA101: 3001602 | AB101: 3001603 | AC101: 3001604 | AO101: =IF($Y101>=AO$3,$A101*100+AO$3,"") -> 
A102: =A101+1 -> 30017 | B102: =IF(A102="","",_xlfn.TEXTJOIN(";",1,Z102:AS102,102)) -> 3001701;102 | C102: 98 | D102: 6 | E102: 1 | F102: 0 | G102: 1 | I102: 20007 | J102: 1 | K102: 20 | L102: 1 | M102: 1 | Q102: =IF(R102="","",VLOOKUP(R102,条件类型查询!A:B,2,FALSE)) ->  | T102: 3 | U102: 4197 | V102: 4198 | W102: 搜集浮岛灵石 | X102: 风瑶-4. 隐秘信物.追踪残片 | Y102: =COUNTIF(EventLinkConfig!O:O,EventConfig!A102) -> 1 | Z102: 3001701
A103: 30018 | B103: =IF(A103="","",_xlfn.TEXTJOIN(";",1,Z103:AS103,102)) -> 3001801;102 | C103: 98 | D103: 6 | E103: 1 | F103: 0 | G103: 1 | I103: 20008 | J103: 1 | K103: 20 | L103: 1 | M103: 1 | Q103: =IF(R103="","",VLOOKUP(R103,条件类型查询!A:B,2,FALSE)) ->  | T103: 1 | U103: 4199 | V103: 4200 | W103: 搜集浮岛灵石 | X103: 风瑶-5. 风中密信.截获情报 | Y103: =COUNTIF(EventLinkConfig!O:O,EventConfig!A103) -> 1 | Z103: 3001801
A104: 30019 | B104: =IF(A104="","",_xlfn.TEXTJOIN(";",1,Z104:AS104,102)) -> 3001901;102 | C104: 98 | D104: 6 | E104: 1 | F104: 0 | G104: 1 | I104: 20009 | J104: 1 | K104: 20 | L104: 1 | M104: 1 | Q104: =IF(R104="","",VLOOKUP(R104,条件类型查询!A:B,2,FALSE)) ->  | T104: 2 | U104: 4213 | V104: 4214 | W104: 搜集尧都玉佩 | X104: 婉溪-4. 玉佩稳灵.收集信物 | Y104: =COUNTIF(EventLinkConfig!O:O,EventConfig!A104) -> 1 | Z104: 3001901
A105: 30020 | B105: =IF(A105="","",_xlfn.TEXTJOIN(";",1,Z105:AS105,102)) -> 3002001;102 | C105: 98 | D105: 6 | E105: 1 | F105: 0 | G105: 1 | I105: 20010 | J105: 1 | K105: 20 | L105: 1 | M105: 1 | Q105: =IF(R105="","",VLOOKUP(R105,条件类型查询!A:B,2,FALSE)) ->  | T105: 2 | U105: 4227 | V105: 4228 | W105: 搜集山野灵草 | X105: 许由-2. 山野采草.炼丹初助 | Y105: =COUNTIF(EventLinkConfig!O:O,EventConfig!A105) -> 1 | Z105: 3002001
A106: 30021 | B106: =IF(A106="","",_xlfn.TEXTJOIN(";",1,Z106:AS106,102)) -> 3002101;3002102;3002103;102 | C106: 98 | D106: 6 | E106: 1 | F106: 0 | G106: 1 | I106: 20011 | J106: 1 | K106: 20 | L106: 1 | M106: 1 | Q106: =IF(R106="","",VLOOKUP(R106,条件类型查询!A:B,2,FALSE)) ->  | T106: 2 | U106: 4229 | V106: 4230 | W106: 搜集秘境种子 | X106: 许由-4. 玉佩镇丹.稳气寻材 | Y106: =COUNTIF(EventLinkConfig!O:O,EventConfig!A106) -> 3 | Z106: 3002101 | AA106: 3002102 | AB106: 3002103
A107: 30022 | B107: =IF(A107="","",_xlfn.TEXTJOIN(";",1,Z107:AS107,102)) -> 3002201;3002202;102 | C107: 98 | D107: 6 | E107: 1 | F107: 0 | G107: 1 | I107: 20012 | J107: 1 | K107: 20 | L107: 1 | M107: 1 | Q107: =IF(R107="","",VLOOKUP(R107,条件类型查询!A:B,2,FALSE)) ->  | T107: 3 | U107: 4242 | V107: 4243 | W107: 搜集甜蜜果实 | X107: 疯道人-2. 途中解乏 | Y107: =COUNTIF(EventLinkConfig!O:O,EventConfig!A107) -> 2 | Z107: 3002201 | AA107: 3002202
A108: 30023 | B108: =IF(A108="","",_xlfn.TEXTJOIN(";",1,Z108:AS108,102)) -> 3002301;3002302;102 | C108: 98 | D108: 6 | E108: 1 | F108: 0 | G108: 1 | K108: 20 | L108: 5 | M108: 1 | Q108: =IF(R108="","",VLOOKUP(R108,条件类型查询!A:B,2,FALSE)) ->  | T108: 3 | U108: 4275 | W108: 消灭妖邪 | Y108: =COUNTIF(EventLinkConfig!O:O,EventConfig!A108) -> 2 | Z108: 3002301 | AA108: 3002302
A109: 30024 | B109: =IF(A109="","",_xlfn.TEXTJOIN(";",1,Z109:AS109,102)) -> 3002401;3002402;102 | C109: 98 | D109: 6 | E109: 1 | F109: 0 | G109: 1 | K109: 20 | L109: 5 | M109: 1 | Q109: =IF(R109="","",VLOOKUP(R109,条件类型查询!A:B,2,FALSE)) ->  | T109: 3 | U109: 4276 | W109: 消灭仙山西边的妖物 | Y109: =COUNTIF(EventLinkConfig!O:O,EventConfig!A109) -> 2 | Z109: 3002401 | AA109: 3002402
A111: 5001 | B111: 500101;500102;500103;500104;500105;500106;500107;500108;500109;500110;500111;500112;500113;500114;500115;500116;500117;500118;500119;102 | C111: 99 | D111: 5 | E111: 1 | F111: 10 | G111: 1 | H111: 10 | I111: 1501 | J111: 1 | M111: 1 | P111: 1 | Q111: =IF(R111="","",VLOOKUP(R111,条件类型查询!A:B,2,FALSE)) ->  | U111: 4069 | V111: 4144 | W111: 风影为二 | X111: 风影为二详情占位 | Y111: =COUNTIF(EventLinkConfig!O:O,EventConfig!A111) -> 19 | Z111: =IF($Y111>=Z$3,$A111*100+Z$3,"") -> 500101 | AA111: 500102 | AB111: 500103 | AC111: 500104 | AD111: 500105 | AE111: 500106 | AF111: 500107 | AG111: 500108 | AH111: 500109 | AI111: 500110 | AJ111: =IF($Y111>=AJ$3,$A111*100+AJ$3,"") -> 500111 | AK111: 500112 | AL111: 500113 | AM111: 500114 | AN111: 500115 | AO111: 500116 | AP111: 500117 | AQ111: 500118 | AR111: 500119
A112: 5002 | B112: 500201;500202;500203;500204;500205;500206;500207;500208;500209;500210;500211;500212;500213;500214;500215;500216;102 | C112: 99 | D112: 5 | E112: 1 | F112: 10 | G112: 1 | H112: 11 | I112: 1601 | J112: 1 | M112: 1 | P112: 1 | Q112: =IF(R112="","",VLOOKUP(R112,条件类型查询!A:B,2,FALSE)) -> 前置事件 | R112: 10 | S112: 5001 | U112: 4070 | V112: 4145 | W112: 风影合一 | X112: 风影合一详情占位 | Y112: =COUNTIF(EventLinkConfig!O:O,EventConfig!A112) -> 16 | Z112: 500201 | AA112: 500202 | AB112: 500203 | AC112: 500204 | AD112: 500205 | AE112: 500206 | AF112: 500207 | AG112: 500208 | AH112: 500209 | AI112: 500210 | AJ112: 500211 | AK112: 500212 | AL112: 500213 | AM112: 500214 | AN112: 500215 | AO112: 500216
A113: 5003 | B113: 500301;500302;500303;500304;500305;500306;500307;500308;500309;500310;500311;500312;500313;500314;500315;500316;500317;500318;500319;500320;102 | C113: 99 | D113: 2 | E113: 1 | F113: 0 | G113: 1 | H113: 1 | I113: 1001 | J113: 500 | M113: 1 | P113: 1 | Q113: =IF(R113="","",VLOOKUP(R113,条件类型查询!A:B,2,FALSE)) ->  | U113: 4071 | V113: 4146 | W113: 北海剑妖 | X113: 百年化妖为红颜，一剑焚海断孽缘 | Y113: =COUNTIF(EventLinkConfig!O:O,EventConfig!A113) -> 20 | Z113: 500301 | AA113: 500302 | AB113: 500303 | AC113: 500304 | AD113: 500305 | AE113: 500306 | AF113: 500307 | AG113: 500308 | AH113: 500309 | AI113: 500310 | AJ113: 500311 | AK113: 500312 | AL113: 500313 | AM113: 500314 | AN113: 500315 | AO113: 500316 | AP113: 500317 | AQ113: 500318 | AR113: 500319 | AS113: 500320
A114: 5004 | B114: =IF(A114="","",_xlfn.TEXTJOIN(";",1,Z114:AS114,102)) -> 500401;102 | C114: 99 | D114: 7 | E114: 1 | F114: 0 | G114: 1 | H114: 1 | I114: 1001 | J114: -20000 | Q114: =IF(R114="","",VLOOKUP(R114,条件类型查询!A:B,2,FALSE)) ->  | U114: 4072 | V114: 4147 | W114: 【纳福】灵石 | X114: 大量获取灵石 | Y114: =COUNTIF(EventLinkConfig!O:O,EventConfig!A114) -> 1 | Z114: 500401
A115: 5005 | B115: =IF(A115="","",_xlfn.TEXTJOIN(";",1,Z115:AS115,102)) -> 500501;102 | C115: 99 | D115: 7 | E115: 1 | F115: 0 | G115: 1 | H115: 1 | I115: 1003 | J115: -20000 | Q115: =IF(R115="","",VLOOKUP(R115,条件类型查询!A:B,2,FALSE)) ->  | U115: 4073 | V115: 4148 | W115: 【纳福】修为 | X115: 大量获取修为 | Y115: =COUNTIF(EventLinkConfig!O:O,EventConfig!A115) -> 1 | Z115: 500501
A116: 5006 | B116: 500601;102 | C116: 99 | D116: 7 | E116: 1 | F116: 0 | G116: 1 | H116: 1 | I116: 1005 | J116: -20000 | Q116: =IF(R116="","",VLOOKUP(R116,条件类型查询!A:B,2,FALSE)) ->  | U116: 4074 | V116: 4149 | W116: 【纳福】灵气 | X116: 大量获取灵气 | Y116: =COUNTIF(EventLinkConfig!O:O,EventConfig!A116) -> 1 | Z116: 500601
A117: 5007 | B117: =IF(A117="","",_xlfn.TEXTJOIN(";",1,Z117:AS117,102)) -> 500701;102 | C117: 99 | D117: 7 | E117: 1 | F117: 0 | G117: 1 | H117: 1 | I117: 1006 | J117: -20000 | Q117: =IF(R117="","",VLOOKUP(R117,条件类型查询!A:B,2,FALSE)) ->  | U117: 4075 | V117: 4150 | W117: 【纳福】玄晶 | X117: 大量获取玄晶 | Y117: =COUNTIF(EventLinkConfig!O:O,EventConfig!A117) -> 1 | Z117: 500701
A119: 6001 | B119: 600101;600102;600103;600104;600105;600106;600107;600108;600109;600110;600111;600112;600113;600114;600115;600116;600117;102 | C119: 7 | D119: 5 | E119: 1 | F119: 0 | G119: 1 | K119: 35 | L119: 1 | M119: 1 | Q119: =IF(R119="","",VLOOKUP(R119,条件类型查询!A:B,2,FALSE)) -> 前置事件 | R119: 10 | S119: 10003 | U119: 4151 | V119: 4152 | W119: 树间闲聊 | X119: 雀灵儿1 | Y119: =COUNTIF(EventLinkConfig!O:O,EventConfig!A119) -> 17 | Z119: =IF($Y119>=Z$3,$A119*100+Z$3,"") -> 600101 | AA119: 600102 | AB119: 600103 | AC119: 600104 | AD119: 600105 | AE119: 600106 | AF119: 600107 | AG119: 600108 | AH119: 600109 | AI119: 600110 | AJ119: =IF($Y119>=AJ$3,$A119*100+AJ$3,"") -> 600111 | AK119: 600112 | AL119: 600113 | AM119: 600114 | AN119: 600115 | AO119: 600116 | AP119: 600117
A120: 6002 | B120: =IF(A120="","",_xlfn.TEXTJOIN(";",1,Z120:AS120,102)) -> 600201;600202;600203;600204;600205;600206;102 | C120: 7 | D120: 5 | E120: 1 | F120: 0 | G120: 1 | K120: 30 | L120: 1 | M120: 1 | Q120: =IF(R120="","",VLOOKUP(R120,条件类型查询!A:B,2,FALSE)) -> 前置事件 | R120: 10 | S120: =A119 -> 6001 | U120: 4153 | V120: 4154 | W120: 风铃寻趣 | X120: 雀灵儿2 | Y120: =COUNTIF(EventLinkConfig!O:O,EventConfig!A120) -> 6 | Z120: 600201 | AA120: 600202 | AB120: 600203 | AC120: 600204 | AD120: 600205 | AE120: 600206
A121: 6003 | B121: 600301;600302;600303;600304;600305;600306;600307;600308;600309;600310;600311;600312;600313;600314;600315;102 | C121: 7 | D121: 5 | E121: 1 | F121: 0 | G121: 1 | K121: 25 | L121: 1 | M121: 1 | Q121: =IF(R121="","",VLOOKUP(R121,条件类型查询!A:B,2,FALSE)) -> 前置事件 | R121: 10 | S121: =A120 -> 6002 | U121: 4155 | V121: 4156 | W121: 守护雀巢 | X121: 雀灵儿3 | Y121: =COUNTIF(EventLinkConfig!O:O,EventConfig!A121) -> 15 | Z121: 600301 | AA121: 600302 | AB121: 600303 | AC121: 600304 | AD121: 600305 | AE121: 600306 | AF121: 600307 | AG121: 600308 | AH121: 600309 | AI121: 600310 | AJ121: 600311 | AK121: 600312 | AL121: 600313 | AM121: 600314 | AN121: 600315
A122: 6004 | B122: 600401;600402;600403;600404;600405;600406;600407;600408;600409;102 | C122: 7 | D122: 5 | E122: 1 | F122: 0 | G122: 1 | K122: 20 | L122: 1 | M122: 1 | Q122: =IF(R122="","",VLOOKUP(R122,条件类型查询!A:B,2,FALSE)) -> 前置事件 | R122: 10 | S122: 6003 | U122: 4157 | V122: 4158 | W122: 小飞试胆 | X122: 雀灵儿4 | Y122: =COUNTIF(EventLinkConfig!O:O,EventConfig!A122) -> 9 | Z122: 600401 | AA122: 600402 | AB122: 600403 | AC122: 600404 | AD122: 600405 | AE122: 600406 | AF122: 600407 | AG122: 600408 | AH122: 600409
A123: 6005 | B123: 600501;600502;600503;600504;600505;600506;102 | C123: 7 | D123: 5 | E123: 1 | F123: 0 | G123: 1 | K123: 15 | L123: 1 | M123: 1 | Q123: =IF(R123="","",VLOOKUP(R123,条件类型查询!A:B,2,FALSE)) -> 前置事件 | R123: 10 | S123: 6004 | U123: 4159 | V123: 4160 | W123: 风涡营救 | X123: 雀灵儿5 | Y123: =COUNTIF(EventLinkConfig!O:O,EventConfig!A123) -> 6 | Z123: 600501 | AA123: 600502 | AB123: 600503 | AC123: 600504 | AD123: 600505 | AE123: 600506
A124: 6006 | B124: 600601;600602;600603;600604;600605;600606;600607;600608;600609;102 | C124: 7 | D124: 5 | E124: 1 | F124: 0 | G124: 1 | K124: 10 | L124: 1 | M124: 1 | Q124: =IF(R124="","",VLOOKUP(R124,条件类型查询!A:B,2,FALSE)) -> 前置事件 | R124: 10 | S124: 6005 | U124: 4161 | V124: 4162 | W124: 雀侣同行 | X124: 雀灵儿6 | Y124: =COUNTIF(EventLinkConfig!O:O,EventConfig!A124) -> 9 | Z124: 600601 | AA124: 600602 | AB124: 600603 | AC124: 600604 | AD124: 600605 | AE124: 600606 | AF124: 600607 | AG124: 600608 | AH124: 600609
A126: 6011 | B126: =IF(A126="","",_xlfn.TEXTJOIN(";",1,Z126:AS126,102)) -> 601101;601102;601103;601104;601105;601106;601107;102 | C126: 7 | D126: 5 | E126: 1 | F126: 0 | G126: 1 | K126: 35 | L126: 1 | M126: 1 | Q126: =IF(R126="","",VLOOKUP(R126,条件类型查询!A:B,2,FALSE)) -> 前置事件 | R126: 10 | S126: 6001 | U126: 4165 | V126: 4171 | W126: 绿林试探 | X126: 云枝1 | Y126: =COUNTIF(EventLinkConfig!O:O,EventConfig!A126) -> 7 | Z126: =IF($Y126>=Z$3,$A126*100+Z$3,"") -> 601101 | AA126: 601102 | AB126: 601103 | AC126: 601104 | AD126: 601105 | AE126: 601106 | AF126: 601107 | AJ126: =IF($Y126>=AJ$3,$A126*100+AJ$3,"") -> 
A127: 6012 | B127: 601201;601202;601203;601204;601205;601206;601207;601208;102 | C127: 7 | D127: 5 | E127: 1 | F127: 0 | G127: 1 | K127: 30 | L127: 1 | M127: 1 | Q127: =IF(R127="","",VLOOKUP(R127,条件类型查询!A:B,2,FALSE)) -> 前置事件 | R127: 10 | S127: =A126 -> 6011 | U127: 4166 | V127: 4172 | W127: 风林除妖 | X127: 云枝2 | Y127: =COUNTIF(EventLinkConfig!O:O,EventConfig!A127) -> 8 | Z127: 601201 | AA127: 601202 | AB127: 601203 | AC127: 601204 | AD127: 601205 | AE127: 601206 | AF127: 601207 | AG127: 601208
A128: 6013 | B128: 601301;601302;601303;601304;601305;601306;601307;601308;601309;601310;102 | C128: 7 | D128: 5 | E128: 1 | F128: 0 | G128: 1 | K128: 25 | L128: 1 | M128: 1 | Q128: =IF(R128="","",VLOOKUP(R128,条件类型查询!A:B,2,FALSE)) -> 前置事件 | R128: 10 | S128: =A127 -> 6012 | U128: 4167 | V128: 4173 | W128: 琴音守护 | X128: 云枝3 | Y128: =COUNTIF(EventLinkConfig!O:O,EventConfig!A128) -> 10 | Z128: 601301 | AA128: 601302 | AB128: 601303 | AC128: 601304 | AD128: 601305 | AE128: 601306 | AF128: 601307 | AG128: 601308 | AH128: 601309 | AI128: 601310
A129: 6014 | B129: 601401;601402;601403;601404;601405;601406;601407;601408;601409;601410;102 | C129: 7 | D129: 5 | E129: 1 | F129: 0 | G129: 1 | K129: 20 | L129: 1 | M129: 1 | Q129: =IF(R129="","",VLOOKUP(R129,条件类型查询!A:B,2,FALSE)) -> 前置事件 | R129: 10 | S129: 6013 | U129: 4168 | V129: 4174 | W129: 往事如风 | X129: 云枝4 | Y129: =COUNTIF(EventLinkConfig!O:O,EventConfig!A129) -> 10 | Z129: 601401 | AA129: 601402 | AB129: 601403 | AC129: 601404 | AD129: 601405 | AE129: 601406 | AF129: 601407 | AG129: 601408 | AH129: 601409 | AI129: 601410
A130: 6015 | B130: 601501;601502;601503;601504;601505;601506;601507;601508;601509;601510;601511;102 | C130: 7 | D130: 5 | E130: 1 | F130: 0 | G130: 1 | K130: 15 | L130: 1 | M130: 1 | Q130: =IF(R130="","",VLOOKUP(R130,条件类型查询!A:B,2,FALSE)) -> 前置事件 | R130: 10 | S130: 6014 | U130: 4169 | V130: 4175 | W130: 大风危机 | X130: 云枝5 | Y130: =COUNTIF(EventLinkConfig!O:O,EventConfig!A130) -> 11 | Z130: 601501 | AA130: 601502 | AB130: 601503 | AC130: 601504 | AD130: 601505 | AE130: 601506 | AF130: 601507 | AG130: 601508 | AH130: 601509 | AI130: 601510 | AJ130: 601511
A131: 6016 | B131: 601601;601602;601603;601604;601605;102 | C131: 7 | D131: 5 | E131: 1 | F131: 0 | G131: 1 | K131: 10 | L131: 1 | M131: 1 | Q131: =IF(R131="","",VLOOKUP(R131,条件类型查询!A:B,2,FALSE)) -> 前置事件 | R131: 10 | S131: 6015 | U131: 4170 | V131: 4176 | W131: 枝侣同行 | X131: 云枝6 | Y131: =COUNTIF(EventLinkConfig!O:O,EventConfig!A131) -> 5 | Z131: 601601 | AA131: 601602 | AB131: 601603 | AC131: 601604 | AD131: 601605
A133: 6021 | B133: =IF(A133="","",_xlfn.TEXTJOIN(";",1,Z133:AS133,102)) -> 602101;602102;602103;602104;102 | C133: 7 | D133: 5 | E133: 1 | F133: 0 | G133: 1 | K133: 35 | L133: 1 | M133: 1 | Q133: =IF(R133="","",VLOOKUP(R133,条件类型查询!A:B,2,FALSE)) -> 境界判断 | R133: 3 | S133: 81 | U133: 4179 | V133: 4185 | W133: 1. 浮岛边缘.初遇风瑶 | X133: 风瑶1 | Y133: =COUNTIF(EventLinkConfig!O:O,EventConfig!A133) -> 4 | Z133: =IF($Y133>=Z$3,$A133*100+Z$3,"") -> 602101 | AA133: 602102 | AB133: 602103 | AC133: 602104 | AJ133: =IF($Y133>=AJ$3,$A133*100+AJ$3,"") -> 
A134: 6022 | B134: 602201;602202;602203;602204;602205;602206;102 | C134: 7 | D134: 5 | E134: 1 | F134: 0 | G134: 1 | K134: 30 | L134: 1 | M134: 1 | Q134: =IF(R134="","",VLOOKUP(R134,条件类型查询!A:B,2,FALSE)) -> 前置事件 | R134: 10 | S134: =A133 -> 6021 | U134: 4180 | V134: 4186 | W134: 2. 风灵碎片.岛间搜寻 | X134: 风瑶2 | Y134: =COUNTIF(EventLinkConfig!O:O,EventConfig!A134) -> 6 | Z134: 602201 | AA134: 602202 | AB134: 602203 | AC134: 602204 | AD134: 602205 | AE134: 602206
A135: 6023 | B135: 602301;602302;602303;102 | C135: 7 | D135: 5 | E135: 1 | F135: 0 | G135: 1 | K135: 25 | L135: 1 | M135: 1 | Q135: =IF(R135="","",VLOOKUP(R135,条件类型查询!A:B,2,FALSE)) -> 前置事件 | R135: 10 | S135: =A134 -> 6022 | U135: 4181 | V135: 4187 | W135: 3. 风中疑云.探听消息 | X135: 风瑶3 | Y135: =COUNTIF(EventLinkConfig!O:O,EventConfig!A135) -> 3 | Z135: 602301 | AA135: 602302 | AB135: 602303
A136: 6024 | B136: 602401;602402;602403;602404;102 | C136: 7 | D136: 5 | E136: 1 | F136: 0 | G136: 1 | K136: 20 | L136: 1 | M136: 1 | Q136: =IF(R136="","",VLOOKUP(R136,条件类型查询!A:B,2,FALSE)) -> 前置事件 | R136: 10 | S136: 6023 | U136: 4182 | V136: 4188 | W136: 4. 隐秘信物.追踪残片 | X136: 风瑶4 | Y136: =COUNTIF(EventLinkConfig!O:O,EventConfig!A136) -> 4 | Z136: 602401 | AA136: 602402 | AB136: 602403 | AC136: 602404
A137: 6025 | B137: 602501;602502;602503;102 | C137: 7 | D137: 5 | E137: 1 | F137: 0 | G137: 1 | K137: 15 | L137: 1 | M137: 1 | Q137: =IF(R137="","",VLOOKUP(R137,条件类型查询!A:B,2,FALSE)) -> 前置事件 | R137: 10 | S137: 6024 | U137: 4183 | V137: 4189 | W137: 5. 风中密信.截获情报 | X137: 风瑶5 | Y137: =COUNTIF(EventLinkConfig!O:O,EventConfig!A137) -> 3 | Z137: 602501 | AA137: 602502 | AB137: 602503
A138: 6026 | B138: 602601;602602;602603;602604;602605;602606;602607;102 | C138: 7 | D138: 5 | E138: 1 | F138: 0 | G138: 1 | K138: 10 | L138: 1 | M138: 1 | Q138: =IF(R138="","",VLOOKUP(R138,条件类型查询!A:B,2,FALSE)) -> 前置事件 | R138: 10 | S138: 6025 | U138: 4184 | V138: 4190 | W138: 6. 兄妹密谈.初步真相 | X138: 风瑶6 | Y138: =COUNTIF(EventLinkConfig!O:O,EventConfig!A138) -> 7 | Z138: 602601 | AA138: 602602 | AB138: 602603 | AC138: 602604 | AD138: 602605 | AE138: 602606 | AF138: 602607
A140: 6031 | B140: =IF(A140="","",_xlfn.TEXTJOIN(";",1,Z140:AS140,102)) -> 603101;603102;603103;603104;603105;603106;603107;603108;102 | C140: 7 | D140: 5 | E140: 1 | F140: 0 | G140: 1 | K140: 35 | L140: 1 | M140: 1 | Q140: =IF(R140="","",VLOOKUP(R140,条件类型查询!A:B,2,FALSE)) -> 境界判断 | R140: 3 | S140: 101 | U140: 4201 | V140: 4207 | W140: 1. 山溪小屋.初遇婉溪 | X140: 婉溪1 | Y140: =COUNTIF(EventLinkConfig!O:O,EventConfig!A140) -> 8 | Z140: =IF($Y140>=Z$3,$A140*100+Z$3,"") -> 603101 | AA140: 603102 | AB140: 603103 | AC140: 603104 | AD140: 603105 | AE140: 603106 | AF140: 603107 | AG140: 603108 | AJ140: =IF($Y140>=AJ$3,$A140*100+AJ$3,"") -> 
A141: 6032 | B141: 603201;603202;603203;603204;102 | C141: 7 | D141: 5 | E141: 1 | F141: 0 | G141: 1 | K141: 30 | L141: 1 | M141: 1 | Q141: =IF(R141="","",VLOOKUP(R141,条件类型查询!A:B,2,FALSE)) -> 前置事件 | R141: 10 | S141: =A140 -> 6031 | U141: 4202 | V141: 4208 | W141: 2. 溪边劳作.浇灌灵田 | X141: 婉溪2 | Y141: =COUNTIF(EventLinkConfig!O:O,EventConfig!A141) -> 4 | Z141: 603201 | AA141: 603202 | AB141: 603203 | AC141: 603204
A142: 6033 | B142: 603301;603302;603303;603304;603305;102 | C142: 7 | D142: 5 | E142: 1 | F142: 0 | G142: 1 | K142: 25 | L142: 1 | M142: 1 | Q142: =IF(R142="","",VLOOKUP(R142,条件类型查询!A:B,2,FALSE)) -> 前置事件 | R142: 10 | S142: =A141 -> 6032 | U142: 4203 | V142: 4209 | W142: 3. 清茶闲话.品茗论道 | X142: 婉溪3 | Y142: =COUNTIF(EventLinkConfig!O:O,EventConfig!A142) -> 5 | Z142: 603301 | AA142: 603302 | AB142: 603303 | AC142: 603304 | AD142: 603305
A143: 6034 | B143: 603401;603402;603403;102 | C143: 7 | D143: 5 | E143: 1 | F143: 0 | G143: 1 | K143: 20 | L143: 1 | M143: 1 | Q143: =IF(R143="","",VLOOKUP(R143,条件类型查询!A:B,2,FALSE)) -> 前置事件 | R143: 10 | S143: 6033 | U143: 4204 | V143: 4210 | W143: 4. 玉佩稳灵.收集信物 | X143: 婉溪4 | Y143: =COUNTIF(EventLinkConfig!O:O,EventConfig!A143) -> 3 | Z143: 603401 | AA143: 603402 | AB143: 603403
A144: 6035 | B144: 603501;603502;603503;102 | C144: 7 | D144: 5 | E144: 1 | F144: 0 | G144: 1 | K144: 15 | L144: 1 | M144: 1 | Q144: =IF(R144="","",VLOOKUP(R144,条件类型查询!A:B,2,FALSE)) -> 前置事件 | R144: 10 | S144: 6034 | U144: 4205 | V144: 4211 | W144: 5. 溪水异动.驱散干扰 | X144: 婉溪5 | Y144: =COUNTIF(EventLinkConfig!O:O,EventConfig!A144) -> 3 | Z144: 603501 | AA144: 603502 | AB144: 603503
A145: 6036 | B145: 603601;603602;603603;603604;603605;603606;102 | C145: 7 | D145: 5 | E145: 1 | F145: 0 | G145: 1 | K145: 10 | L145: 1 | M145: 1 | Q145: =IF(R145="","",VLOOKUP(R145,条件类型查询!A:B,2,FALSE)) -> 前置事件 | R145: 10 | S145: 6035 | U145: 4206 | V145: 4212 | W145: 6. 兄妹心语.隐秘初现 | X145: 婉溪6 | Y145: =COUNTIF(EventLinkConfig!O:O,EventConfig!A145) -> 6 | Z145: 603601 | AA145: 603602 | AB145: 603603 | AC145: 603604 | AD145: 603605 | AE145: 603606
A147: 6041 | B147: =IF(A147="","",_xlfn.TEXTJOIN(";",1,Z147:AS147,102)) -> 604101;604102;604103;604104;102 | C147: 7 | D147: 5 | E147: 1 | F147: 0 | G147: 1 | K147: 35 | L147: 1 | M147: 1 | Q147: =IF(R147="","",VLOOKUP(R147,条件类型查询!A:B,2,FALSE)) -> 境界判断 | R147: 3 | S147: 121 | U147: 4215 | V147: 4221 | W147: 1. 山林重逢.隐士闲谈 | X147: 许由1 | Y147: =COUNTIF(EventLinkConfig!O:O,EventConfig!A147) -> 4 | Z147: =IF($Y147>=Z$3,$A147*100+Z$3,"") -> 604101 | AA147: 604102 | AB147: 604103 | AC147: 604104 | AJ147: =IF($Y147>=AJ$3,$A147*100+AJ$3,"") -> 
A148: 6042 | B148: 604201;604202;604203;604204;102 | C148: 7 | D148: 5 | E148: 1 | F148: 0 | G148: 1 | K148: 30 | L148: 1 | M148: 1 | Q148: =IF(R148="","",VLOOKUP(R148,条件类型查询!A:B,2,FALSE)) -> 前置事件 | R148: 10 | S148: =A147 -> 6041 | U148: 4216 | V148: 4222 | W148: 2. 山野采草.炼丹初助 | X148: 许由2 | Y148: =COUNTIF(EventLinkConfig!O:O,EventConfig!A148) -> 4 | Z148: 604201 | AA148: 604202 | AB148: 604203 | AC148: 604204
A149: 6043 | B149: 604301;604302;604303;102 | C149: 7 | D149: 5 | E149: 1 | F149: 0 | G149: 1 | K149: 25 | L149: 1 | M149: 1 | Q149: =IF(R149="","",VLOOKUP(R149,条件类型查询!A:B,2,FALSE)) -> 前置事件 | R149: 10 | S149: =A148 -> 6042 | U149: 4217 | V149: 4223 | W149: 3. 丹炉论道.火候之悟 | X149: 许由3 | Y149: =COUNTIF(EventLinkConfig!O:O,EventConfig!A149) -> 3 | Z149: 604301 | AA149: 604302 | AB149: 604303
A150: 6044 | B150: 604401;604402;604403;604404;102 | C150: 7 | D150: 5 | E150: 1 | F150: 0 | G150: 1 | K150: 20 | L150: 1 | M150: 1 | Q150: =IF(R150="","",VLOOKUP(R150,条件类型查询!A:B,2,FALSE)) -> 前置事件 | R150: 10 | S150: 6043 | U150: 4218 | V150: 4224 | W150: 4. 玉佩镇丹.稳气寻材 | X150: 许由4 | Y150: =COUNTIF(EventLinkConfig!O:O,EventConfig!A150) -> 4 | Z150: 604401 | AA150: 604402 | AB150: 604403 | AC150: 604404
A151: 6045 | B151: 604501;604502;604503;604504;102 | C151: 7 | D151: 5 | E151: 1 | F151: 0 | G151: 1 | K151: 15 | L151: 1 | M151: 1 | Q151: =IF(R151="","",VLOOKUP(R151,条件类型查询!A:B,2,FALSE)) -> 前置事件 | R151: 10 | S151: 6044 | U151: 4219 | V151: 4225 | W151: 5. 茶丹相融.品味山林 | X151: 许由5 | Y151: =COUNTIF(EventLinkConfig!O:O,EventConfig!A151) -> 4 | Z151: 604501 | AA151: 604502 | AB151: 604503 | AC151: 604504
A152: 6046 | B152: 604601;604602;102 | C152: 7 | D152: 5 | E152: 1 | F152: 0 | G152: 1 | K152: 10 | L152: 1 | M152: 1 | Q152: =IF(R152="","",VLOOKUP(R152,条件类型查询!A:B,2,FALSE)) -> 前置事件 | R152: 10 | S152: 6045 | U152: 4220 | V152: 4226 | W152: 6. 隐士心语.道在山林 | X152: 许由6 | Y152: =COUNTIF(EventLinkConfig!O:O,EventConfig!A152) -> 2 | Z152: 604601 | AA152: 604602
A154: 6051 | B154: =IF(A154="","",_xlfn.TEXTJOIN(";",1,Z154:AS154,102)) -> 605101;605102;605103;605104;102 | C154: 7 | D154: 5 | E154: 1 | F154: 0 | G154: 1 | K154: 35 | L154: 1 | M154: 1 | Q154: =IF(R154="","",VLOOKUP(R154,条件类型查询!A:B,2,FALSE)) -> 境界判断 | R154: 3 | S154: 141 | U154: 4231 | V154: 4237 | W154: 1. 随风偶遇.风中疑问 | X154: 疯道人1 | Y154: =COUNTIF(EventLinkConfig!O:O,EventConfig!A154) -> 4 | Z154: =IF($Y154>=Z$3,$A154*100+Z$3,"") -> 605101 | AA154: 605102 | AB154: 605103 | AC154: 605104 | AJ154: =IF($Y154>=AJ$3,$A154*100+AJ$3,"") -> 
A155: 6052 | B155: 605201;605202;605203;605204;102 | C155: 7 | D155: 5 | E155: 1 | F155: 0 | G155: 1 | K155: 30 | L155: 1 | M155: 1 | Q155: =IF(R155="","",VLOOKUP(R155,条件类型查询!A:B,2,FALSE)) -> 前置事件 | R155: 10 | S155: =A154 -> 6051 | U155: 4232 | V155: 4238 | W155: 2. 途中解乏 | X155: 疯道人2 | Y155: =COUNTIF(EventLinkConfig!O:O,EventConfig!A155) -> 4 | Z155: 605201 | AA155: 605202 | AB155: 605203 | AC155: 605204
A156: 6053 | B156: 605301;605302;605303;605304;102 | C156: 7 | D156: 5 | E156: 1 | F156: 0 | G156: 1 | K156: 25 | L156: 1 | M156: 1 | Q156: =IF(R156="","",VLOOKUP(R156,条件类型查询!A:B,2,FALSE)) -> 前置事件 | R156: 10 | S156: =A155 -> 6052 | U156: 4233 | V156: 4239 | W156: 3. 游乐论道.评判之辨 | X156: 疯道人3 | Y156: =COUNTIF(EventLinkConfig!O:O,EventConfig!A156) -> 4 | Z156: 605301 | AA156: 605302 | AB156: 605303 | AC156: 605304
A157: 6054 | B157: 605401;605402;605403;605404;102 | C157: 7 | D157: 5 | E157: 1 | F157: 0 | G157: 1 | K157: 20 | L157: 1 | M157: 1 | Q157: =IF(R157="","",VLOOKUP(R157,条件类型查询!A:B,2,FALSE)) -> 前置事件 | R157: 10 | S157: 6053 | U157: 4234 | V157: 4240 | W157: 4. 灵石稳身.自在寻味 | X157: 疯道人4 | Y157: =COUNTIF(EventLinkConfig!O:O,EventConfig!A157) -> 4 | Z157: 605401 | AA157: 605402 | AB157: 605403 | AC157: 605404
A158: 6055 | B158: 605501;605502;605503;605504;605505;605506;102 | C158: 7 | D158: 5 | E158: 1 | F158: 0 | G158: 1 | K158: 15 | L158: 1 | M158: 1 | Q158: =IF(R158="","",VLOOKUP(R158,条件类型查询!A:B,2,FALSE)) -> 前置事件 | R158: 10 | S158: 6054 | U158: 4235 | V158: 4241 | W158: 5. 沉迷赌博.有借无还 | X158: 疯道人5 | Y158: =COUNTIF(EventLinkConfig!O:O,EventConfig!A158) -> 6 | Z158: 605501 | AA158: 605502 | AB158: 605503 | AC158: 605504 | AD158: 605505 | AE158: 605506
A160: 9111 | B160: =IF(Y160>0,_xlfn.TEXTJOIN(";",1,ROW(INDIRECT(CONCATENATE("",A160*100+1,":",A160*100+Y160,""))),102),"") -> 911101;911102;911103;911104;911105;911106;911107;911108;911109;911110;911111;911112;911113;911114;911115;911116;102 | C160: 6 | D160: 2 | E160: 1 | F160: 0 | G160: 3 | I160: =_xlfn.TEXTJOIN(";",1,AT160,AV160) ->  | J160: =_xlfn.TEXTJOIN(";",1,AU160,AW160) ->  | K160: 30 | L160: 1 | M160: 1 | N160: 1 | O160: =CONCATENATE(VLOOKUP(M160,[2]PlacesConfig!$A:$C,3,FALSE),IF(N160="",""," - "&VLOOKUP(N160,[2]SmallPlacesConfig!$A:$G,7,FALSE))) -> 北海 - 海边 | Q160: =IF(R160="","",VLOOKUP(R160,条件类型查询!A:B,2,FALSE)) ->  | T160: 1 | U160: 4244 | W160: 渔民的帮助 | X160: 海岸异象 | Y160: =COUNTIF(EventLinkConfig!O:O,EventConfig!A160) -> 16
A161: =A160+1 -> 9112 | B161: =IF(Y161>0,_xlfn.TEXTJOIN(";",1,ROW(INDIRECT(CONCATENATE("",A161*100+1,":",A161*100+Y161,""))),102),"") -> 911201;911202;911203;911204;911205;911206;911207;102 | C161: 6 | D161: 2 | E161: 1 | F161: 0 | G161: 3 | I161: =_xlfn.TEXTJOIN(";",1,AT161,AV161) ->  | J161: =_xlfn.TEXTJOIN(";",1,AU161,AW161) ->  | K161: 30 | L161: 1 | M161: 1 | N161: 1 | O161: =CONCATENATE(VLOOKUP(M161,[2]PlacesConfig!$A:$C,3,FALSE),IF(N161="",""," - "&VLOOKUP(N161,[2]SmallPlacesConfig!$A:$G,7,FALSE))) -> 北海 - 海边 | Q161: =IF(R161="","",VLOOKUP(R161,条件类型查询!A:B,2,FALSE)) -> 前置事件 | R161: 10 | S161: =A160 -> 9111 | T161: 1 | U161: 4245 | W161: 妖物调查 | X161: 海岸异象 | Y161: =COUNTIF(EventLinkConfig!O:O,EventConfig!A161) -> 7
A162: 9113 | B162: =IF(Y162>0,_xlfn.TEXTJOIN(";",1,ROW(INDIRECT(CONCATENATE("",A162*100+1,":",A162*100+Y162,""))),102),"") -> 911301;911302;911303;911304;911305;102 | C162: 6 | D162: 2 | E162: 1 | F162: 0 | G162: 3 | K162: 30 | L162: 1 | M162: 1 | N162: 1 | O162: =CONCATENATE(VLOOKUP(M162,[2]PlacesConfig!$A:$C,3,FALSE),IF(N162="",""," - "&VLOOKUP(N162,[2]SmallPlacesConfig!$A:$G,7,FALSE))) -> 北海 - 海边 | Q162: =IF(R162="","",VLOOKUP(R162,条件类型查询!A:B,2,FALSE)) -> 前置事件 | R162: 10 | S162: =A161 -> 9112 | T162: 1 | U162: 4246 | W162: 渔民汇报消息 | X162: 海岸异象 | Y162: =COUNTIF(EventLinkConfig!O:O,EventConfig!A162) -> 5
A163: 9114 | B163: =IF(Y163>0,_xlfn.TEXTJOIN(";",1,ROW(INDIRECT(CONCATENATE("",A163*100+1,":",A163*100+Y163,""))),102),"") -> 911401;911402;911403;911404;911405;911406;911407;911408;102 | C163: 6 | D163: 2 | E163: 1 | F163: 0 | G163: 3 | K163: 30 | L163: 1 | M163: 1 | N163: 1 | O163: =CONCATENATE(VLOOKUP(M163,[2]PlacesConfig!$A:$C,3,FALSE),IF(N163="",""," - "&VLOOKUP(N163,[2]SmallPlacesConfig!$A:$G,7,FALSE))) -> 北海 - 海边 | Q163: =IF(R163="","",VLOOKUP(R163,条件类型查询!A:B,2,FALSE)) -> 前置事件 | R163: 10 | S163: =A162 -> 9113 | T163: 1 | U163: 4247 | W163: 初遇幽魂 | X163: 幽魂 | Y163: =COUNTIF(EventLinkConfig!O:O,EventConfig!A163) -> 8
A164: 9115 | B164: =IF(Y164>0,_xlfn.TEXTJOIN(";",1,ROW(INDIRECT(CONCATENATE("",A164*100+1,":",A164*100+Y164,""))),102),"") -> 911501;911502;102 | C164: 6 | D164: 2 | E164: 1 | F164: 0 | G164: 3 | K164: 30 | L164: 1 | M164: 1 | N164: 1 | O164: =CONCATENATE(VLOOKUP(M164,[2]PlacesConfig!$A:$C,3,FALSE),IF(N164="",""," - "&VLOOKUP(N164,[2]SmallPlacesConfig!$A:$G,7,FALSE))) -> 北海 - 海边 | Q164: =IF(R164="","",VLOOKUP(R164,条件类型查询!A:B,2,FALSE)) -> 前置事件 | R164: 10 | S164: =A163 -> 9114 | T164: 3 | U164: 4248 | W164: 幽魂石守护兽 | X164: 幽魂 | Y164: =COUNTIF(EventLinkConfig!O:O,EventConfig!A164) -> 2
A165: 9116 | B165: =IF(Y165>0,_xlfn.TEXTJOIN(";",1,ROW(INDIRECT(CONCATENATE("",A165*100+1,":",A165*100+Y165,""))),102),"") -> 911601;911602;911603;911604;911605;911606;911607;911608;911609;911610;911611;911612;911613;911614;911615;911616;911617;911618;911619;911620;102 | C165: 6 | D165: 2 | E165: 1 | F165: 0 | G165: 3 | K165: 30 | L165: 1 | M165: 1 | N165: 1 | O165: =CONCATENATE(VLOOKUP(M165,[2]PlacesConfig!$A:$C,3,FALSE),IF(N165="",""," - "&VLOOKUP(N165,[2]SmallPlacesConfig!$A:$G,7,FALSE))) -> 北海 - 海边 | Q165: =IF(R165="","",VLOOKUP(R165,条件类型查询!A:B,2,FALSE)) -> 拥有特定道具 | R165: 1 | S165: 20013 | T165: 3 | U165: 4249 | W165: 带回幽魂石 | X165: 幽魂 | Y165: =COUNTIF(EventLinkConfig!O:O,EventConfig!A165) -> 20
A166: 9117 | B166: =IF(Y166>0,_xlfn.TEXTJOIN(";",1,ROW(INDIRECT(CONCATENATE("",A166*100+1,":",A166*100+Y166,""))),102),"") -> 911701;911702;911703;911704;911705;911706;911707;911708;911709;911710;911711;102 | C166: 6 | D166: 2 | E166: 1 | F166: 0 | G166: 3 | K166: 30 | L166: 1 | M166: 1 | N166: 2 | O166: =CONCATENATE(VLOOKUP(M166,[2]PlacesConfig!$A:$C,3,FALSE),IF(N166="",""," - "&VLOOKUP(N166,[2]SmallPlacesConfig!$A:$G,7,FALSE))) -> 北海 - 秘境 | Q166: =IF(R166="","",VLOOKUP(R166,条件类型查询!A:B,2,FALSE)) ->  | T166: 3 | U166: 4250 | W166: 初遇馨儿 | X166: 馨儿 | Y166: =COUNTIF(EventLinkConfig!O:O,EventConfig!A166) -> 11
A167: 9118 | B167: =IF(Y167>0,_xlfn.TEXTJOIN(";",1,ROW(INDIRECT(CONCATENATE("",A167*100+1,":",A167*100+Y167,""))),102),"") -> 911801;911802;911803;911804;911805;911806;911807;911808;102 | C167: 6 | D167: 2 | E167: 1 | F167: 0 | G167: 3 | K167: 30 | L167: 1 | M167: 1 | N167: 2 | O167: =CONCATENATE(VLOOKUP(M167,[2]PlacesConfig!$A:$C,3,FALSE),IF(N167="",""," - "&VLOOKUP(N167,[2]SmallPlacesConfig!$A:$G,7,FALSE))) -> 北海 - 秘境 | Q167: =IF(R167="","",VLOOKUP(R167,条件类型查询!A:B,2,FALSE)) -> 前置事件 | R167: 10 | S167: =A166 -> 9117 | T167: 3 | U167: 4251 | W167: 迷雾妖怪 | X167: 馨儿 | Y167: =COUNTIF(EventLinkConfig!O:O,EventConfig!A167) -> 8
A168: 9119 | B168: =IF(Y168>0,_xlfn.TEXTJOIN(";",1,ROW(INDIRECT(CONCATENATE("",A168*100+1,":",A168*100+Y168,""))),102),"") -> 911901;911902;911903;911904;911905;911906;911907;911908;911909;911910;911911;911912;911913;102 | C168: 6 | D168: 2 | E168: 1 | F168: 0 | G168: 3 | K168: 30 | L168: 1 | M168: 1 | N168: 2 | O168: =CONCATENATE(VLOOKUP(M168,[2]PlacesConfig!$A:$C,3,FALSE),IF(N168="",""," - "&VLOOKUP(N168,[2]SmallPlacesConfig!$A:$G,7,FALSE))) -> 北海 - 秘境 | Q168: =IF(R168="","",VLOOKUP(R168,条件类型查询!A:B,2,FALSE)) -> 前置事件 | R168: 10 | S168: =A167 -> 9118 | T168: 3 | U168: 4252 | W168: 发现信使 | X168: 馨儿 | Y168: =COUNTIF(EventLinkConfig!O:O,EventConfig!A168) -> 13
A169: 9120 | B169: =IF(Y169>0,_xlfn.TEXTJOIN(";",1,ROW(INDIRECT(CONCATENATE("",A169*100+1,":",A169*100+Y169,""))),102),"") -> 912001;912002;912003;912004;912005;912006;912007;912008;102 | C169: 6 | D169: 2 | E169: 1 | F169: 0 | G169: 3 | K169: 30 | L169: 1 | M169: 1 | N169: 3 | O169: =CONCATENATE(VLOOKUP(M169,[2]PlacesConfig!$A:$C,3,FALSE),IF(N169="",""," - "&VLOOKUP(N169,[2]SmallPlacesConfig!$A:$G,7,FALSE))) -> 北海 - 浮岛 | Q169: =IF(R169="","",VLOOKUP(R169,条件类型查询!A:B,2,FALSE)) -> 前置事件 | R169: 10 | S169: =A168 -> 9119 | T169: 3 | U169: 4253 | W169: 风灵鸟的宝藏 | X169: 馨儿 | Y169: =COUNTIF(EventLinkConfig!O:O,EventConfig!A169) -> 8
A170: 9121 | B170: =IF(Y170>0,_xlfn.TEXTJOIN(";",1,ROW(INDIRECT(CONCATENATE("",A170*100+1,":",A170*100+Y170,""))),102),"") -> 912101;912102;912103;912104;912105;912106;102 | C170: 6 | D170: 2 | E170: 1 | F170: 0 | G170: 3 | K170: 30 | L170: 1 | M170: 1 | N170: 3 | O170: =CONCATENATE(VLOOKUP(M170,[2]PlacesConfig!$A:$C,3,FALSE),IF(N170="",""," - "&VLOOKUP(N170,[2]SmallPlacesConfig!$A:$G,7,FALSE))) -> 北海 - 浮岛 | Q170: =IF(R170="","",VLOOKUP(R170,条件类型查询!A:B,2,FALSE)) -> 前置事件 | R170: 10 | S170: =A169 -> 9120 | T170: 3 | U170: 4254 | W170: 浮岛灵泉的净化 | X170: 馨儿 | Y170: =COUNTIF(EventLinkConfig!O:O,EventConfig!A170) -> 6
A171: 9122 | B171: =IF(Y171>0,_xlfn.TEXTJOIN(";",1,ROW(INDIRECT(CONCATENATE("",A171*100+1,":",A171*100+Y171,""))),102),"") -> 912201;912202;912203;912204;912205;912206;912207;912208;912209;912210;912211;912212;912213;912214;912215;102 | C171: 6 | D171: 2 | E171: 1 | F171: 0 | G171: 3 | K171: 30 | L171: 1 | M171: 1 | N171: 3 | O171: =CONCATENATE(VLOOKUP(M171,[2]PlacesConfig!$A:$C,3,FALSE),IF(N171="",""," - "&VLOOKUP(N171,[2]SmallPlacesConfig!$A:$G,7,FALSE))) -> 北海 - 浮岛 | Q171: =IF(R171="","",VLOOKUP(R171,条件类型查询!A:B,2,FALSE)) -> 前置事件 | R171: 10 | S171: =A170 -> 9121 | T171: 3 | U171: 4255 | W171: 浮岛盗修的阴谋 | X171: 馨儿 | Y171: =COUNTIF(EventLinkConfig!O:O,EventConfig!A171) -> 15
A172: 9123 | B172: =IF(Y172>0,_xlfn.TEXTJOIN(";",1,ROW(INDIRECT(CONCATENATE("",A172*100+1,":",A172*100+Y172,""))),102),"") -> 912301;912302;912303;912304;912305;912306;912307;912308;912309;912310;912311;912312;912313;912314;912315;912316;912317;912318;912319;912320;912321;912322;912323;912324;912325;912326;912327;912328;912329;102 | C172: 6 | D172: 2 | E172: 1 | F172: 0 | G172: 3 | K172: 30 | L172: 1 | M172: 1 | N172: 4 | O172: =CONCATENATE(VLOOKUP(M172,[2]PlacesConfig!$A:$C,3,FALSE),IF(N172="",""," - "&VLOOKUP(N172,[2]SmallPlacesConfig!$A:$G,7,FALSE))) -> 北海 - 深处 | Q172: =IF(R172="","",VLOOKUP(R172,条件类型查询!A:B,2,FALSE)) ->  | T172: 3 | U172: 4256 | W172: 初遇柳轻烟 | X172: 柳轻烟 | Y172: =COUNTIF(EventLinkConfig!O:O,EventConfig!A172) -> 29
A173: 9124 | B173: =IF(Y173>0,_xlfn.TEXTJOIN(";",1,ROW(INDIRECT(CONCATENATE("",A173*100+1,":",A173*100+Y173,""))),102),"") -> 912401;912402;912403;102 | C173: 6 | D173: 2 | E173: 1 | F173: 0 | G173: 3 | K173: 30 | L173: 1 | M173: 1 | N173: 4 | O173: =CONCATENATE(VLOOKUP(M173,[2]PlacesConfig!$A:$C,3,FALSE),IF(N173="",""," - "&VLOOKUP(N173,[2]SmallPlacesConfig!$A:$G,7,FALSE))) -> 北海 - 深处 | Q173: =IF(R173="","",VLOOKUP(R173,条件类型查询!A:B,2,FALSE)) -> 前置事件 | R173: 10 | S173: =A172 -> 9123 | T173: 3 | U173: 4257 | W173: 找到血海宗的人 | X173: 柳轻烟 | Y173: =COUNTIF(EventLinkConfig!O:O,EventConfig!A173) -> 3
A174: 9125 | B174: =IF(Y174>0,_xlfn.TEXTJOIN(";",1,ROW(INDIRECT(CONCATENATE("",A174*100+1,":",A174*100+Y174,""))),102),"") -> 912501;912502;912503;102 | C174: 6 | D174: 2 | E174: 1 | F174: 0 | G174: 3 | I174: 20014 | J174: 1 | K174: 30 | L174: 1 | M174: 1 | N174: 4 | O174: =CONCATENATE(VLOOKUP(M174,[2]PlacesConfig!$A:$C,3,FALSE),IF(N174="",""," - "&VLOOKUP(N174,[2]SmallPlacesConfig!$A:$G,7,FALSE))) -> 北海 - 深处 | Q174: =IF(R174="","",VLOOKUP(R174,条件类型查询!A:B,2,FALSE)) -> 前置事件 | R174: 10 | S174: =A173 -> 9124 | T174: 3 | U174: 4258 | W174: 找到血海宗的人2 | X174: 柳轻烟 | Y174: =COUNTIF(EventLinkConfig!O:O,EventConfig!A174) -> 3 | AT174: 20014 | AU174: 1
A175: 9126 | B175: =IF(Y175>0,_xlfn.TEXTJOIN(";",1,ROW(INDIRECT(CONCATENATE("",A175*100+1,":",A175*100+Y175,""))),102),"") -> 912601;912602;912603;912604;102 | C175: 6 | D175: 2 | E175: 1 | F175: 0 | G175: 3 | K175: 30 | L175: 1 | M175: 1 | N175: 4 | O175: =CONCATENATE(VLOOKUP(M175,[2]PlacesConfig!$A:$C,3,FALSE),IF(N175="",""," - "&VLOOKUP(N175,[2]SmallPlacesConfig!$A:$G,7,FALSE))) -> 北海 - 深处 | Q175: =IF(R175="","",VLOOKUP(R175,条件类型查询!A:B,2,FALSE)) -> 前置事件 | R175: 10 | S175: =A174 -> 9125 | T175: 3 | U175: 4259 | W175: 回到柳轻烟交任务 | X175: 柳轻烟 | Y175: =COUNTIF(EventLinkConfig!O:O,EventConfig!A175) -> 4
A176: 9127 | B176: =IF(Y176>0,_xlfn.TEXTJOIN(";",1,ROW(INDIRECT(CONCATENATE("",A176*100+1,":",A176*100+Y176,""))),102),"") -> 912701;912702;912703;912704;912705;912706;912707;912708;912709;102 | C176: 6 | D176: 2 | E176: 1 | F176: 0 | G176: 3 | K176: 30 | L176: 1 | M176: 2 | N176: 5 | O176: =CONCATENATE(VLOOKUP(M176,[2]PlacesConfig!$A:$C,3,FALSE),IF(N176="",""," - "&VLOOKUP(N176,[2]SmallPlacesConfig!$A:$G,7,FALSE))) -> 尧之都 - 主城 | Q176: =IF(R176="","",VLOOKUP(R176,条件类型查询!A:B,2,FALSE)) ->  | T176: 3 | U176: 4260 | W176: 灵花 | X176: 馨儿 | Y176: =COUNTIF(EventLinkConfig!O:O,EventConfig!A176) -> 9
A177: 9128 | B177: =IF(Y177>0,_xlfn.TEXTJOIN(";",1,ROW(INDIRECT(CONCATENATE("",A177*100+1,":",A177*100+Y177,""))),102),"") -> 912801;912802;912803;912804;912805;912806;912807;102 | C177: 6 | D177: 2 | E177: 1 | F177: 0 | G177: 3 | K177: 30 | L177: 1 | M177: 2 | N177: 5 | O177: =CONCATENATE(VLOOKUP(M177,[2]PlacesConfig!$A:$C,3,FALSE),IF(N177="",""," - "&VLOOKUP(N177,[2]SmallPlacesConfig!$A:$G,7,FALSE))) -> 尧之都 - 主城 | Q177: =IF(R177="","",VLOOKUP(R177,条件类型查询!A:B,2,FALSE)) -> 前置事件 | R177: 10 | S177: =A176 -> 9127 | T177: 3 | U177: =U176+1 -> 4261 | W177: 散修劫掠 | X177: 馨儿 | Y177: =COUNTIF(EventLinkConfig!O:O,EventConfig!A177) -> 7
A178: 9129 | B178: =IF(Y178>0,_xlfn.TEXTJOIN(";",1,ROW(INDIRECT(CONCATENATE("",A178*100+1,":",A178*100+Y178,""))),102),"") -> 912901;912902;912903;912904;912905;912906;912907;912908;912909;912910;912911;912912;912913;912914;912915;102 | C178: 6 | D178: 2 | E178: 1 | F178: 0 | G178: 3 | K178: 30 | L178: 1 | M178: 2 | N178: 5 | O178: =CONCATENATE(VLOOKUP(M178,[2]PlacesConfig!$A:$C,3,FALSE),IF(N178="",""," - "&VLOOKUP(N178,[2]SmallPlacesConfig!$A:$G,7,FALSE))) -> 尧之都 - 主城 | Q178: =IF(R178="","",VLOOKUP(R178,条件类型查询!A:B,2,FALSE)) -> 前置事件 | R178: 10 | S178: =A177 -> 9128 | T178: 3 | U178: 4262 | W178: 散修劫掠2 | X178: 馨儿 | Y178: =COUNTIF(EventLinkConfig!O:O,EventConfig!A178) -> 15
A179: 9130 | B179: =IF(Y179>0,_xlfn.TEXTJOIN(";",1,ROW(INDIRECT(CONCATENATE("",A179*100+1,":",A179*100+Y179,""))),102),"") -> 913001;913002;913003;913004;913005;913006;913007;102 | C179: 6 | D179: 2 | E179: 1 | F179: 0 | G179: 3 | K179: 30 | L179: 1 | M179: 2 | N179: 5 | O179: =CONCATENATE(VLOOKUP(M179,[2]PlacesConfig!$A:$C,3,FALSE),IF(N179="",""," - "&VLOOKUP(N179,[2]SmallPlacesConfig!$A:$G,7,FALSE))) -> 尧之都 - 主城 | Q179: =IF(R179="","",VLOOKUP(R179,条件类型查询!A:B,2,FALSE)) ->  | T179: 3 | U179: 4263 | W179: 灵宝 | X179: 楚云缪 | Y179: =COUNTIF(EventLinkConfig!O:O,EventConfig!A179) -> 7
A180: 9131 | B180: =IF(Y180>0,_xlfn.TEXTJOIN(";",1,ROW(INDIRECT(CONCATENATE("",A180*100+1,":",A180*100+Y180,""))),102),"") -> 913101;913102;913103;913104;102 | C180: 6 | D180: 2 | E180: 1 | F180: 0 | G180: 3 | K180: 30 | L180: 1 | M180: 2 | N180: 5 | O180: =CONCATENATE(VLOOKUP(M180,[2]PlacesConfig!$A:$C,3,FALSE),IF(N180="",""," - "&VLOOKUP(N180,[2]SmallPlacesConfig!$A:$G,7,FALSE))) -> 尧之都 - 主城 | Q180: =IF(R180="","",VLOOKUP(R180,条件类型查询!A:B,2,FALSE)) -> 前置事件 | R180: 10 | S180: =A179 -> 9130 | T180: 3 | U180: 4264 | W180: 追逐抢夺之人 | X180: 楚云缪 | Y180: =COUNTIF(EventLinkConfig!O:O,EventConfig!A180) -> 4
A181: 9132 | B181: =IF(Y181>0,_xlfn.TEXTJOIN(";",1,ROW(INDIRECT(CONCATENATE("",A181*100+1,":",A181*100+Y181,""))),102),"") -> 913201;913202;913203;913204;913205;913206;913207;913208;913209;913210;913211;913212;913213;102 | C181: 6 | D181: 2 | E181: 1 | F181: 0 | G181: 3 | K181: 30 | L181: 1 | M181: 2 | N181: 5 | O181: =CONCATENATE(VLOOKUP(M181,[2]PlacesConfig!$A:$C,3,FALSE),IF(N181="",""," - "&VLOOKUP(N181,[2]SmallPlacesConfig!$A:$G,7,FALSE))) -> 尧之都 - 主城 | Q181: =IF(R181="","",VLOOKUP(R181,条件类型查询!A:B,2,FALSE)) -> 前置事件 | R181: 10 | S181: =A180 -> 9131 | T181: 3 | U181: 4265 | W181: 青狼散人 | X181: 楚云缪 | Y181: =COUNTIF(EventLinkConfig!O:O,EventConfig!A181) -> 13
A182: 9133 | B182: =IF(Y182>0,_xlfn.TEXTJOIN(";",1,ROW(INDIRECT(CONCATENATE("",A182*100+1,":",A182*100+Y182,""))),102),"") -> 913301;913302;913303;913304;913305;913306;913307;913308;913309;102 | C182: 6 | D182: 2 | E182: 1 | F182: 0 | G182: 3 | K182: 30 | L182: 1 | M182: 2 | N182: 6 | O182: =CONCATENATE(VLOOKUP(M182,[2]PlacesConfig!$A:$C,3,FALSE),IF(N182="",""," - "&VLOOKUP(N182,[2]SmallPlacesConfig!$A:$G,7,FALSE))) -> 尧之都 - 山林 | Q182: =IF(R182="","",VLOOKUP(R182,条件类型查询!A:B,2,FALSE)) ->  | T182: 3 | U182: 4266 | W182: 血海宗的掠夺 | X182: 血海宗的掠夺 | Y182: =COUNTIF(EventLinkConfig!O:O,EventConfig!A182) -> 9
A183: 9134 | B183: =IF(Y183>0,_xlfn.TEXTJOIN(";",1,ROW(INDIRECT(CONCATENATE("",A183*100+1,":",A183*100+Y183,""))),102),"") -> 913401;913402;913403;913404;913405;913406;913407;913408;913409;913410;913411;913412;913413;913414;913415;913416;913417;102 | C183: 6 | D183: 2 | E183: 1 | F183: 0 | G183: 3 | K183: 30 | L183: 1 | M183: 2 | N183: 6 | O183: =CONCATENATE(VLOOKUP(M183,[2]PlacesConfig!$A:$C,3,FALSE),IF(N183="",""," - "&VLOOKUP(N183,[2]SmallPlacesConfig!$A:$G,7,FALSE))) -> 尧之都 - 山林 | Q183: =IF(R183="","",VLOOKUP(R183,条件类型查询!A:B,2,FALSE)) -> 前置事件 | R183: 10 | S183: =A182 -> 9133 | T183: 3 | U183: 4267 | W183: 逃离追杀 | X183: 林风 | Y183: =COUNTIF(EventLinkConfig!O:O,EventConfig!A183) -> 17
A184: 9135 | B184: =IF(Y184>0,_xlfn.TEXTJOIN(";",1,ROW(INDIRECT(CONCATENATE("",A184*100+1,":",A184*100+Y184,""))),102),"") -> 913501;913502;913503;913504;102 | C184: 6 | D184: 2 | E184: 1 | F184: 0 | G184: 3 | K184: 30 | L184: 1 | M184: 2 | N184: 6 | O184: =CONCATENATE(VLOOKUP(M184,[2]PlacesConfig!$A:$C,3,FALSE),IF(N184="",""," - "&VLOOKUP(N184,[2]SmallPlacesConfig!$A:$G,7,FALSE))) -> 尧之都 - 山林 | Q184: =IF(R184="","",VLOOKUP(R184,条件类型查询!A:B,2,FALSE)) -> 前置事件 | R184: 10 | S184: =A183 -> 9134 | T184: 3 | U184: 4268 | W184: 血海宗弟子 | X184: 林风 | Y184: =COUNTIF(EventLinkConfig!O:O,EventConfig!A184) -> 4
A185: 9136 | B185: =IF(Y185>0,_xlfn.TEXTJOIN(";",1,ROW(INDIRECT(CONCATENATE("",A185*100+1,":",A185*100+Y185,""))),102),"") -> 913601;913602;913603;913604;913605;102 | C185: 6 | D185: 2 | E185: 1 | F185: 0 | G185: 3 | K185: 30 | L185: 1 | M185: 2 | N185: 6 | O185: =CONCATENATE(VLOOKUP(M185,[2]PlacesConfig!$A:$C,3,FALSE),IF(N185="",""," - "&VLOOKUP(N185,[2]SmallPlacesConfig!$A:$G,7,FALSE))) -> 尧之都 - 山林 | Q185: =IF(R185="","",VLOOKUP(R185,条件类型查询!A:B,2,FALSE)) -> 前置事件 | R185: 10 | S185: =A184 -> 9135 | T185: 3 | U185: 4269 | W185: 柳清清 | X185: 林风 | Y185: =COUNTIF(EventLinkConfig!O:O,EventConfig!A185) -> 5
A186: 9137 | B186: =IF(Y186>0,_xlfn.TEXTJOIN(";",1,ROW(INDIRECT(CONCATENATE("",A186*100+1,":",A186*100+Y186,""))),102),"") -> 913701;913702;913703;913704;913705;913706;913707;102 | C186: 6 | D186: 2 | E186: 1 | F186: 0 | G186: 3 | K186: 30 | L186: 1 | M186: 2 | N186: 6 | O186: =CONCATENATE(VLOOKUP(M186,[2]PlacesConfig!$A:$C,3,FALSE),IF(N186="",""," - "&VLOOKUP(N186,[2]SmallPlacesConfig!$A:$G,7,FALSE))) -> 尧之都 - 山林 | Q186: =IF(R186="","",VLOOKUP(R186,条件类型查询!A:B,2,FALSE)) -> 前置事件 | R186: 10 | S186: =A185 -> 9136 | T186: 3 | U186: 4270 | W186: 玄冥晶再被盗 | X186: 林风 | Y186: =COUNTIF(EventLinkConfig!O:O,EventConfig!A186) -> 7
A187: 9138 | B187: =IF(Y187>0,_xlfn.TEXTJOIN(";",1,ROW(INDIRECT(CONCATENATE("",A187*100+1,":",A187*100+Y187,""))),102),"") -> 913801;913802;913803;913804;913805;913806;913807;913808;913809;102 | C187: 6 | D187: 2 | E187: 1 | F187: 0 | G187: 3 | K187: 30 | L187: 1 | M187: 2 | N187: 6 | O187: =CONCATENATE(VLOOKUP(M187,[2]PlacesConfig!$A:$C,3,FALSE),IF(N187="",""," - "&VLOOKUP(N187,[2]SmallPlacesConfig!$A:$G,7,FALSE))) -> 尧之都 - 山林 | Q187: =IF(R187="","",VLOOKUP(R187,条件类型查询!A:B,2,FALSE)) -> 前置事件 | R187: 10 | S187: =A189 -> 9140 | T187: 3 | U187: 4271 | W187: 带回玄冥晶 | X187: 林风 | Y187: =COUNTIF(EventLinkConfig!O:O,EventConfig!A187) -> 9
A188: 9139 | B188: =IF(Y188>0,_xlfn.TEXTJOIN(";",1,ROW(INDIRECT(CONCATENATE("",A188*100+1,":",A188*100+Y188,""))),102),"") -> 913901;913902;913903;913904;913905;913906;913907;913908;913909;102 | C188: 6 | D188: 2 | E188: 1 | F188: 0 | G188: 3 | K188: 30 | L188: 1 | M188: 2 | N188: 7 | O188: =CONCATENATE(VLOOKUP(M188,[2]PlacesConfig!$A:$C,3,FALSE),IF(N188="",""," - "&VLOOKUP(N188,[2]SmallPlacesConfig!$A:$G,7,FALSE))) -> 尧之都 - 郊外 | Q188: =IF(R188="","",VLOOKUP(R188,条件类型查询!A:B,2,FALSE)) ->  | T188: 3 | U188: 4272 | W188: 夺晶之战 | X188: 林风后续 | Y188: =COUNTIF(EventLinkConfig!O:O,EventConfig!A188) -> 9
A189: 9140 | B189: =IF(Y189>0,_xlfn.TEXTJOIN(";",1,ROW(INDIRECT(CONCATENATE("",A189*100+1,":",A189*100+Y189,""))),102),"") -> 914001;914002;914003;102 | C189: 6 | D189: 2 | E189: 1 | F189: 0 | G189: 3 | K189: 30 | L189: 1 | M189: 2 | N189: 7 | O189: =CONCATENATE(VLOOKUP(M189,[2]PlacesConfig!$A:$C,3,FALSE),IF(N189="",""," - "&VLOOKUP(N189,[2]SmallPlacesConfig!$A:$G,7,FALSE))) -> 尧之都 - 郊外 | Q189: =IF(R189="","",VLOOKUP(R189,条件类型查询!A:B,2,FALSE)) -> 前置事件 | R189: 10 | S189: =A188 -> 9139 | T189: 3 | U189: 4273 | W189: 夺晶之战2-援军 | X189: 林风后续 | Y189: =COUNTIF(EventLinkConfig!O:O,EventConfig!A189) -> 3
A190: 9141 | B190: =IF(Y190>0,_xlfn.TEXTJOIN(";",1,ROW(INDIRECT(CONCATENATE("",A190*100+1,":",A190*100+Y190,""))),102),"") -> 914101;914102;914103;914104;914105;914106;914107;914108;102 | C190: 6 | D190: 2 | E190: 1 | F190: 0 | G190: 3 | K190: 30 | L190: 1 | M190: 3 | N190: 8 | O190: =CONCATENATE(VLOOKUP(M190,[2]PlacesConfig!$A:$C,3,FALSE),IF(N190="",""," - "&VLOOKUP(N190,[2]SmallPlacesConfig!$A:$G,7,FALSE))) -> 藐姑射山 - 山脚 | Q190: =IF(R190="","",VLOOKUP(R190,条件类型查询!A:B,2,FALSE)) ->  | T190: 3 | U190: 4274 | W190: 灵泉 | X190: 玄水真人 | Y190: =COUNTIF(EventLinkConfig!O:O,EventConfig!A190) -> 8
A191: 9142 | B191: =IF(Y191>0,_xlfn.TEXTJOIN(";",1,ROW(INDIRECT(CONCATENATE("",A191*100+1,":",A191*100+Y191,""))),102),"") -> 914201;914202;914203;914204;914205;914206;102 | C191: 6 | D191: 2 | E191: 1 | F191: 0 | G191: 3 | K191: 30 | L191: 1 | M191: 3 | N191: 8 | O191: =CONCATENATE(VLOOKUP(M191,[2]PlacesConfig!$A:$C,3,FALSE),IF(N191="",""," - "&VLOOKUP(N191,[2]SmallPlacesConfig!$A:$G,7,FALSE))) -> 藐姑射山 - 山脚 | Q191: =IF(R191="","",VLOOKUP(R191,条件类型查询!A:B,2,FALSE)) -> 前置事件 | R191: 10 | S191: 30023 | T191: 3 | U191: 4277 | W191: 灵泉异动平息 | X191: 玄水真人 | Y191: =COUNTIF(EventLinkConfig!O:O,EventConfig!A191) -> 6
A192: 9143 | B192: =IF(Y192>0,_xlfn.TEXTJOIN(";",1,ROW(INDIRECT(CONCATENATE("",A192*100+1,":",A192*100+Y192,""))),102),"") -> 914301;914302;914303;914304;914305;914306;914307;914308;914309;914310;914311;914312;914313;102 | C192: 6 | D192: 2 | E192: 1 | F192: 0 | G192: 3 | K192: 30 | L192: 1 | M192: 3 | N192: 9 | O192: =CONCATENATE(VLOOKUP(M192,[2]PlacesConfig!$A:$C,3,FALSE),IF(N192="",""," - "&VLOOKUP(N192,[2]SmallPlacesConfig!$A:$G,7,FALSE))) -> 藐姑射山 - 山径 | Q192: =IF(R192="","",VLOOKUP(R192,条件类型查询!A:B,2,FALSE)) ->  | T192: 3 | U192: =U191+1 -> 4278 | W192: 在遇馨儿 | X192: 馨儿 | Y192: =COUNTIF(EventLinkConfig!O:O,EventConfig!A192) -> 13
A193: 9144 | B193: =IF(Y193>0,_xlfn.TEXTJOIN(";",1,ROW(INDIRECT(CONCATENATE("",A193*100+1,":",A193*100+Y193,""))),102),"") -> 914401;914402;914403;102 | C193: 6 | D193: 2 | E193: 1 | F193: 0 | G193: 3 | K193: 30 | L193: 1 | M193: 3 | N193: 9 | O193: =CONCATENATE(VLOOKUP(M193,[2]PlacesConfig!$A:$C,3,FALSE),IF(N193="",""," - "&VLOOKUP(N193,[2]SmallPlacesConfig!$A:$G,7,FALSE))) -> 藐姑射山 - 山径 | Q193: =IF(R193="","",VLOOKUP(R193,条件类型查询!A:B,2,FALSE)) -> 前置事件 | R193: 10 | S193: 30024 | T193: 3 | U193: =U192+1 -> 4279 | W193: 清理山间的妖物 | X193: 馨儿 | Y193: =COUNTIF(EventLinkConfig!O:O,EventConfig!A193) -> 3
A194: 9145 | B194: =IF(Y194>0,_xlfn.TEXTJOIN(";",1,ROW(INDIRECT(CONCATENATE("",A194*100+1,":",A194*100+Y194,""))),102),"") -> 914501;914502;914503;914504;914505;914506;914507;914508;914509;914510;914511;914512;914513;102 | C194: 6 | D194: 2 | E194: 1 | F194: 0 | G194: 3 | K194: 30 | L194: 1 | M194: 3 | N194: 10 | O194: =CONCATENATE(VLOOKUP(M194,[2]PlacesConfig!$A:$C,3,FALSE),IF(N194="",""," - "&VLOOKUP(N194,[2]SmallPlacesConfig!$A:$G,7,FALSE))) -> 藐姑射山 - 山顶 | Q194: =IF(R194="","",VLOOKUP(R194,条件类型查询!A:B,2,FALSE)) -> 前置事件 | R194: 10 | S194: =A193 -> 9144 | T194: 3 | U194: =U193+1 -> 4280 | W194: 仙山异样的秘密 | X194: 仙山异样 | Y194: =COUNTIF(EventLinkConfig!O:O,EventConfig!A194) -> 13
A195: 9146 | B195: =IF(Y195>0,_xlfn.TEXTJOIN(";",1,ROW(INDIRECT(CONCATENATE("",A195*100+1,":",A195*100+Y195,""))),102),"") -> 914601;914602;914603;914604;914605;914606;914607;914608;914609;914610;914611;102 | C195: 6 | D195: 2 | E195: 1 | F195: 0 | G195: 3 | K195: 30 | L195: 1 | M195: 3 | N195: 10 | O195: =CONCATENATE(VLOOKUP(M195,[2]PlacesConfig!$A:$C,3,FALSE),IF(N195="",""," - "&VLOOKUP(N195,[2]SmallPlacesConfig!$A:$G,7,FALSE))) -> 藐姑射山 - 山顶 | Q195: =IF(R195="","",VLOOKUP(R195,条件类型查询!A:B,2,FALSE)) -> 前置事件 | R195: 10 | S195: =A194 -> 9145 | T195: 3 | U195: =U194+1 -> 4281 | W195: 圣地门前 | X195: 仙山异样 | Y195: =COUNTIF(EventLinkConfig!O:O,EventConfig!A195) -> 11

Sheet EventLinkConfig
A1: ID | B1: conciseEventMessage | D1: EventConditionMessage | G1: PreShow | H1: PreShowPar | J1: NPCID | L1: LanID | N1: DialogueType | O1: EventID | Q1: ConditionId | U1: optionType | V1: optionPara1 | W1: optionPara2 | AD1: PrizeIDs | AE1: PrizeNums | AF1: ResultType | AG1: ResultOptions
A2: int | B2: int | D2: int | G2: int | H2: int | J2: int | L2: int[] | N2: int | O2: int | Q2: int[] | U2: int | V2: int[] | W2: int[] | AD2: int[] | AE2: int[] | AF2: int | AG2: int[]
C3: 5001 | AI3: 5000
A4: ID | B4: 任务列表中的简洁描述 | C4: 任务列表中的简洁描述 | D4: 无任务目标时的补充文本 | E4: 无任务目标时的补充文本 | G4: 前置表现 1飞行 | H4: 前置表现参数 | J4: 对话NPCID 空白=不显示 100=玩家 | K4: NPC | L4: 对话 | M4: 对话1 | N4: 对话框类型 | O4: 属于哪个事件 | P4: 步骤 | Q4: 条件判断类型 | R4: 任务目标1 | S4: 任务目标2 | T4: 条件判断内容 | U4: 步骤类型 1=提供选项 2=进入战斗 5=自动退出 3=获得奖励 4=扣除道具 | V4: 事件常量1 1=步骤IDs 2=战斗ID | W4: 事件常量2 1=事件文本 | X4: 选择1 | Y4: 选择1 步骤：填选项文本1 战斗：填战斗ID | Z4: 选择1 步骤1：跳转到哪一步 不填默认跳转到下一步 | AA4: 选择2 | AB4: 选择2 步骤：填选项文本2 | AC4: 选择1 步骤2：跳转到哪一步 不填默认跳转到下一步 | AD4: 事件结局奖励 | AE4: 事件结局奖励数量 | AF4: 事件结束类型 1：跳转步骤 2：根据战斗结果跳转 3.触发新事件 | AG4: 事件结局后提供的选项 1.EventLinkId 2.胜利id;失败id 3.EventConfigId | AH4: 1.步骤ID（不填默认为下一个步骤ID） 2.胜利ID（不填默认为下一个步骤ID） 3.事件ID（不填默认为下一个事件ID） | AI4: 语言表最大值
A5: 100 | B5: =IF(C5="","",IF(C5=C4,B4,MAX(AI4,AI3)+1)) ->  | D5: =IF(E5="","",IF(E5=E4,D4,MAX(AI4,AI3,B5)+1)) ->  | L5: =IF(M5="","",MAX(AI4,AI3,B5,D5)+1) -> 5001 | M5: 你被怪物击败，神识也随之消散了。 | P5: =IF(O5="","",IF(O5=O4,P4+1,1)) ->  | Q5: =_xlfn.TEXTJOIN(";",1,R5:S5) ->  | T5: =IF(R5="","","-"&VLOOKUP(R5,EventConditionConfig!A:C,3,FALSE)&IF(S5="","",CHAR(10)&"-"&VLOOKUP(S5,EventConditionConfig!A:C,3,FALSE))) ->  | X5: =IF(OR(ISNUMBER(Y5),Y5=""),"",MAX(AI4,AI3,B5,D5,L5)+1) ->  | AA5: =IF(OR(ISNUMBER(AB5),AB5=""),"",X5+1) ->  | AI5: =IF(A5="","",MAX(B5,D5,L5,X5,AA5,AI4,AI3)) -> 5001
A6: 101 | B6: =IF(C6="","",IF(C6=C5,B5,MAX(AI5,AI4)+1)) ->  | D6: =IF(E6="","",IF(E6=E5,D5,MAX(AI5,AI4,B6)+1)) ->  | L6: =IF(M6="","",MAX(AI5,AI4,B6,D6)+1) -> 5002 | M6: 你败下阵来，感到头晕目眩，试图努力回忆起刚才发生的事情。 | P6: =IF(O6="","",IF(O6=O5,P5+1,1)) ->  | Q6: =_xlfn.TEXTJOIN(";",1,R6:S6) ->  | T6: =IF(R6="","","-"&VLOOKUP(R6,EventConditionConfig!A:C,3,FALSE)&IF(S6="","",CHAR(10)&"-"&VLOOKUP(S6,EventConditionConfig!A:C,3,FALSE))) ->  | X6: =IF(OR(ISNUMBER(Y6),Y6=""),"",MAX(AI5,AI4,B6,D6,L6)+1) ->  | AA6: =IF(OR(ISNUMBER(AB6),AB6=""),"",X6+1) ->  | AI6: =IF(A6="","",MAX(B6,D6,L6,X6,AA6,AI5,AI4)) -> 5002
A7: 102 | L7: 5003 | M7: 战斗胜利，你的任务进度增加了。 | AI7: 5003
T8: =IF(R8="","","-"&VLOOKUP(R8,EventConditionConfig!A:C,3,FALSE)&IF(S8="","",CHAR(10)&"-"&VLOOKUP(S8,EventConditionConfig!A:C,3,FALSE))) -> 
A9: 1001 | J9: 2 | L9: 5004 | M9: 你遇到一只奄奄一息的野狼，从周围四散的血迹来看，想必它刚才经历了一场恶战。 | N9: 2 | O9: 1 | P9: 1 | T9: =IF(R9="","","-"&VLOOKUP(R9,EventConditionConfig!A:C,3,FALSE)&IF(S9="","",CHAR(10)&"-"&VLOOKUP(S9,EventConditionConfig!A:C,3,FALSE))) ->  | U9: 1 | V9: 1002;1003 | W9: 198;199 | X9: 5005 | Y9: 趁它虚弱赶紧除掉它！ | AA9: 5006 | AB9: 你不忍见它受苦，选择帮它减轻痛苦。 | AI9: 5006
A10: 1002 | L10: 5007 | M10: 野狼用它最后一口气，朝你扑了过来！ | N10: 2 | O10: 1 | P10: 2 | T10: =IF(R10="","","-"&VLOOKUP(R10,EventConditionConfig!A:C,3,FALSE)&IF(S10="","",CHAR(10)&"-"&VLOOKUP(S10,EventConditionConfig!A:C,3,FALSE))) ->  | U10: 2 | V10: 100001 | AF10: 2 | AG10: 1004;100 | AI10: 5007
A11: 1003 | L11: 5008 | M11: 你抽出匕首准备了结它的生命，却发现怀中还躺着一只刚出生的狼崽。 | N11: 2 | O11: 1 | P11: 3 | T11: =IF(R11="","","-"&VLOOKUP(R11,EventConditionConfig!A:C,3,FALSE)&IF(S11="","",CHAR(10)&"-"&VLOOKUP(S11,EventConditionConfig!A:C,3,FALSE))) ->  | U11: 1 | V11: 1005 | W11: 200 | AI11: 5008
A12: 1004 | L12: 5009 | M12: 随着你的最后一击，野狼应声倒下，你罔顾它幽怨的眼神，从它怀中拿走了一些财物。 | N12: 2 | O12: 1 | P12: 4 | T12: =IF(R12="","","-"&VLOOKUP(R12,EventConditionConfig!A:C,3,FALSE)&IF(S12="","",CHAR(10)&"-"&VLOOKUP(S12,EventConditionConfig!A:C,3,FALSE))) ->  | U12: 3 | AD12: 1002 | AE12: 100 | AI12: 5009
A13: 1005 | L13: 5010 | M13: 母狼似乎懂你要做什么，眼神归于平静。你终结了她，决定收养这只小狼仔。 | N13: 2 | O13: 1 | P13: 5 | T13: =IF(R13="","","-"&VLOOKUP(R13,EventConditionConfig!A:C,3,FALSE)&IF(S13="","",CHAR(10)&"-"&VLOOKUP(S13,EventConditionConfig!A:C,3,FALSE))) ->  | U13: 3 | AD13: 1001 | AE13: 50 | AI13: 5010
T14: =IF(R14="","","-"&VLOOKUP(R14,EventConditionConfig!A:C,3,FALSE)&IF(S14="","",CHAR(10)&"-"&VLOOKUP(S14,EventConditionConfig!A:C,3,FALSE))) -> 
A15: 1010 | L15: 5011 | M15: 从不远处传来刀剑声，听起来双方已经精疲力尽了。 | O15: 2 | P15: 1 | T15: =IF(R15="","","-"&VLOOKUP(R15,EventConditionConfig!A:C,3,FALSE)&IF(S15="","",CHAR(10)&"-"&VLOOKUP(S15,EventConditionConfig!A:C,3,FALSE))) ->  | U15: 1 | V15: 1011;1012 | W15: 201;202 | X15: 5012 | Y15: 去看看 | AA15: 5013 | AB15: (需拥有法宝凝神珠）听起来都是鸡毛蒜皮的小摩擦，你选择祭出凝神珠化解他们的怨气。 | AI15: 5013
A16: 1011 | L16: 5014 | M16: 你走进一看，原来是一伙山贼分赃不均内讧了起来。你看着旁边被砍的七零八落的轿子和这群山贼，选择怎么做呢： | O16: 2 | P16: 2 | T16: =IF(R16="","","-"&VLOOKUP(R16,EventConditionConfig!A:C,3,FALSE)&IF(S16="","",CHAR(10)&"-"&VLOOKUP(S16,EventConditionConfig!A:C,3,FALSE))) ->  | U16: 1 | V16: 1014;1015 | W16: 203;204 | X16: 5015 | Y16: 你顿时杀心四起，决定杀了贼寇，救出轿中之人 | AA16: 5016 | AB16: 盗贼们个个双眼杀的通红，你决定来个渔翁得利。 | AI16: 5016
A17: 1012 | L17: 5017 | M17: 法宝现身，效果立竿见影，刀剑声逐渐消失，这个世界安静了。 | O17: 2 | P17: 3 | T17: =IF(R17="","","-"&VLOOKUP(R17,EventConditionConfig!A:C,3,FALSE)&IF(S17="","",CHAR(10)&"-"&VLOOKUP(S17,EventConditionConfig!A:C,3,FALSE))) ->  | U17: 3 | AD17: 1001 | AE17: 10 | AI17: 5017 | AJ17: 1 | AK17: 1001;1
A18: 1014 | L18: 5018 | M18: 你怒斥贼寇的恶行，贼寇们被你激怒了，准备迎战！ | O18: 2 | P18: 4 | T18: =IF(R18="","","-"&VLOOKUP(R18,EventConditionConfig!A:C,3,FALSE)&IF(S18="","",CHAR(10)&"-"&VLOOKUP(S18,EventConditionConfig!A:C,3,FALSE))) ->  | U18: 2 | V18: 100002 | AF18: 2 | AG18: 1016;100 | AI18: 5018 | AJ18: 2 | AK18: 4;150
A19: 1015 | L19: 5019 | M19: 你趁人不备顺走了轿内主人的包裹，任留轿内人痛苦的挣扎。 | O19: 2 | P19: 5 | T19: =IF(R19="","","-"&VLOOKUP(R19,EventConditionConfig!A:C,3,FALSE)&IF(S19="","",CHAR(10)&"-"&VLOOKUP(S19,EventConditionConfig!A:C,3,FALSE))) ->  | U19: 3 | AD19: 1003 | AE19: 1000 | AI19: 5019
A20: 1016 | L20: 5020 | M20: 杀退贼寇，你上演了一出英雄救美的桥段。姑娘为了答谢你的救命之恩，将藏在贴身处的珍贵首饰赠与你作为定情信物。 | O20: 2 | P20: 6 | T20: =IF(R20="","","-"&VLOOKUP(R20,EventConditionConfig!A:C,3,FALSE)&IF(S20="","",CHAR(10)&"-"&VLOOKUP(S20,EventConditionConfig!A:C,3,FALSE))) ->  | AD20: 1001 | AE20: 200 | AI20: 5020
T21: =IF(R21="","","-"&VLOOKUP(R21,EventConditionConfig!A:C,3,FALSE)&IF(S21="","",CHAR(10)&"-"&VLOOKUP(S21,EventConditionConfig!A:C,3,FALSE))) -> 
A22: 1020 | L22: 5021 | M22: 从不远处传来刀剑声，听起来双方已经精疲力尽了。 | T22: =IF(R22="","","-"&VLOOKUP(R22,EventConditionConfig!A:C,3,FALSE)&IF(S22="","",CHAR(10)&"-"&VLOOKUP(S22,EventConditionConfig!A:C,3,FALSE))) ->  | U22: 1 | V22: 1021;1022 | W22: 201;202 | X22: 5022 | Y22: 去看看 | AA22: 5023 | AB22: 使用法宝息事宁人 | AI22: 5023
A23: 1021 | L23: 5024 | M23: 你走进一看，原来是一伙山贼抢了一名坐在官轿内的女子，因分赃不均内讧了起来。山贼二话不说就朝你冲了过来！ | T23: =IF(R23="","","-"&VLOOKUP(R23,EventConditionConfig!A:C,3,FALSE)&IF(S23="","",CHAR(10)&"-"&VLOOKUP(S23,EventConditionConfig!A:C,3,FALSE))) ->  | U23: 2 | V23: 100003 | AD23: 1002 | AE23: 100 | AF23: 2 | AG23: 1026;100 | AI23: 5024
A24: 1022 | L24: 5025 | M24: 法宝现身，效果立竿见影，刀剑声逐渐消失，这个世界安静了。 | T24: =IF(R24="","","-"&VLOOKUP(R24,EventConditionConfig!A:C,3,FALSE)&IF(S24="","",CHAR(10)&"-"&VLOOKUP(S24,EventConditionConfig!A:C,3,FALSE))) ->  | AD24: 1002 | AE24: 10 | AI24: 5025 | AJ24: 1 | AK24: 1001;1
A25: 1024 | L25: 5026 | M25: 你大声怒斥贼寇的恶行，贼首发现你了，准备迎战！ | T25: =IF(R25="","","-"&VLOOKUP(R25,EventConditionConfig!A:C,3,FALSE)&IF(S25="","",CHAR(10)&"-"&VLOOKUP(S25,EventConditionConfig!A:C,3,FALSE))) ->  | U25: 2 | V25: 100004 | AD25: 1004 | AE25: 100 | AF25: 2 | AG25: 1016;100 | AI25: 5026 | AJ25: 2 | AK25: 4;150
A26: 1025 | L26: 5027 | M26: 你趁人不备顺走了轿内主人的包裹，任留轿内人痛苦的挣扎。 | T26: =IF(R26="","","-"&VLOOKUP(R26,EventConditionConfig!A:C,3,FALSE)&IF(S26="","",CHAR(10)&"-"&VLOOKUP(S26,EventConditionConfig!A:C,3,FALSE))) ->  | U26: 3 | AD26: 1002 | AE26: 1000 | AI26: 5027
A27: 1026 | L27: 5028 | M27: 你将山贼们打的落花流水，成功吸引了山贼头子的注意。 | T27: =IF(R27="","","-"&VLOOKUP(R27,EventConditionConfig!A:C,3,FALSE)&IF(S27="","",CHAR(10)&"-"&VLOOKUP(S27,EventConditionConfig!A:C,3,FALSE))) ->  | U27: 1 | V27: 1024;1025 | W27: 205;206 | X27: 5029 | Y27: 选择正面迎战山贼头领（困难） | AA27: 5030 | AB27: 你决定避开山贼头领的视线，来个渔翁得利。 | AI27: 5030
T28: =IF(R28="","","-"&VLOOKUP(R28,EventConditionConfig!A:C,3,FALSE)&IF(S28="","",CHAR(10)&"-"&VLOOKUP(S28,EventConditionConfig!A:C,3,FALSE))) -> 
A29: 1030 | L29: 5031 | M29: 发现一个血迹斑斑的背包，好像刚刚发生了战斗，我翻翻背包... | O29: 4 | P29: 1 | T29: =IF(R29="","","-"&VLOOKUP(R29,EventConditionConfig!A:C,3,FALSE)&IF(S29="","",CHAR(10)&"-"&VLOOKUP(S29,EventConditionConfig!A:C,3,FALSE))) ->  | U29: 3 | AD29: 1002 | AE29: 10 | AI29: 5031
T30: =IF(R30="","","-"&VLOOKUP(R30,EventConditionConfig!A:C,3,FALSE)&IF(S30="","",CHAR(10)&"-"&VLOOKUP(S30,EventConditionConfig!A:C,3,FALSE))) -> 
A31: 1040 | L31: 5032 | M31: 啥也没有....除了钱 | O31: 5 | P31: 1 | T31: =IF(R31="","","-"&VLOOKUP(R31,EventConditionConfig!A:C,3,FALSE)&IF(S31="","",CHAR(10)&"-"&VLOOKUP(S31,EventConditionConfig!A:C,3,FALSE))) ->  | U31: 3 | AD31: 1002 | AE31: 10 | AI31: 5032
T32: =IF(R32="","","-"&VLOOKUP(R32,EventConditionConfig!A:C,3,FALSE)&IF(S32="","",CHAR(10)&"-"&VLOOKUP(S32,EventConditionConfig!A:C,3,FALSE))) -> 
A33: 1050 | L33: 5033 | M33: 两夫妻在吵架，似乎为了一件大事.. | O33: 6 | P33: 1 | T33: =IF(R33="","","-"&VLOOKUP(R33,EventConditionConfig!A:C,3,FALSE)&IF(S33="","",CHAR(10)&"-"&VLOOKUP(S33,EventConditionConfig!A:C,3,FALSE))) ->  | U33: 3 | AD33: 1002;1001 | AE33: 10;20 | AI33: 5033
T34: =IF(R34="","","-"&VLOOKUP(R34,EventConditionConfig!A:C,3,FALSE)&IF(S34="","",CHAR(10)&"-"&VLOOKUP(S34,EventConditionConfig!A:C,3,FALSE))) -> 
A35: 1060 | L35: 5034 | M35: 没有任何发现，但感觉空气很好....下次有空再来看看 | O35: 7 | P35: 1 | T35: =IF(R35="","","-"&VLOOKUP(R35,EventConditionConfig!A:C,3,FALSE)&IF(S35="","",CHAR(10)&"-"&VLOOKUP(S35,EventConditionConfig!A:C,3,FALSE))) ->  | AI35: 5034
T36: =IF(R36="","","-"&VLOOKUP(R36,EventConditionConfig!A:C,3,FALSE)&IF(S36="","",CHAR(10)&"-"&VLOOKUP(S36,EventConditionConfig!A:C,3,FALSE))) -> 
A37: =O37*100+P37 -> 1101 | L37: 5035 | M37: 你遇到一只拦路的妖兽，它看起来饥肠辘辘 | O37: 11 | P37: 1 | T37: =IF(R37="","","-"&VLOOKUP(R37,EventConditionConfig!A:C,3,FALSE)&IF(S37="","",CHAR(10)&"-"&VLOOKUP(S37,EventConditionConfig!A:C,3,FALSE))) ->  | AF37: 1 | AG37: =A38 -> 1102 | AI37: 5035
A38: =O38*100+P38 -> 1102 | L38: 5036 | M38: 你扔出一块鹿肉，趁它抢食之际，你祭出腰间的法宝 | O38: 11 | P38: 2 | T38: =IF(R38="","","-"&VLOOKUP(R38,EventConditionConfig!A:C,3,FALSE)&IF(S38="","",CHAR(10)&"-"&VLOOKUP(S38,EventConditionConfig!A:C,3,FALSE))) ->  | AF38: 1 | AG38: =A39 -> 1103 | AI38: 5036
A39: =O39*100+P39 -> 1103 | L39: 5037 | M39: 你成功诱捕了怪物，并从它身上吸取了一些修为 | O39: 11 | P39: 3 | Q39: =_xlfn.TEXTJOIN(";",1,R39:S39) ->  | T39: =IF(R39="","","-"&VLOOKUP(R39,EventConditionConfig!A:C,3,FALSE)&IF(S39="","",CHAR(10)&"-"&VLOOKUP(S39,EventConditionConfig!A:C,3,FALSE))) ->  | AI39: 5037
T40: =IF(R40="","","-"&VLOOKUP(R40,EventConditionConfig!A:C,3,FALSE)&IF(S40="","",CHAR(10)&"-"&VLOOKUP(S40,EventConditionConfig!A:C,3,FALSE))) -> 
A41: =O41*100+P41 -> 1201 | L41: 5038 | M41: 你偶遇一处仙气四溢无人生活的洞穴 | O41: 12 | P41: 1 | T41: =IF(R41="","","-"&VLOOKUP(R41,EventConditionConfig!A:C,3,FALSE)&IF(S41="","",CHAR(10)&"-"&VLOOKUP(S41,EventConditionConfig!A:C,3,FALSE))) ->  | AF41: 1 | AG41: =A42 -> 1202 | AI41: 5038
A42: =O42*100+P42 -> 1202 | L42: 5039 | M42: 不知哪位高人在洞穴内壁留下绝世秘籍 | O42: 12 | P42: 2 | T42: =IF(R42="","","-"&VLOOKUP(R42,EventConditionConfig!A:C,3,FALSE)&IF(S42="","",CHAR(10)&"-"&VLOOKUP(S42,EventConditionConfig!A:C,3,FALSE))) ->  | AF42: 1 | AG42: =A43 -> 1203 | AI42: 5039
A43: =O43*100+P43 -> 1203 | L43: 5040 | M43: 你仔细研读后，功法得到精进 | O43: 12 | P43: 3 | T43: =IF(R43="","","-"&VLOOKUP(R43,EventConditionConfig!A:C,3,FALSE)&IF(S43="","",CHAR(10)&"-"&VLOOKUP(S43,EventConditionConfig!A:C,3,FALSE))) ->  | AI43: 5040
T44: =IF(R44="","","-"&VLOOKUP(R44,EventConditionConfig!A:C,3,FALSE)&IF(S44="","",CHAR(10)&"-"&VLOOKUP(S44,EventConditionConfig!A:C,3,FALSE))) -> 
A45: =O45*100+P45 -> 1301 | L45: 5041 | M45: 你偶然发现一只枯萎的葫芦，但泛着蓝光 | O45: 13 | P45: 1 | T45: =IF(R45="","","-"&VLOOKUP(R45,EventConditionConfig!A:C,3,FALSE)&IF(S45="","",CHAR(10)&"-"&VLOOKUP(S45,EventConditionConfig!A:C,3,FALSE))) ->  | AF45: 1 | AG45: =A46 -> 1302 | AI45: 5041
A46: =O46*100+P46 -> 1302 | L46: 5042 | M46: 好奇的你凑近一看，不知谁将这件法宝遗落于此 | O46: 13 | P46: 2 | T46: =IF(R46="","","-"&VLOOKUP(R46,EventConditionConfig!A:C,3,FALSE)&IF(S46="","",CHAR(10)&"-"&VLOOKUP(S46,EventConditionConfig!A:C,3,FALSE))) ->  | AF46: 1 | AG46: =A47 -> 1303 | AI46: 5042
A47: 1303 | L47: 5043 | M47: 但法宝已经枯竭，你后悔没有早点发现它 | O47: 13 | P47: 3 | T47: =IF(R47="","","-"&VLOOKUP(R47,EventConditionConfig!A:C,3,FALSE)&IF(S47="","",CHAR(10)&"-"&VLOOKUP(S47,EventConditionConfig!A:C,3,FALSE))) ->  | AF47: 1 | AG47: =A48 -> 1304 | AI47: 5043
A48: 1304 | L48: 5044 | M48: 最后你从法宝中回收了一些玄晶 | O48: 13 | P48: 4 | T48: =IF(R48="","","-"&VLOOKUP(R48,EventConditionConfig!A:C,3,FALSE)&IF(S48="","",CHAR(10)&"-"&VLOOKUP(S48,EventConditionConfig!A:C,3,FALSE))) ->  | AI48: 5044
T49: =IF(R49="","","-"&VLOOKUP(R49,EventConditionConfig!A:C,3,FALSE)&IF(S49="","",CHAR(10)&"-"&VLOOKUP(S49,EventConditionConfig!A:C,3,FALSE))) -> 
A50: =O50*100+P50 -> 1401 | L50: 5045 | M50: 你路过一座矿山，一个闪光点引起了你的注意 | O50: 14 | P50: 1 | Q50: =_xlfn.TEXTJOIN(";",1,R50:S50) ->  | T50: =IF(R50="","","-"&VLOOKUP(R50,EventConditionConfig!A:C,3,FALSE)&IF(S50="","",CHAR(10)&"-"&VLOOKUP(S50,EventConditionConfig!A:C,3,FALSE))) ->  | AF50: 1 | AG50: =A51 -> 1402 | AI50: 5045
A51: =O51*100+P51 -> 1402 | L51: 5046 | M51: 原来这是一颗珍贵的绿玛瑙 | O51: 14 | P51: 2 | T51: =IF(R51="","","-"&VLOOKUP(R51,EventConditionConfig!A:C,3,FALSE)&IF(S51="","",CHAR(10)&"-"&VLOOKUP(S51,EventConditionConfig!A:C,3,FALSE))) ->  | AF51: 1 | AG51: =A52 -> 1403 | AI51: 5046
A52: =O52*100+P52 -> 1403 | L52: 5047 | M52: 你祭出法宝，将它转化成一些灵石 | O52: 14 | P52: 3 | T52: =IF(R52="","","-"&VLOOKUP(R52,EventConditionConfig!A:C,3,FALSE)&IF(S52="","",CHAR(10)&"-"&VLOOKUP(S52,EventConditionConfig!A:C,3,FALSE))) ->  | AI52: 5047
A54: =O54*100+P54 -> 1501 | L54: 5048 | M54: 漫漫旅途，你通过神识释放增进不少阅历 | O54: 15 | P54: 1 | Q54: =_xlfn.TEXTJOIN(";",1,R54:S54) ->  | T54: =IF(R54="","","-"&VLOOKUP(R54,EventConditionConfig!A:C,3,FALSE)&IF(S54="","",CHAR(10)&"-"&VLOOKUP(S54,EventConditionConfig!A:C,3,FALSE))) ->  | AF54: 1 | AG54: =A55 -> 1502 | AI54: 5048
A55: =O55*100+P55 -> 1502 | L55: 5049 | M55: 但随之而来的是神识用尽的空虚感 | O55: 15 | P55: 2 | T55: =IF(R55="","","-"&VLOOKUP(R55,EventConditionConfig!A:C,3,FALSE)&IF(S55="","",CHAR(10)&"-"&VLOOKUP(S55,EventConditionConfig!A:C,3,FALSE))) ->  | AF55: 1 | AG55: =A56 -> 1503 | AI55: 5049
A56: =O56*100+P56 -> 1503 | L56: 5050 | M56: 但这种感受何尝又不是一种新的阅历呢 | O56: 15 | P56: 3 | T56: =IF(R56="","","-"&VLOOKUP(R56,EventConditionConfig!A:C,3,FALSE)&IF(S56="","",CHAR(10)&"-"&VLOOKUP(S56,EventConditionConfig!A:C,3,FALSE))) ->  | AF56: 1 | AG56: =A57 -> 1504 | AI56: 5050
A57: =O57*100+P57 -> 1504 | L57: 5051 | M57: 你将这些新的感悟存进了一颗神识丹 | O57: 15 | P57: 4 | Q57: =_xlfn.TEXTJOIN(";",1,R57:S57) ->  | T57: =IF(R57="","","-"&VLOOKUP(R57,EventConditionConfig!A:C,3,FALSE)&IF(S57="","",CHAR(10)&"-"&VLOOKUP(S57,EventConditionConfig!A:C,3,FALSE))) ->  | AI57: 5051
A59: =O59*100+P59 -> 1601 | L59: 5052 | M59: 两只体型硕大的妖兽正在为了一颗灵丹而缠斗 | O59: 16 | P59: 1 | Q59: =_xlfn.TEXTJOIN(";",1,R59:S59) ->  | T59: =IF(R59="","","-"&VLOOKUP(R59,EventConditionConfig!A:C,3,FALSE)&IF(S59="","",CHAR(10)&"-"&VLOOKUP(S59,EventConditionConfig!A:C,3,FALSE))) ->  | AF59: 1 | AG59: =A60 -> 1602 | AI59: 5052
A60: =O60*100+P60 -> 1602 | L60: 5053 | M60: 突然一道闪电自天而降，正中两只妖兽 | O60: 16 | P60: 2 | T60: =IF(R60="","","-"&VLOOKUP(R60,EventConditionConfig!A:C,3,FALSE)&IF(S60="","",CHAR(10)&"-"&VLOOKUP(S60,EventConditionConfig!A:C,3,FALSE))) ->  | AF60: 1 | AG60: =A61 -> 1603 | AI60: 5053
A61: =O61*100+P61 -> 1603 | L61: 5054 | M61: 何其悲哉，念完往生咒，你顺手拿走了这颗珍贵的妖丹 | O61: 16 | P61: 3 | T61: =IF(R61="","","-"&VLOOKUP(R61,EventConditionConfig!A:C,3,FALSE)&IF(S61="","",CHAR(10)&"-"&VLOOKUP(S61,EventConditionConfig!A:C,3,FALSE))) ->  | AI61: 5054
A63: 9003 | L63: 5055 | M63: 你在闭关修炼时，感受到一股凌厉的剑意波动。深入探查，发现一名白衣剑修“清霜”盘坐于谷中，周围剑气环绕，正与一柄散发不祥气息的灵剑对峙。她似在参悟剑诀，却灵气不足，剑灵桀骜。 | T63: =IF(R63="","","-"&VLOOKUP(R63,EventConditionConfig!A:C,3,FALSE)&IF(S63="","",CHAR(10)&"-"&VLOOKUP(S63,EventConditionConfig!A:C,3,FALSE))) ->  | U63: 1 | V63: 9004;9006 | W63: 2041;2042 | AI63: 5055
A64: 9004 | L64: 5056 | M64: 你上前以剑意对抗剑灵 | T64: =IF(R64="","","-"&VLOOKUP(R64,EventConditionConfig!A:C,3,FALSE)&IF(S64="","",CHAR(10)&"-"&VLOOKUP(S64,EventConditionConfig!A:C,3,FALSE))) ->  | U64: 2 | V64: 100001 | AF64: 2 | AG64: 9005;100 | AI64: 5056
A65: 9005 | L65: 5057 | M65: 成功压制剑灵，清霜赠你“霜华剑符”并结下道友之谊 | T65: =IF(R65="","","-"&VLOOKUP(R65,EventConditionConfig!A:C,3,FALSE)&IF(S65="","",CHAR(10)&"-"&VLOOKUP(S65,EventConditionConfig!A:C,3,FALSE))) ->  | AI65: 5057
A66: 9006 | L66: 5058 | M66: 你察觉谷中灵气匮乏，清霜剑意凝滞。神识探查得知，附近秘境可采集“玄冰花” | T66: =IF(R66="","","-"&VLOOKUP(R66,EventConditionConfig!A:C,3,FALSE)&IF(S66="","",CHAR(10)&"-"&VLOOKUP(S66,EventConditionConfig!A:C,3,FALSE))) ->  | AI66: 5058
A67: 9007 | L67: 5059 | M67: 献上玄冰花，清霜炼化灵气突破瓶颈，赠你“玄霜剑意” | T67: =IF(R67="","","-"&VLOOKUP(R67,EventConditionConfig!A:C,3,FALSE)&IF(S67="","",CHAR(10)&"-"&VLOOKUP(S67,EventConditionConfig!A:C,3,FALSE))) ->  | AF67: 1 | AG67: 9007 | AI67: 5059
A68: 9008 | T68: =IF(R68="","","-"&VLOOKUP(R68,EventConditionConfig!A:C,3,FALSE)&IF(S68="","",CHAR(10)&"-"&VLOOKUP(S68,EventConditionConfig!A:C,3,FALSE))) ->  | U68: 3 | AD68: 1001 | AE68: 999 | AI68: 5059
T69: =IF(R69="","","-"&VLOOKUP(R69,EventConditionConfig!A:C,3,FALSE)&IF(S69="","",CHAR(10)&"-"&VLOOKUP(S69,EventConditionConfig!A:C,3,FALSE))) -> 
A70: 9025 | B70: =IF(C70="","",IF(C70=C69,B69,MAX(AI69,AI68)+1)) ->  | D70: =IF(E70="","",IF(E70=E69,D69,MAX(AI69,AI68,B70)+1)) -> 5060 | E70: 和惠子交谈 | L70: =IF(M70="","",MAX(AI69,AI68,B70,D70)+1) -> 5061 | M70: 惠子种的葫芦没用，他非常生气，需要打败魔休 | P70: =IF(O70="","",IF(O70=O69,P69+1,1)) ->  | T70: =IF(R70="","","-"&VLOOKUP(R70,EventConditionConfig!A:C,3,FALSE)&IF(S70="","",CHAR(10)&"-"&VLOOKUP(S70,EventConditionConfig!A:C,3,FALSE))) ->  | U70: 1 | V70: 9026 | W70: 2075 | X70: =IF(OR(ISNUMBER(Y70),Y70=""),"",MAX(AI69,AI68,B70,D70,L70)+1) ->  | AA70: =IF(OR(ISNUMBER(AB70),AB70=""),"",X70+1) ->  | AI70: =IF(A70="","",MAX(B70,D70,L70,X70,AA70,AI69,AI68)) -> 5061
A71: 9026 | L71: 5062 | M71: 选择后接新的事件 | T71: =IF(R71="","","-"&VLOOKUP(R71,EventConditionConfig!A:C,3,FALSE)&IF(S71="","",CHAR(10)&"-"&VLOOKUP(S71,EventConditionConfig!A:C,3,FALSE))) ->  | X71: 5063 | Y71: 接受任务 | AF71: 3 | AG71: 9014 | AI71: 5063
T72: =IF(R72="","","-"&VLOOKUP(R72,EventConditionConfig!A:C,3,FALSE)&IF(S72="","",CHAR(10)&"-"&VLOOKUP(S72,EventConditionConfig!A:C,3,FALSE))) -> 
A73: 9014 | D73: 5064 | E73: 击杀魔休 | Q73: 3 | R73: 3 | T73: =IF(R73="","","-"&VLOOKUP(R73,EventConditionConfig!A:C,3,FALSE)&IF(S73="","",CHAR(10)&"-"&VLOOKUP(S73,EventConditionConfig!A:C,3,FALSE))) -> -击杀魔休 | AI73: 5064
Q74: =_xlfn.TEXTJOIN(";",1,R74:S74) ->  | T74: =IF(R74="","","-"&VLOOKUP(R74,EventConditionConfig!A:C,3,FALSE)&IF(S74="","",CHAR(10)&"-"&VLOOKUP(S74,EventConditionConfig!A:C,3,FALSE))) -> 
A75: 9031 | B75: 5065 | C75: 出现Boss魔修 | D75: 5066 | E75: 打败魔修 | T75: =IF(R75="","","-"&VLOOKUP(R75,EventConditionConfig!A:C,3,FALSE)&IF(S75="","",CHAR(10)&"-"&VLOOKUP(S75,EventConditionConfig!A:C,3,FALSE))) ->  | U75: 2 | V75: 100001 | AI75: 5066
B76: =IF(C76="","",IF(C76=C75,B75,MAX(AI75,AI74)+1)) -> 
A77: =O77*100+P77 -> 1000001 | B77: =IF(C77="","",IF(C77=C76,B76,MAX(AI76,AI75)+1)) ->  | K77: =IF(J77="","",VLOOKUP(J77,EventNPC!A:E,5,FALSE)) ->  | L77: 5067 | M77: （渡劫失败后，悬浮于混沌虚空，破碎道袍微微飘动，丹田空虚。） | O77: 10000 | P77: =IF(O77="","",IF(O77=O76,P76+1,1)) -> 1 | Q77: =_xlfn.TEXTJOIN(";",1,R77:S77) ->  | T77: =IF(R77="","","-"&VLOOKUP(R77,EventConditionConfig!A:C,3,FALSE)&IF(S77="","",CHAR(10)&"-"&VLOOKUP(S77,EventConditionConfig!A:C,3,FALSE))) ->  | U77: =IF(Y77="","",IF(ISTEXT(Y77),1,2)) ->  | V77: =IF(U77=1,_xlfn.TEXTJOIN(";",1,IF(Z77="",A77+1,Z77),IF(AND(AA77<>"",AC77=""),A77+1,AC77)),IF(U77=2,Y77,"")) ->  | W77: =_xlfn.TEXTJOIN(";",1,X77,AA77) ->  | X77: =IF(OR(ISNUMBER(Y77),Y77=""),"",MAX(AI76,AI74,B77,D77,L77)+1) ->  | AA77: =IF(OR(ISNUMBER(AB77),AB77=""),"",X77+1) ->  | AF77: =IF(A77="","",IF(ISNUMBER(Y77),2,IF(A78="",IF(OR(AH77>0,VLOOKUP(O77,EventConfig!A:C,3,FALSE)=4),3,""),1))) -> 1 | AG77: =IF(AF77="","",CHOOSE(AF77,IF(AH77="",A77+1,AH77),CONCATENATE(IF(AH77="",A77+1,AH77),";101"),IF(AH77="",O77+1,AH77))) -> 1000002 | AI77: 5067
A78: =O78*100+P78 -> 1000002 | J78: 100 | K78: =IF(J78="","",VLOOKUP(J78,EventNPC!A:E,5,FALSE)) -> 玩家 | L78: 5068 | M78: 还是做不到吗……多次渡劫，又功亏一篑！ | O78: 10000 | P78: =IF(O78="","",IF(O78=O77,P77+1,1)) -> 2 | Q78: =_xlfn.TEXTJOIN(";",1,R78:S78) ->  | T78: =IF(R78="","","-"&VLOOKUP(R78,EventConditionConfig!A:C,3,FALSE)&IF(S78="","",CHAR(10)&"-"&VLOOKUP(S78,EventConditionConfig!A:C,3,FALSE))) ->  | U78: =IF(Y78="","",IF(ISTEXT(Y78),1,2)) ->  | V78: =IF(U78=1,_xlfn.TEXTJOIN(";",1,IF(Z78="",A78+1,Z78),IF(AND(AA78<>"",AC78=""),A78+1,AC78)),IF(U78=2,Y78,"")) ->  | W78: =_xlfn.TEXTJOIN(";",1,X78,AA78) ->  | AF78: =IF(A78="","",IF(ISNUMBER(Y78),2,IF(A79="",IF(OR(AH78>0,VLOOKUP(O78,EventConfig!A:C,3,FALSE)=4),3,""),1))) -> 1 | AG78: =IF(AF78="","",CHOOSE(AF78,IF(AH78="",A78+1,AH78),CONCATENATE(IF(AH78="",A78+1,AH78),";101"),IF(AH78="",O78+1,AH78))) -> 1000003 | AI78: 5068
A79: =O79*100+P79 -> 1000003 | J79: 100 | K79: =IF(J79="","",VLOOKUP(J79,EventNPC!A:E,5,FALSE)) -> 玩家 | L79: 5069 | M79: 好在神魂未灭，不过一身修为几乎散尽，只剩练气修为…… | O79: 10000 | P79: =IF(O79="","",IF(O79=O78,P78+1,1)) -> 3 | Q79: =_xlfn.TEXTJOIN(";",1,R79:S79) ->  | T79: =IF(R79="","","-"&VLOOKUP(R79,EventConditionConfig!A:C,3,FALSE)&IF(S79="","",CHAR(10)&"-"&VLOOKUP(S79,EventConditionConfig!A:C,3,FALSE))) ->  | U79: =IF(Y79="","",IF(ISTEXT(Y79),1,2)) ->  | V79: =IF(U79=1,_xlfn.TEXTJOIN(";",1,IF(Z79="",A79+1,Z79),IF(AND(AA79<>"",AC79=""),A79+1,AC79)),IF(U79=2,Y79,"")) ->  | W79: =_xlfn.TEXTJOIN(";",1,X79,AA79) ->  | AF79: =IF(A79="","",IF(ISNUMBER(Y79),2,IF(A80="",IF(OR(AH79>0,VLOOKUP(O79,EventConfig!A:C,3,FALSE)=4),3,""),1))) -> 1 | AG79: 1000004 | AI79: 5069
A80: =O80*100+P80 -> 1000004 | J80: 100 | K80: =IF(J80="","",VLOOKUP(J80,EventNPC!A:E,5,FALSE)) -> 玩家 | L80: 5070 | M80: 此处是何地？ | O80: 10000 | P80: =IF(O80="","",IF(O80=O79,P79+1,1)) -> 4 | Q80: =_xlfn.TEXTJOIN(";",1,R80:S80) ->  | T80: =IF(R80="","","-"&VLOOKUP(R80,EventConditionConfig!A:C,3,FALSE)&IF(S80="","",CHAR(10)&"-"&VLOOKUP(S80,EventConditionConfig!A:C,3,FALSE))) ->  | U80: =IF(Y80="","",IF(ISTEXT(Y80),1,2)) ->  | V80: =IF(U80=1,_xlfn.TEXTJOIN(";",1,IF(Z80="",A80+1,Z80),IF(AND(AA80<>"",AC80=""),A80+1,AC80)),IF(U80=2,Y80,"")) ->  | W80: =_xlfn.TEXTJOIN(";",1,X80,AA80) ->  | AF80: =IF(A80="","",IF(ISNUMBER(Y80),2,IF(A81="",IF(OR(AH80>0,VLOOKUP(O80,EventConfig!A:C,3,FALSE)=4),3,""),1))) -> 1 | AG80: 1000005 | AI80: 5070
A81: =O81*100+P81 -> 1000005 | K81: =IF(J81="","",VLOOKUP(J81,EventNPC!A:E,5,FALSE)) ->  | L81: 5071 | M81: （虚空中，一块石碑若隐若现，上书：“无何有之乡”。） | O81: 10000 | P81: =IF(O81="","",IF(O81=O80,P80+1,1)) -> 5 | Q81: =_xlfn.TEXTJOIN(";",1,R81:S81) ->  | T81: =IF(R81="","","-"&VLOOKUP(R81,EventConditionConfig!A:C,3,FALSE)&IF(S81="","",CHAR(10)&"-"&VLOOKUP(S81,EventConditionConfig!A:C,3,FALSE))) ->  | U81: =IF(Y81="","",IF(ISTEXT(Y81),1,2)) ->  | V81: =IF(U81=1,_xlfn.TEXTJOIN(";",1,IF(Z81="",A81+1,Z81),IF(AND(AA81<>"",AC81=""),A81+1,AC81)),IF(U81=2,Y81,"")) ->  | W81: =_xlfn.TEXTJOIN(";",1,X81,AA81) ->  | AF81: =IF(A81="","",IF(ISNUMBER(Y81),2,IF(A82="",IF(OR(AH81>0,VLOOKUP(O81,EventConfig!A:C,3,FALSE)=4),3,""),1))) -> 1 | AG81: 1000006 | AI81: 5071
A82: =O82*100+P82 -> 1000006 | K82: =IF(J82="","",VLOOKUP(J82,EventNPC!A:E,5,FALSE)) ->  | L82: 5072 | M82: （忽然，一本古卷从天而落，落入掌中） | O82: 10000 | P82: =IF(O82="","",IF(O82=O81,P81+1,1)) -> 6 | Q82: =_xlfn.TEXTJOIN(";",1,R82:S82) ->  | T82: =IF(R82="","","-"&VLOOKUP(R82,EventConditionConfig!A:C,3,FALSE)&IF(S82="","",CHAR(10)&"-"&VLOOKUP(S82,EventConditionConfig!A:C,3,FALSE))) ->  | U82: =IF(Y82="","",IF(ISTEXT(Y82),1,2)) ->  | V82: =IF(U82=1,_xlfn.TEXTJOIN(";",1,IF(Z82="",A82+1,Z82),IF(AND(AA82<>"",AC82=""),A82+1,AC82)),IF(U82=2,Y82,"")) ->  | W82: =_xlfn.TEXTJOIN(";",1,X82,AA82) ->  | AF82: =IF(A82="","",IF(ISNUMBER(Y82),2,IF(A83="",IF(OR(AH82>0,VLOOKUP(O82,EventConfig!A:C,3,FALSE)=4),3,""),1))) -> 1 | AG82: 1000007 | AI82: 5072
A83: =O83*100+P83 -> 1000007 | K83: =IF(J83="","",VLOOKUP(J83,EventNPC!A:E,5,FALSE)) ->  | L83: 5073 | M83: （书封斑驳，触之微凉，似有灵气流转） | O83: 10000 | P83: =IF(O83="","",IF(O83=O82,P82+1,1)) -> 7 | Q83: =_xlfn.TEXTJOIN(";",1,R83:S83) ->  | T83: =IF(R83="","","-"&VLOOKUP(R83,EventConditionConfig!A:C,3,FALSE)&IF(S83="","",CHAR(10)&"-"&VLOOKUP(S83,EventConditionConfig!A:C,3,FALSE))) ->  | U83: =IF(Y83="","",IF(ISTEXT(Y83),1,2)) ->  | V83: =IF(U83=1,_xlfn.TEXTJOIN(";",1,IF(Z83="",A83+1,Z83),IF(AND(AA83<>"",AC83=""),A83+1,AC83)),IF(U83=2,Y83,"")) ->  | W83: =_xlfn.TEXTJOIN(";",1,X83,AA83) ->  | AF83: =IF(A83="","",IF(ISNUMBER(Y83),2,IF(A84="",IF(OR(AH83>0,VLOOKUP(O83,EventConfig!A:C,3,FALSE)=4),3,""),1))) -> 1 | AG83: 1000008 | AI83: 5073
A84: =O84*100+P84 -> 1000008 | K84: =IF(J84="","",VLOOKUP(J84,EventNPC!A:E,5,FALSE)) ->  | L84: 5074 | M84: （你翻开书页，不自觉的低声诵读..） | O84: 10000 | P84: =IF(O84="","",IF(O84=O83,P83+1,1)) -> 8 | Q84: =_xlfn.TEXTJOIN(";",1,R84:S84) ->  | T84: =IF(R84="","","-"&VLOOKUP(R84,EventConditionConfig!A:C,3,FALSE)&IF(S84="","",CHAR(10)&"-"&VLOOKUP(S84,EventConditionConfig!A:C,3,FALSE))) ->  | U84: =IF(Y84="","",IF(ISTEXT(Y84),1,2)) ->  | V84: =IF(U84=1,_xlfn.TEXTJOIN(";",1,IF(Z84="",A84+1,Z84),IF(AND(AA84<>"",AC84=""),A84+1,AC84)),IF(U84=2,Y84,"")) ->  | W84: =_xlfn.TEXTJOIN(";",1,X84,AA84) ->  | AF84: =IF(A84="","",IF(ISNUMBER(Y84),2,IF(A85="",IF(OR(AH84>0,VLOOKUP(O84,EventConfig!A:C,3,FALSE)=4),3,""),1))) -> 1 | AG84: 1000009 | AI84: 5074
A85: 1000009 | J85: 100 | K85: =IF(J85="","",VLOOKUP(J85,EventNPC!A:E,5,FALSE)) -> 玩家 | L85: 5075 | M85: 北冥有鱼，其名为鲲。鲲之大，不知其几千里也…… | O85: 10000 | P85: 9 | T85: =IF(R85="","","-"&VLOOKUP(R85,EventConditionConfig!A:C,3,FALSE)&IF(S85="","",CHAR(10)&"-"&VLOOKUP(S85,EventConditionConfig!A:C,3,FALSE))) ->  | AF85: =IF(A85="","",IF(ISNUMBER(Y85),2,IF(A86="",IF(OR(AH85>0,VLOOKUP(O85,EventConfig!A:C,3,FALSE)=4),3,""),1))) -> 1 | AG85: 1000010 | AI85: 5075
A86: 1000010 | K86: =IF(J86="","",VLOOKUP(J86,EventNPC!A:E,5,FALSE)) ->  | L86: 5076 | M86: （随着吟诵，泛起缕缕清气，虚空震颤，一道白鹤般的身影自混沌中现身，仙风道骨，目光如星。） | O86: 10000 | P86: 10 | T86: =IF(R86="","","-"&VLOOKUP(R86,EventConditionConfig!A:C,3,FALSE)&IF(S86="","",CHAR(10)&"-"&VLOOKUP(S86,EventConditionConfig!A:C,3,FALSE))) ->  | AF86: =IF(A86="","",IF(ISNUMBER(Y86),2,IF(A87="",IF(OR(AH86>0,VLOOKUP(O86,EventConfig!A:C,3,FALSE)=4),3,""),1))) -> 1 | AG86: 1000011 | AI86: 5076
A87: 1000011 | J87: 137 | K87: =IF(J87="","",VLOOKUP(J87,EventNPC!A:E,5,FALSE)) -> 冲虚真人 | L87: 5077 | M87: “小友的诵读，出自《逍遥游》。可知逍遥为何物？ | O87: 10000 | P87: 11 | T87: =IF(R87="","","-"&VLOOKUP(R87,EventConditionConfig!A:C,3,FALSE)&IF(S87="","",CHAR(10)&"-"&VLOOKUP(S87,EventConditionConfig!A:C,3,FALSE))) ->  | AF87: =IF(A87="","",IF(ISNUMBER(Y87),2,IF(A88="",IF(OR(AH87>0,VLOOKUP(O87,EventConfig!A:C,3,FALSE)=4),3,""),1))) -> 1 | AG87: 1000012 | AI87: 5077
A88: 1000012 | J88: 137 | K88: =IF(J88="","",VLOOKUP(J88,EventNPC!A:E,5,FALSE)) -> 冲虚真人 | L88: 5078 | M88: 鲲鹏扶摇九天，究竟是真实存在，还是心之所向？ | O88: 10000 | P88: 12 | T88: =IF(R88="","","-"&VLOOKUP(R88,EventConditionConfig!A:C,3,FALSE)&IF(S88="","",CHAR(10)&"-"&VLOOKUP(S88,EventConditionConfig!A:C,3,FALSE))) ->  | U88: 1 | V88: 1000013;1000014 | W88: 5079;5080 | X88: 5079 | Y88: 渡劫失败，谈何逍遥？晚辈只求重返仙途！ | Z88: =A89 -> 1000013 | AA88: 5080 | AB88: 何为逍遥？请前辈开示。 | AC88: =A90 -> 1000014 | AF88: =IF(A88="","",IF(ISNUMBER(Y88),2,IF(A89="",IF(OR(AH88>0,VLOOKUP(O88,EventConfig!A:C,3,FALSE)=4),3,""),1))) -> 1 | AG88: 1000013 | AI88: 5080
A89: 1000013 | J89: 137 | K89: =IF(J89="","",VLOOKUP(J89,EventNPC!A:E,5,FALSE)) -> 冲虚真人 | L89: 5081 | M89: 你虽执着于飞升，却屡败不悟，谈何仙途？ | O89: 10000 | P89: 13 | T89: =IF(R89="","","-"&VLOOKUP(R89,EventConditionConfig!A:C,3,FALSE)&IF(S89="","",CHAR(10)&"-"&VLOOKUP(S89,EventConditionConfig!A:C,3,FALSE))) ->  | AF89: =IF(A89="","",IF(ISNUMBER(Y89),2,IF(A90="",IF(OR(AH89>0,VLOOKUP(O89,EventConfig!A:C,3,FALSE)=4),3,""),1))) -> 1 | AG89: 1000015 | AH89: =A91 -> 1000015 | AI89: 5081
A90: 1000014 | J90: 137 | K90: =IF(J90="","",VLOOKUP(J90,EventNPC!A:E,5,FALSE)) -> 冲虚真人 | L90: 5082 | M90: 逍遥存于内心。你心有执念，怎得逍遥？ | O90: 10000 | P90: 14 | T90: =IF(R90="","","-"&VLOOKUP(R90,EventConditionConfig!A:C,3,FALSE)&IF(S90="","",CHAR(10)&"-"&VLOOKUP(S90,EventConditionConfig!A:C,3,FALSE))) ->  | AF90: =IF(A90="","",IF(ISNUMBER(Y90),2,IF(A91="",IF(OR(AH90>0,VLOOKUP(O90,EventConfig!A:C,3,FALSE)=4),3,""),1))) -> 1 | AG90: 1000015 | AH90: =A91 -> 1000015 | AI90: 5082
A91: =O91*100+P91 -> 1000015 | J91: 137 | K91: =IF(J91="","",VLOOKUP(J91,EventNPC!A:E,5,FALSE)) -> 冲虚真人 | L91: 5083 | M91: （冲虚真人扫过你破碎的道袍，叹息道）凡界、仙界、魔界，皆是棋盘，你只是棋子。 | O91: 10000 | P91: =IF(O91="","",IF(O91=O90,P90+1,1)) -> 15 | Q91: =_xlfn.TEXTJOIN(";",1,R91:S91) ->  | T91: =IF(R91="","","-"&VLOOKUP(R91,EventConditionConfig!A:C,3,FALSE)&IF(S91="","",CHAR(10)&"-"&VLOOKUP(S91,EventConditionConfig!A:C,3,FALSE))) ->  | U91: =IF(Y91="","",IF(ISTEXT(Y91),1,2)) ->  | V91: =IF(U91=1,_xlfn.TEXTJOIN(";",1,IF(Z91="",A91+1,Z91),IF(AND(AA91<>"",AC91=""),A91+1,AC91)),IF(U91=2,Y91,"")) ->  | W91: =_xlfn.TEXTJOIN(";",1,X91,AA91) ->  | AF91: =IF(A91="","",IF(ISNUMBER(Y91),2,IF(A92="",IF(OR(AH91>0,VLOOKUP(O91,EventConfig!A:C,3,FALSE)=4),3,""),1))) -> 1 | AG91: 1000016 | AI91: 5083
A92: =O92*100+P92 -> 1000016 | J92: 137 | K92: =IF(J92="","",VLOOKUP(J92,EventNPC!A:E,5,FALSE)) -> 冲虚真人 | L92: 5084 | M92: 若只是棋子，又如何能窥见天道？ | O92: 10000 | P92: =IF(O92="","",IF(O92=O91,P91+1,1)) -> 16 | Q92: =_xlfn.TEXTJOIN(";",1,R92:S92) ->  | T92: =IF(R92="","","-"&VLOOKUP(R92,EventConditionConfig!A:C,3,FALSE)&IF(S92="","",CHAR(10)&"-"&VLOOKUP(S92,EventConditionConfig!A:C,3,FALSE))) ->  | U92: =IF(Y92="","",IF(ISTEXT(Y92),1,2)) -> 1 | V92: =IF(U92=1,_xlfn.TEXTJOIN(";",1,IF(Z92="",A92+1,Z92),IF(AND(AA92<>"",AC92=""),A92+1,AC92)),IF(U92=2,Y92,"")) -> 1000017 | W92: =_xlfn.TEXTJOIN(";",1,X92,AA92) -> 5085 | X92: 5085 | Y92: 前辈说得玄妙，可有具体指引？ | Z92: =A93 -> 1000017 | AF92: =IF(A92="","",IF(ISNUMBER(Y92),2,IF(A93="",IF(OR(AH92>0,VLOOKUP(O92,EventConfig!A:C,3,FALSE)=4),3,""),1))) -> 1 | AG92: 1000017 | AI92: 5085
A93: 1000017 | J93: 137 | K93: =IF(J93="","",VLOOKUP(J93,EventNPC!A:E,5,FALSE)) -> 冲虚真人 | L93: 5086 | M93: 天机不可泄露。 （说罢，从袖中拿出一个风铃..） 但此风铃，可以为你指引前路。 | O93: 10000 | P93: 17 | T93: =IF(R93="","","-"&VLOOKUP(R93,EventConditionConfig!A:C,3,FALSE)&IF(S93="","",CHAR(10)&"-"&VLOOKUP(S93,EventConditionConfig!A:C,3,FALSE))) ->  | U93: 1 | V93: 1000018 | W93: 5087 | X93: 5087 | Y93: 多谢前辈赠铃.. | AF93: =IF(A93="","",IF(ISNUMBER(Y93),2,IF(A94="",IF(OR(AH93>0,VLOOKUP(O93,EventConfig!A:C,3,FALSE)=4),3,""),1))) -> 1 | AG93: 1000018 | AI93: 5087
A94: 1000018 | J94: 137 | K94: =IF(J94="","",VLOOKUP(J94,EventNPC!A:E,5,FALSE)) -> 冲虚真人 | L94: 5088 | M94: （凝视远方，喃喃道） 凡界有尧，欲让天下而不得其法； 惠子得大葫芦，却不知其用； 姑射仙山，藏无形之仙； 列子可御风而行，却任有所求。 （说完，便化作清风消散。） | O94: 10000 | P94: 18 | T94: =IF(R94="","","-"&VLOOKUP(R94,EventConditionConfig!A:C,3,FALSE)&IF(S94="","",CHAR(10)&"-"&VLOOKUP(S94,EventConditionConfig!A:C,3,FALSE))) ->  | AF94: =IF(A94="","",IF(ISNUMBER(Y94),2,IF(A95="",IF(OR(AH94>0,VLOOKUP(O94,EventConfig!A:C,3,FALSE)=4),3,""),1))) -> 1 | AG94: 1000019 | AI94: 5088
A95: =O95*100+P95 -> 1000019 | J95: 100 | K95: =IF(J95="","",VLOOKUP(J95,EventNPC!A:E,5,FALSE)) -> 玩家 | L95: 5089 | M95: ..... “逍遥之意，何处可寻？” | O95: 10000 | P95: =IF(O95="","",IF(O95=O94,P94+1,1)) -> 19 | Q95: =_xlfn.TEXTJOIN(";",1,R95:S95) ->  | T95: =IF(R95="","","-"&VLOOKUP(R95,EventConditionConfig!A:C,3,FALSE)&IF(S95="","",CHAR(10)&"-"&VLOOKUP(S95,EventConditionConfig!A:C,3,FALSE))) ->  | U95: =IF(Y95="","",IF(ISTEXT(Y95),1,2)) ->  | V95: =IF(U95=1,_xlfn.TEXTJOIN(";",1,IF(Z95="",A95+1,Z95),IF(AND(AA95<>"",AC95=""),A95+1,AC95)),IF(U95=2,Y95,"")) ->  | W95: =_xlfn.TEXTJOIN(";",1,X95,AA95) ->  | AF95: =IF(A95="","",IF(ISNUMBER(Y95),2,IF(A96="",IF(OR(AH95>0,VLOOKUP(O95,EventConfig!A:C,3,FALSE)=4),3,""),1))) -> 1 | AG95: 1000020 | AI95: 5089
A96: =O96*100+P96 -> 1000020 | J96: 100 | K96: =IF(J96="","",VLOOKUP(J96,EventNPC!A:E,5,FALSE)) -> 玩家 | L96: 5090 | M96: 算了，先看看这个风铃。 (你拿起刚刚获得的风铃，仔细看了一下) | O96: 10000 | P96: =IF(O96="","",IF(O96=O95,P95+1,1)) -> 20 | Q96: =_xlfn.TEXTJOIN(";",1,R96:S96) ->  | T96: =IF(R96="","","-"&VLOOKUP(R96,EventConditionConfig!A:C,3,FALSE)&IF(S96="","",CHAR(10)&"-"&VLOOKUP(S96,EventConditionConfig!A:C,3,FALSE))) ->  | U96: =IF(Y96="","",IF(ISTEXT(Y96),1,2)) ->  | V96: =IF(U96=1,_xlfn.TEXTJOIN(";",1,IF(Z96="",A96+1,Z96),IF(AND(AA96<>"",AC96=""),A96+1,AC96)),IF(U96=2,Y96,"")) ->  | W96: =_xlfn.TEXTJOIN(";",1,X96,AA96) ->  | AF96: =IF(A96="","",IF(ISNUMBER(Y96),2,IF(A97="",IF(OR(AH96>0,VLOOKUP(O96,EventConfig!A:C,3,FALSE)=4),3,""),1))) -> 1 | AG96: 1000021 | AI96: 5090
A97: =O97*100+P97 -> 1000021 | K97: =IF(J97="","",VLOOKUP(J97,EventNPC!A:E,5,FALSE)) ->  | L97: 5091 | M97: 铃身刻有“逍遥”二字，铃声清脆悠远，似有灵性，隐约指向北海. | O97: 10000 | P97: =IF(O97="","",IF(O97=O96,P96+1,1)) -> 21 | Q97: =_xlfn.TEXTJOIN(";",1,R97:S97) ->  | T97: =IF(R97="","","-"&VLOOKUP(R97,EventConditionConfig!A:C,3,FALSE)&IF(S97="","",CHAR(10)&"-"&VLOOKUP(S97,EventConditionConfig!A:C,3,FALSE))) ->  | U97: =IF(Y97="","",IF(ISTEXT(Y97),1,2)) ->  | V97: =IF(U97=1,_xlfn.TEXTJOIN(";",1,IF(Z97="",A97+1,Z97),IF(AND(AA97<>"",AC97=""),A97+1,AC97)),IF(U97=2,Y97,"")) ->  | W97: =_xlfn.TEXTJOIN(";",1,X97,AA97) ->  | AF97: =IF(A97="","",IF(ISNUMBER(Y97),2,IF(A98="",IF(OR(AH97>0,VLOOKUP(O97,EventConfig!A:C,3,FALSE)=4),3,""),1))) ->  | AI97: 5091
P98: =IF(O98="","",IF(O98=O75,P75+1,1)) ->  | T98: =IF(R98="","","-"&VLOOKUP(R98,EventConditionConfig!A:C,3,FALSE)&IF(S98="","",CHAR(10)&"-"&VLOOKUP(S98,EventConditionConfig!A:C,3,FALSE))) ->  | AF98: =IF(A98="","",IF(ISNUMBER(Y98),2,IF(A99="",IF(OR(AH98>0,VLOOKUP(O98,EventConfig!A:C,3,FALSE)=4),3,""),1))) -> 
A99: =O99*100+P99 -> 1000101 | B99: 5092 | C99: 使用风铃唤醒还未泯灭的神识 | L99: 5093 | M99: 北冥有鱼，其名为鲲…… | N99: 2 | O99: 10001 | P99: 1 | T99: =IF(R99="","","-"&VLOOKUP(R99,EventConditionConfig!A:C,3,FALSE)&IF(S99="","",CHAR(10)&"-"&VLOOKUP(S99,EventConditionConfig!A:C,3,FALSE))) ->  | AF99: =IF(A99="","",IF(ISNUMBER(Y99),2,IF(A100="",IF(OR(AH99>0,VLOOKUP(O99,EventConfig!A:C,3,FALSE)=4),3,""),1))) -> 1 | AG99: 1000102 | AI99: 5093
A100: =O100*100+P100 -> 1000102 | B100: 5092 | C100: 使用风铃唤醒还未泯灭的神识 | L100: 5094 | M100: 不过北海遥远，何时能寻得鲲鹏的踪迹。 | N100: 2 | O100: 10001 | P100: 2 | T100: =IF(R100="","","-"&VLOOKUP(R100,EventConditionConfig!A:C,3,FALSE)&IF(S100="","",CHAR(10)&"-"&VLOOKUP(S100,EventConditionConfig!A:C,3,FALSE))) ->  | AF100: =IF(A100="","",IF(ISNUMBER(Y100),2,IF(A101="",IF(OR(AH100>0,VLOOKUP(O100,EventConfig!A:C,3,FALSE)=4),3,""),1))) -> 1 | AG100: 1000103 | AI100: 5094
A101: =O101*100+P101 -> 1000103 | B101: 5092 | C101: 使用风铃唤醒还未泯灭的神识 | L101: 5095 | M101: 好在我的神识尚在，可探天地，再加上刚刚的风铃，或许能寻得前路线索。 | N101: 2 | O101: 10001 | P101: 3 | T101: =IF(R101="","","-"&VLOOKUP(R101,EventConditionConfig!A:C,3,FALSE)&IF(S101="","",CHAR(10)&"-"&VLOOKUP(S101,EventConditionConfig!A:C,3,FALSE))) ->  | AF101: =IF(A101="","",IF(ISNUMBER(Y101),2,IF(A102="",IF(OR(AH101>0,VLOOKUP(O101,EventConfig!A:C,3,FALSE)=4),3,""),1))) -> 1 | AG101: 1000104 | AI101: 5095
A102: =O102*100+P102 -> 1000104 | B102: 5092 | C102: 使用风铃唤醒还未泯灭的神识 | O102: 10001 | P102: 4 | Q102: 5 | R102: 5 | T102: =IF(R102="","","-"&VLOOKUP(R102,EventConditionConfig!A:C,3,FALSE)&IF(S102="","",CHAR(10)&"-"&VLOOKUP(S102,EventConditionConfig!A:C,3,FALSE))) -> -使用神识 | AF102: =IF(A102="","",IF(ISNUMBER(Y102),2,IF(A103="",IF(OR(AH102>0,VLOOKUP(O102,EventConfig!A:C,3,FALSE)=4),3,""),1))) -> 3 | AG102: 10002 | AI102: 5095
T103: =IF(R103="","","-"&VLOOKUP(R103,EventConditionConfig!A:C,3,FALSE)&IF(S103="","",CHAR(10)&"-"&VLOOKUP(S103,EventConditionConfig!A:C,3,FALSE))) ->  | AF103: =IF(A103="","",IF(ISNUMBER(Y103),2,IF(A104="",IF(OR(AH103>0,VLOOKUP(O103,EventConfig!A:C,3,FALSE)=4),3,""),1))) -> 
A104: =O104*100+P104 -> 1000201 | B104: 5096 | C104: 前往妖兽盘踞的地方 | D104: 5097 | E104: 御剑飞行 | L104: 5098 | M104: 神识发现有一条古径，隐于云山之间，不过似乎有妖兽盘踞。 | N104: 3 | O104: 10002 | P104: 1 | T104: =IF(R104="","","-"&VLOOKUP(R104,EventConditionConfig!A:C,3,FALSE)&IF(S104="","",CHAR(10)&"-"&VLOOKUP(S104,EventConditionConfig!A:C,3,FALSE))) ->  | AF104: =IF(A104="","",IF(ISNUMBER(Y104),2,IF(A105="",IF(OR(AH104>0,VLOOKUP(O104,EventConfig!A:C,3,FALSE)=4),3,""),1))) -> 1 | AG104: 1000202 | AI104: 5098
A105: =O105*100+P105 -> 1000202 | B105: 5096 | C105: 前往妖兽盘踞的地方 | D105: 5097 | E105: 御剑飞行 | L105: 5099 | M105: 没其他办法了，过去看看吧。 | N105: 3 | O105: 10002 | P105: 2 | T105: =IF(R105="","","-"&VLOOKUP(R105,EventConditionConfig!A:C,3,FALSE)&IF(S105="","",CHAR(10)&"-"&VLOOKUP(S105,EventConditionConfig!A:C,3,FALSE))) ->  | AF105: =IF(A105="","",IF(ISNUMBER(Y105),2,IF(A106="",IF(OR(AH105>0,VLOOKUP(O105,EventConfig!A:C,3,FALSE)=4),3,""),1))) -> 1 | AG105: 1000203 | AI105: 5099
A106: =O106*100+P106 -> 1000203 | B106: 5096 | C106: 前往妖兽盘踞的地方 | D106: 5097 | E106: 御剑飞行 | G106: 1 | H106: 5 | O106: 10002 | P106: 3 | T106: =IF(R106="","","-"&VLOOKUP(R106,EventConditionConfig!A:C,3,FALSE)&IF(S106="","",CHAR(10)&"-"&VLOOKUP(S106,EventConditionConfig!A:C,3,FALSE))) ->  | AF106: =IF(A106="","",IF(ISNUMBER(Y106),2,IF(A107="",IF(OR(AH106>0,VLOOKUP(O106,EventConfig!A:C,3,FALSE)=4),3,""),1))) -> 3 | AG106: 10003 | AI106: 5099
T107: =IF(R107="","","-"&VLOOKUP(R107,EventConditionConfig!A:C,3,FALSE)&IF(S107="","",CHAR(10)&"-"&VLOOKUP(S107,EventConditionConfig!A:C,3,FALSE))) ->  | AF107: =IF(A107="","",IF(ISNUMBER(Y107),2,IF(A108="",IF(OR(AH107>0,VLOOKUP(O107,EventConfig!A:C,3,FALSE)=4),3,""),1))) -> 
A108: 1000301 | B108: 5100 | C108: 蜩鸟和小麻雀对你的到来很好奇 | K108: =IF(J108="","",VLOOKUP(J108,EventNPC!A:E,5,FALSE)) ->  | L108: 5101 | M108: 应该就是这里了，似乎有古老的阵法挡住了去路 | O108: 10003 | P108: 1 | T108: =IF(R108="","","-"&VLOOKUP(R108,EventConditionConfig!A:C,3,FALSE)&IF(S108="","",CHAR(10)&"-"&VLOOKUP(S108,EventConditionConfig!A:C,3,FALSE))) ->  | AF108: =IF(A108="","",IF(ISNUMBER(Y108),2,IF(A109="",IF(OR(AH108>0,VLOOKUP(O108,EventConfig!A:C,3,FALSE)=4),3,""),1))) -> 1 | AG108: 1000302 | AI108: 5101
A109: =O109*100+P109 -> 1000302 | B109: 5100 | C109: 蜩鸟和小麻雀对你的到来很好奇 | K109: =IF(J109="","",VLOOKUP(J109,EventNPC!A:E,5,FALSE)) ->  | L109: 5102 | M109: （结界门前，三只小鸟飞来，落在一旁古松上） | O109: 10003 | P109: 2 | T109: =IF(R109="","","-"&VLOOKUP(R109,EventConditionConfig!A:C,3,FALSE)&IF(S109="","",CHAR(10)&"-"&VLOOKUP(S109,EventConditionConfig!A:C,3,FALSE))) ->  | AF109: =IF(A109="","",IF(ISNUMBER(Y109),2,IF(A110="",IF(OR(AH109>0,VLOOKUP(O109,EventConfig!A:C,3,FALSE)=4),3,""),1))) -> 1 | AG109: 1000303 | AI109: 5102
A110: =O110*100+P110 -> 1000303 | B110: 5100 | C110: 蜩鸟和小麻雀对你的到来很好奇 | J110: 101 | K110: =IF(J110="","",VLOOKUP(J110,EventNPC!A:E,5,FALSE)) -> 蜩鸟 | L110: 5103 | M110: （拍翅）：“咦？又是妄图穿行北海之人？” | O110: 10003 | P110: 3 | T110: =IF(R110="","","-"&VLOOKUP(R110,EventConditionConfig!A:C,3,FALSE)&IF(S110="","",CHAR(10)&"-"&VLOOKUP(S110,EventConditionConfig!A:C,3,FALSE))) ->  | U110: 1 | V110: =A111 -> 1000304 | W110: =_xlfn.TEXTJOIN(";",1,X110,AA110) -> 5104 | X110: 5104 | Y110: 我在寻找鲲鹏，你们知道它在哪里吗？ | AF110: =IF(A110="","",IF(ISNUMBER(Y110),2,IF(A111="",IF(OR(AH110>0,VLOOKUP(O110,EventConfig!A:C,3,FALSE)=4),3,""),1))) -> 1 | AG110: 1000304 | AI110: 5104
A111: =O111*100+P111 -> 1000304 | B111: 5100 | C111: 蜩鸟和小麻雀对你的到来很好奇 | J111: 102 | K111: =IF(J111="","",VLOOKUP(J111,EventNPC!A:E,5,FALSE)) -> 小麻雀 | L111: 5105 | M111: （扑棱翅膀）是想要从北海飞往南海的超级大鸟吧？ | O111: 10003 | P111: 4 | T111: =IF(R111="","","-"&VLOOKUP(R111,EventConditionConfig!A:C,3,FALSE)&IF(S111="","",CHAR(10)&"-"&VLOOKUP(S111,EventConditionConfig!A:C,3,FALSE))) ->  | AF111: =IF(A111="","",IF(ISNUMBER(Y111),2,IF(A112="",IF(OR(AH111>0,VLOOKUP(O111,EventConfig!A:C,3,FALSE)=4),3,""),1))) -> 1 | AG111: 1000305 | AI111: 5105
A112: =O112*100+P112 -> 1000305 | B112: 5100 | C112: 蜩鸟和小麻雀对你的到来很好奇 | J112: 102 | K112: =IF(J112="","",VLOOKUP(J112,EventNPC!A:E,5,FALSE)) -> 小麻雀 | L112: 5106 | M112: 我就想不明白，她为何要飞如此之远，太奇怪啦！ | O112: 10003 | P112: 5 | T112: =IF(R112="","","-"&VLOOKUP(R112,EventConditionConfig!A:C,3,FALSE)&IF(S112="","",CHAR(10)&"-"&VLOOKUP(S112,EventConditionConfig!A:C,3,FALSE))) ->  | U112: 1 | V112: =A113 -> 1000306 | W112: 5107 | X112: 5107 | Y112: 鲲鹏是在追求心中的目标吧。 | AF112: =IF(A112="","",IF(ISNUMBER(Y112),2,IF(A113="",IF(OR(AH112>0,VLOOKUP(O112,EventConfig!A:C,3,FALSE)=4),3,""),1))) -> 1 | AG112: 1000306 | AI112: 5107
A113: =O113*100+P113 -> 1000306 | B113: 5100 | C113: 蜩鸟和小麻雀对你的到来很好奇 | J113: 102 | K113: =IF(J113="","",VLOOKUP(J113,EventNPC!A:E,5,FALSE)) -> 小麻雀 | L113: 5108 | M113: （偏头想了想）目标？我天天在这里上蹿下跳，在附近树林飞来飞去，就已经很幸福啦。 | O113: 10003 | P113: 6 | T113: =IF(R113="","","-"&VLOOKUP(R113,EventConditionConfig!A:C,3,FALSE)&IF(S113="","",CHAR(10)&"-"&VLOOKUP(S113,EventConditionConfig!A:C,3,FALSE))) ->  | AF113: =IF(A113="","",IF(ISNUMBER(Y113),2,IF(A114="",IF(OR(AH113>0,VLOOKUP(O113,EventConfig!A:C,3,FALSE)=4),3,""),1))) -> 1 | AG113: 1000307 | AI113: 5108
A114: =O114*100+P114 -> 1000307 | B114: 5100 | C114: 蜩鸟和小麻雀对你的到来很好奇 | J114: 102 | K114: =IF(J114="","",VLOOKUP(J114,EventNPC!A:E,5,FALSE)) -> 小麻雀 | L114: 5109 | M114: 就那大傻鸟，非要飞那么远，又笨又蠢...真没意思。 | O114: 10003 | P114: 7 | T114: =IF(R114="","","-"&VLOOKUP(R114,EventConditionConfig!A:C,3,FALSE)&IF(S114="","",CHAR(10)&"-"&VLOOKUP(S114,EventConditionConfig!A:C,3,FALSE))) ->  | U114: 1 | V114: =IF(U114=1,_xlfn.TEXTJOIN(";",1,IF(Z114="",A114+1,Z114),IF(AND(AA114<>"",AC114=""),A114+1,AC114)),IF(U114=2,Y114,"")) -> 1000308;1000308 | W114: 5110;5111 | X114: 5110 | Y114: 你说得也有一定道理… | AA114: 5111 | AB114: 你懂什么..这大鹏鸟可比你更有志向多了。 | AF114: =IF(A114="","",IF(ISNUMBER(Y114),2,IF(A115="",IF(OR(AH114>0,VLOOKUP(O114,EventConfig!A:C,3,FALSE)=4),3,""),1))) -> 1 | AG114: 1000308 | AI114: 5111
A115: =O115*100+P115 -> 1000308 | B115: 5100 | C115: 蜩鸟和小麻雀对你的到来很好奇 | J115: 101 | K115: =IF(J115="","",VLOOKUP(J115,EventNPC!A:E,5,FALSE)) -> 蜩鸟 | L115: 5112 | M115: （翻飞一圈）志向有什么用？到头来还不是风停了就落地。 | O115: 10003 | P115: 8 | T115: =IF(R115="","","-"&VLOOKUP(R115,EventConditionConfig!A:C,3,FALSE)&IF(S115="","",CHAR(10)&"-"&VLOOKUP(S115,EventConditionConfig!A:C,3,FALSE))) ->  | U115: 1 | V115: =A116 -> 1000309 | W115: 5113 | X115: 5113 | Y115: ...... | AF115: =IF(A115="","",IF(ISNUMBER(Y115),2,IF(A116="",IF(OR(AH115>0,VLOOKUP(O115,EventConfig!A:C,3,FALSE)=4),3,""),1))) -> 1 | AG115: 1000309 | AI115: 5113
A116: =O116*100+P116 -> 1000309 | B116: 5100 | C116: 蜩鸟和小麻雀对你的到来很好奇 | K116: =IF(J116="","",VLOOKUP(J116,EventNPC!A:E,5,FALSE)) ->  | L116: 5114 | M116: （此时，结界微动，一缕风穿林而过，古径阵法竟有一丝松动） | O116: 10003 | P116: 9 | T116: =IF(R116="","","-"&VLOOKUP(R116,EventConditionConfig!A:C,3,FALSE)&IF(S116="","",CHAR(10)&"-"&VLOOKUP(S116,EventConditionConfig!A:C,3,FALSE))) ->  | AF116: =IF(A116="","",IF(ISNUMBER(Y116),2,IF(A117="",IF(OR(AH116>0,VLOOKUP(O116,EventConfig!A:C,3,FALSE)=4),3,""),1))) -> 3 | AG116: 10004 | AI116: 5114
T117: =IF(R117="","","-"&VLOOKUP(R117,EventConditionConfig!A:C,3,FALSE)&IF(S117="","",CHAR(10)&"-"&VLOOKUP(S117,EventConditionConfig!A:C,3,FALSE))) ->  | AF117: =IF(A117="","",IF(ISNUMBER(Y117),2,IF(A118="",IF(OR(AH117>0,VLOOKUP(O117,EventConfig!A:C,3,FALSE)=4),3,""),1))) -> 
A118: =O118*100+P118 -> 1000401 | B118: 5115 | C118: 原来它们就是镇守阵法的结界兽 | D118: 5116 | E118: 击败结界兽 | J118: 101 | K118: =IF(J118="","",VLOOKUP(J118,EventNPC!A:E,5,FALSE)) -> 蜩鸟 | L118: 5117 | M118: 这结界似乎有所反应… | O118: 10004 | P118: 1 | T118: =IF(R118="","","-"&VLOOKUP(R118,EventConditionConfig!A:C,3,FALSE)&IF(S118="","",CHAR(10)&"-"&VLOOKUP(S118,EventConditionConfig!A:C,3,FALSE))) ->  | U118: 1 | V118: =A119 -> 1000402 | W118: =_xlfn.TEXTJOIN(";",1,X118,AA118) -> 5118 | X118: 5118 | Y118: 与你们聊天很有意思，不过今天我是非过去不可，没人能阻止我重返仙途！ | AF118: =IF(A118="","",IF(ISNUMBER(Y118),2,IF(A119="",IF(OR(AH118>0,VLOOKUP(O118,EventConfig!A:C,3,FALSE)=4),3,""),1))) -> 1 | AG118: 1000402 | AI118: 5118
A119: =O119*100+P119 -> 1000402 | B119: 5115 | C119: 原来它们就是镇守阵法的结界兽 | D119: 5116 | E119: 击败结界兽 | J119: 102 | K119: =IF(J119="","",VLOOKUP(J119,EventNPC!A:E,5,FALSE)) -> 小麻雀 | L119: 5119 | M119: "小鸟.."现身吧！ | O119: 10004 | P119: 2 | T119: =IF(R119="","","-"&VLOOKUP(R119,EventConditionConfig!A:C,3,FALSE)&IF(S119="","",CHAR(10)&"-"&VLOOKUP(S119,EventConditionConfig!A:C,3,FALSE))) ->  | W119: =_xlfn.TEXTJOIN(";",1,X119,AA119) ->  | AF119: =IF(A119="","",IF(ISNUMBER(Y119),2,IF(A120="",IF(OR(AH119>0,VLOOKUP(O119,EventConfig!A:C,3,FALSE)=4),3,""),1))) -> 1 | AG119: 1000403 | AI119: 5119
A120: =O120*100+P120 -> 1000403 | B120: 5115 | C120: 原来它们就是镇守阵法的结界兽 | D120: 5116 | E120: 击败结界兽 | J120: 101 | K120: =IF(J120="","",VLOOKUP(J120,EventNPC!A:E,5,FALSE)) -> 蜩鸟 | L120: 5120 | M120: （轻轻飞下来..）又来...来吧来吧.. | O120: 10004 | P120: 3 | T120: =IF(R120="","","-"&VLOOKUP(R120,EventConditionConfig!A:C,3,FALSE)&IF(S120="","",CHAR(10)&"-"&VLOOKUP(S120,EventConditionConfig!A:C,3,FALSE))) ->  | U120: =IF(Y120="","",IF(ISTEXT(Y120),1,2)) -> 2 | V120: =IF(U120=1,_xlfn.TEXTJOIN(";",1,IF(Z120="",A120+1,Z120),IF(AND(AA120<>"",AC120=""),A120+1,AC120)),IF(U120=2,Y120,"")) -> 1002 | W120: =_xlfn.TEXTJOIN(";",1,X120,AA120) ->  | Y120: 1002 | AF120: =IF(A120="","",IF(ISNUMBER(Y120),2,IF(A121="",IF(OR(AH120>0,VLOOKUP(O120,EventConfig!A:C,3,FALSE)=4),3,""),1))) -> 2 | AG120: 1000404;101 | AI120: 5120
A121: =O121*100+P121 -> 1000404 | B121: 5115 | C121: 原来它们就是镇守阵法的结界兽 | J121: 102 | K121: =IF(J121="","",VLOOKUP(J121,EventNPC!A:E,5,FALSE)) -> 小麻雀 | L121: 5121 | M121: 这么想过去，就去吧... | O121: 10004 | P121: 4 | T121: =IF(R121="","","-"&VLOOKUP(R121,EventConditionConfig!A:C,3,FALSE)&IF(S121="","",CHAR(10)&"-"&VLOOKUP(S121,EventConditionConfig!A:C,3,FALSE))) ->  | AF121: =IF(A121="","",IF(ISNUMBER(Y121),2,IF(A122="",IF(OR(AH121>0,VLOOKUP(O121,EventConfig!A:C,3,FALSE)=4),3,""),1))) -> 3 | AG121: 10005 | AI121: 5121
T122: =IF(R122="","","-"&VLOOKUP(R122,EventConditionConfig!A:C,3,FALSE)&IF(S122="","",CHAR(10)&"-"&VLOOKUP(S122,EventConditionConfig!A:C,3,FALSE))) ->  | AF122: =IF(A122="","",IF(ISNUMBER(Y122),2,IF(A123="",IF(OR(AH122>0,VLOOKUP(O122,EventConfig!A:C,3,FALSE)=4),3,""),1))) -> 
A123: =O123*100+P123 -> 1000501 | B123: 5122 | C123: 初见疯道人 | K123: =IF(J123="","",VLOOKUP(J123,EventNPC!A:E,5,FALSE)) ->  | L123: 5123 | M123: 你穿过古径结界，来到一片被风托起的浮空灵岛群。 | O123: 10005 | P123: 1 | T123: =IF(R123="","","-"&VLOOKUP(R123,EventConditionConfig!A:C,3,FALSE)&IF(S123="","",CHAR(10)&"-"&VLOOKUP(S123,EventConditionConfig!A:C,3,FALSE))) ->  | W123: =_xlfn.TEXTJOIN(";",1,X123,AA123) ->  | AF123: =IF(A123="","",IF(ISNUMBER(Y123),2,IF(A124="",IF(OR(AH123>0,VLOOKUP(O123,EventConfig!A:C,3,FALSE)=4),3,""),1))) -> 1 | AG123: 1000502 | AI123: 5123
A124: =O124*100+P124 -> 1000502 | B124: 5122 | C124: 初见疯道人 | K124: =IF(J124="","",VLOOKUP(J124,EventNPC!A:E,5,FALSE)) ->  | L124: 5124 | M124: 风势强劲，岛与岛之间缝隙深不见底，无桥无梯。 | O124: 10005 | P124: 2 | T124: =IF(R124="","","-"&VLOOKUP(R124,EventConditionConfig!A:C,3,FALSE)&IF(S124="","",CHAR(10)&"-"&VLOOKUP(S124,EventConditionConfig!A:C,3,FALSE))) ->  | AF124: =IF(A124="","",IF(ISNUMBER(Y124),2,IF(A125="",IF(OR(AH124>0,VLOOKUP(O124,EventConfig!A:C,3,FALSE)=4),3,""),1))) -> 1 | AG124: 1000503 | AI124: 5124
A125: =O125*100+P125 -> 1000503 | B125: 5122 | C125: 初见疯道人 | K125: =IF(J125="","",VLOOKUP(J125,EventNPC!A:E,5,FALSE)) ->  | L125: 5125 | M125: 此处盘踞一位神秘道人，常独自站在岛边望风，仿佛等待什么。 | O125: 10005 | P125: 3 | T125: =IF(R125="","","-"&VLOOKUP(R125,EventConditionConfig!A:C,3,FALSE)&IF(S125="","",CHAR(10)&"-"&VLOOKUP(S125,EventConditionConfig!A:C,3,FALSE))) ->  | AF125: =IF(A125="","",IF(ISNUMBER(Y125),2,IF(A126="",IF(OR(AH125>0,VLOOKUP(O125,EventConfig!A:C,3,FALSE)=4),3,""),1))) -> 1 | AG125: 1000504 | AI125: 5125
A126: =O126*100+P126 -> 1000504 | B126: 5122 | C126: 初见疯道人 | K126: =IF(J126="","",VLOOKUP(J126,EventNPC!A:E,5,FALSE)) ->  | L126: 5126 | M126: （你尝试御剑，却在风中打转，被吹回原地） | O126: 10005 | P126: 4 | T126: =IF(R126="","","-"&VLOOKUP(R126,EventConditionConfig!A:C,3,FALSE)&IF(S126="","",CHAR(10)&"-"&VLOOKUP(S126,EventConditionConfig!A:C,3,FALSE))) ->  | U126: 1 | V126: =A127 -> 1000505 | W126: 5127 | X126: 5127 | Y126: 前辈，这里的风太大，我无法飞行，请教如何才能通过？ | AF126: =IF(A126="","",IF(ISNUMBER(Y126),2,IF(A127="",IF(OR(AH126>0,VLOOKUP(O126,EventConfig!A:C,3,FALSE)=4),3,""),1))) -> 1 | AG126: 1000505 | AI126: 5127
A127: 1000505 | B127: 5122 | C127: 初见疯道人 | J127: 103 | K127: =IF(J127="","",VLOOKUP(J127,EventNPC!A:E,5,FALSE)) -> 疯道人 | L127: 5128 | M127: ...... | O127: 10005 | P127: 5 | T127: =IF(R127="","","-"&VLOOKUP(R127,EventConditionConfig!A:C,3,FALSE)&IF(S127="","",CHAR(10)&"-"&VLOOKUP(S127,EventConditionConfig!A:C,3,FALSE))) ->  | U127: 1 | V127: =A128 -> 1000506 | W127: 5129 | X127: 5129 | Y127: 前辈，我准备前往北海深处，寻鲲鹏。 | AF127: =IF(A127="","",IF(ISNUMBER(Y127),2,IF(A128="",IF(OR(AH127>0,VLOOKUP(O127,EventConfig!A:C,3,FALSE)=4),3,""),1))) -> 1 | AG127: 1000506 | AI127: 5129
A128: 1000506 | B128: 5122 | C128: 初见疯道人 | J128: 103 | K128: =IF(J128="","",VLOOKUP(J128,EventNPC!A:E,5,FALSE)) -> 疯道人 | L128: 5130 | M128: 鲲鹏？……世间竟还有人记得它。 | O128: 10005 | P128: 6 | T128: =IF(R128="","","-"&VLOOKUP(R128,EventConditionConfig!A:C,3,FALSE)&IF(S128="","",CHAR(10)&"-"&VLOOKUP(S128,EventConditionConfig!A:C,3,FALSE))) ->  | AF128: =IF(A128="","",IF(ISNUMBER(Y128),2,IF(A129="",IF(OR(AH128>0,VLOOKUP(O128,EventConfig!A:C,3,FALSE)=4),3,""),1))) -> 1 | AG128: 1000507 | AI128: 5130
A129: =O129*100+P129 -> 1000507 | B129: 5122 | C129: 初见疯道人 | J129: 103 | K129: =IF(J129="","",VLOOKUP(J129,EventNPC!A:E,5,FALSE)) -> 疯道人 | L129: 5131 | M129: （说着从手中掏出一个碎片，往空中一震，瞬间风停）过来吧。 | O129: 10005 | P129: 7 | T129: =IF(R129="","","-"&VLOOKUP(R129,EventConditionConfig!A:C,3,FALSE)&IF(S129="","",CHAR(10)&"-"&VLOOKUP(S129,EventConditionConfig!A:C,3,FALSE))) ->  | AF129: =IF(A129="","",IF(ISNUMBER(Y129),2,IF(A130="",IF(OR(AH129>0,VLOOKUP(O129,EventConfig!A:C,3,FALSE)=4),3,""),1))) -> 1 | AG129: 1000508 | AI129: 5131
A130: =O130*100+P130 -> 1000508 | B130: 5122 | C130: 初见疯道人 | J130: 103 | K130: =IF(J130="","",VLOOKUP(J130,EventNPC!A:E,5,FALSE)) -> 疯道人 | L130: 5132 | M130: 说吧，为何寻那鲲鹏？ | O130: 10005 | P130: 8 | T130: =IF(R130="","","-"&VLOOKUP(R130,EventConditionConfig!A:C,3,FALSE)&IF(S130="","",CHAR(10)&"-"&VLOOKUP(S130,EventConditionConfig!A:C,3,FALSE))) ->  | U130: 1 | V130: =IF(U130=1,_xlfn.TEXTJOIN(";",1,IF(Z130="",A130+1,Z130),IF(AND(AA130<>"",AC130=""),A130+1,AC130)),IF(U130=2,Y130,"")) -> 1000509;1000509 | W130: 5133;5134 | X130: 5133 | Y130: 冲虚真人让我去的 | AA130: 5134 | AB130: 我只是好奇.. | AF130: =IF(A130="","",IF(ISNUMBER(Y130),2,IF(A131="",IF(OR(AH130>0,VLOOKUP(O130,EventConfig!A:C,3,FALSE)=4),3,""),1))) -> 1 | AG130: 1000509 | AI130: 5134
A131: 1000509 | B131: 5122 | C131: 初见疯道人 | J131: 103 | K131: =IF(J131="","",VLOOKUP(J131,EventNPC!A:E,5,FALSE)) -> 疯道人 | L131: 5135 | M131: 你可知鹏飞九万里，需凭借龙卷风，才可达成？ | O131: 10005 | P131: 9 | T131: =IF(R131="","","-"&VLOOKUP(R131,EventConditionConfig!A:C,3,FALSE)&IF(S131="","",CHAR(10)&"-"&VLOOKUP(S131,EventConditionConfig!A:C,3,FALSE))) ->  | U131: 1 | V131: =A132 -> 1000510 | W131: 5136 | X131: 5136 | Y131: 请前辈赐教...... | AF131: =IF(A131="","",IF(ISNUMBER(Y131),2,IF(A132="",IF(OR(AH131>0,VLOOKUP(O131,EventConfig!A:C,3,FALSE)=4),3,""),1))) -> 1 | AG131: 1000510 | AI131: 5136
A132: 1000510 | B132: 5122 | C132: 初见疯道人 | J132: 103 | K132: =IF(J132="","",VLOOKUP(J132,EventNPC!A:E,5,FALSE)) -> 疯道人 | L132: 5137 | M132: 看你修为尚浅，跟你说多了也无用。 | O132: 10005 | P132: 10 | T132: =IF(R132="","","-"&VLOOKUP(R132,EventConditionConfig!A:C,3,FALSE)&IF(S132="","",CHAR(10)&"-"&VLOOKUP(S132,EventConditionConfig!A:C,3,FALSE))) ->  | AF132: =IF(A132="","",IF(ISNUMBER(Y132),2,IF(A133="",IF(OR(AH132>0,VLOOKUP(O132,EventConfig!A:C,3,FALSE)=4),3,""),1))) -> 1 | AG132: 1000511 | AI132: 5137
A133: =O133*100+P133 -> 1000511 | B133: 5122 | C133: 初见疯道人 | J133: 103 | K133: =IF(J133="","",VLOOKUP(J133,EventNPC!A:E,5,FALSE)) -> 疯道人 | L133: 5138 | M133: 再往前是我师弟的洞府了，他可不好说话。 | O133: 10005 | P133: 11 | T133: =IF(R133="","","-"&VLOOKUP(R133,EventConditionConfig!A:C,3,FALSE)&IF(S133="","",CHAR(10)&"-"&VLOOKUP(S133,EventConditionConfig!A:C,3,FALSE))) ->  | AF133: =IF(A133="","",IF(ISNUMBER(Y133),2,IF(A134="",IF(OR(AH133>0,VLOOKUP(O133,EventConfig!A:C,3,FALSE)=4),3,""),1))) -> 1 | AG133: 1000512 | AI133: 5138
A134: =O134*100+P134 -> 1000512 | B134: 5122 | C134: 初见疯道人 | D134: =IF(E134="","",IF(E134=E133,D133,MAX(AI133,AI132,B134)+1)) ->  | J134: 103 | K134: =IF(J134="","",VLOOKUP(J134,EventNPC!A:E,5,FALSE)) -> 疯道人 | L134: =IF(M134="","",MAX(AI133,AI132,B134,D134)+1) -> 5139 | M134: 就在我这附近好好修炼吧，至少提升至筑基修为。 | O134: 10005 | P134: 12 | T134: =IF(R134="","","-"&VLOOKUP(R134,EventConditionConfig!A:C,3,FALSE)&IF(S134="","",CHAR(10)&"-"&VLOOKUP(S134,EventConditionConfig!A:C,3,FALSE))) ->  | U134: 1 | V134: =A135 -> 1000513 | W134: 5140 | X134: 5140 | Y134: 前辈为何如此助我？ | AF134: =IF(A134="","",IF(ISNUMBER(Y134),2,IF(A135="",IF(OR(AH134>0,VLOOKUP(O134,EventConfig!A:C,3,FALSE)=4),3,""),1))) -> 1 | AG134: 1000513 | AI134: =IF(A134="","",MAX(B134,D134,L134,X134,AA134,AI133,AI132)) -> 5140
A135: 1000513 | B135: 5122 | C135: 初见疯道人 | J135: 103 | K135: =IF(J135="","",VLOOKUP(J135,EventNPC!A:E,5,FALSE)) -> 疯道人 | L135: 5141 | M135: （疯道人望你一眼，没有回答，但丢过来一本功法）修到[筑基-中期]再来找我。 | O135: 10005 | P135: 13 | T135: =IF(R135="","","-"&VLOOKUP(R135,EventConditionConfig!A:C,3,FALSE)&IF(S135="","",CHAR(10)&"-"&VLOOKUP(S135,EventConditionConfig!A:C,3,FALSE))) ->  | AF135: =IF(A135="","",IF(ISNUMBER(Y135),2,IF(A136="",IF(OR(AH135>0,VLOOKUP(O135,EventConfig!A:C,3,FALSE)=4),3,""),1))) -> 1 | AG135: 1000514 | AI135: 5141
A136: =O136*100+P136 -> 1000514 | B136: 5122 | C136: 初见疯道人 | K136: =IF(J136="","",VLOOKUP(J136,EventNPC!A:E,5,FALSE)) ->  | O136: 10005 | P136: 14 | Q136: 2 | R136: 2 | T136: =IF(R136="","","-"&VLOOKUP(R136,EventConditionConfig!A:C,3,FALSE)&IF(S136="","",CHAR(10)&"-"&VLOOKUP(S136,EventConditionConfig!A:C,3,FALSE))) -> -达到境界：练气-中期 | AF136: =IF(A136="","",IF(ISNUMBER(Y136),2,IF(A137="",IF(OR(AH136>0,VLOOKUP(O136,EventConfig!A:C,3,FALSE)=4),3,""),1))) -> 3 | AG136: 10006 | AI136: 5141
T137: =IF(R137="","","-"&VLOOKUP(R137,EventConditionConfig!A:C,3,FALSE)&IF(S137="","",CHAR(10)&"-"&VLOOKUP(S137,EventConditionConfig!A:C,3,FALSE))) ->  | AF137: =IF(A137="","",IF(ISNUMBER(Y137),2,IF(A138="",IF(OR(AH137>0,VLOOKUP(O137,EventConfig!A:C,3,FALSE)=4),3,""),1))) -> 
A138: =O138*100+P138 -> 1000601 | B138: 5142 | C138: 疯道人赠与一半风灵珠 | J138: 103 | K138: =IF(J138="","",VLOOKUP(J138,EventNPC!A:E,5,FALSE)) -> 疯道人 | L138: 5143 | M138: 你已突破筑基前期达到中期，灵力通畅，是时候去会一会我的师弟了。 | O138: 10006 | P138: 1 | T138: =IF(R138="","","-"&VLOOKUP(R138,EventConditionConfig!A:C,3,FALSE)&IF(S138="","",CHAR(10)&"-"&VLOOKUP(S138,EventConditionConfig!A:C,3,FALSE))) ->  | U138: 1 | V138: 1000603;1000602 | W138: =_xlfn.TEXTJOIN(";",1,X138,AA138) -> 5144;5145 | X138: 5144 | Y138: 是的。鲲鹏之行，志在必达。 | AA138: 5145 | AB138: 看看风的尽头到底有什么。 | AF138: =IF(A138="","",IF(ISNUMBER(Y138),2,IF(A139="",IF(OR(AH138>0,VLOOKUP(O138,EventConfig!A:C,3,FALSE)=4),3,""),1))) -> 1 | AG138: 1000602 | AI138: 5145
A139: =O139*100+P139 -> 1000602 | B139: 5142 | C139: 疯道人赠与一半风灵珠 | J139: 103 | K139: =IF(J139="","",VLOOKUP(J139,EventNPC!A:E,5,FALSE)) -> 疯道人 | L139: 5146 | M139: （轻轻一笑）你说风的尽头……我也曾想看。 （他望向远处翻涌的云海） | O139: 10006 | P139: 2 | T139: =IF(R139="","","-"&VLOOKUP(R139,EventConditionConfig!A:C,3,FALSE)&IF(S139="","",CHAR(10)&"-"&VLOOKUP(S139,EventConditionConfig!A:C,3,FALSE))) ->  | U139: 1 | V139: =A140 -> 1000603 | W139: 2140 | X139: 5147 | Y139: 是的。鲲鹏之行，志在必达。 | AF139: =IF(A139="","",IF(ISNUMBER(Y139),2,IF(A140="",IF(OR(AH139>0,VLOOKUP(O139,EventConfig!A:C,3,FALSE)=4),3,""),1))) -> 1 | AG139: 1000603 | AI139: 5147
A140: =O140*100+P140 -> 1000603 | B140: 5142 | C140: 疯道人赠与一半风灵珠 | J140: 103 | K140: =IF(J140="","",VLOOKUP(J140,EventNPC!A:E,5,FALSE)) -> 疯道人 | L140: 5148 | M140: 我和师弟，共守这处风眼多年。我想出去，他却偏要留。 | O140: 10006 | P140: 3 | T140: =IF(R140="","","-"&VLOOKUP(R140,EventConditionConfig!A:C,3,FALSE)&IF(S140="","",CHAR(10)&"-"&VLOOKUP(S140,EventConditionConfig!A:C,3,FALSE))) ->  | AF140: =IF(A140="","",IF(ISNUMBER(Y140),2,IF(A141="",IF(OR(AH140>0,VLOOKUP(O140,EventConfig!A:C,3,FALSE)=4),3,""),1))) -> 1 | AG140: 1000604 | AI140: 5148
A141: =O141*100+P141 -> 1000604 | B141: =IF(C141="","",IF(C141=C140,B140,MAX(AI140,AI139)+1)) -> 5142 | C141: 疯道人赠与一半风灵珠 | J141: 103 | K141: =IF(J141="","",VLOOKUP(J141,EventNPC!A:E,5,FALSE)) -> 疯道人 | L141: 5149 | M141: 风灵珠碎成两半，一半在我这里，另一半……在他洞府中。 | O141: 10006 | P141: 4 | T141: =IF(R141="","","-"&VLOOKUP(R141,EventConditionConfig!A:C,3,FALSE)&IF(S141="","",CHAR(10)&"-"&VLOOKUP(S141,EventConditionConfig!A:C,3,FALSE))) ->  | X141: =IF(OR(ISNUMBER(Y141),Y141=""),"",MAX(AI140,AI138,B141,D141,L141)+1) ->  | AA141: =IF(OR(ISNUMBER(AB141),AB141=""),"",X141+1) ->  | AF141: =IF(A141="","",IF(ISNUMBER(Y141),2,IF(A142="",IF(OR(AH141>0,VLOOKUP(O141,EventConfig!A:C,3,FALSE)=4),3,""),1))) -> 1 | AG141: 1000605 | AI141: 5149
A142: =O142*100+P142 -> 1000605 | B142: 5142 | C142: 疯道人赠与一半风灵珠 | J142: 103 | K142: =IF(J142="","",VLOOKUP(J142,EventNPC!A:E,5,FALSE)) -> 疯道人 | L142: 5150 | M142: 你若想见鲲鹏，必须要集齐整个风灵珠。 | O142: 10006 | P142: 5 | T142: =IF(R142="","","-"&VLOOKUP(R142,EventConditionConfig!A:C,3,FALSE)&IF(S142="","",CHAR(10)&"-"&VLOOKUP(S142,EventConditionConfig!A:C,3,FALSE))) ->  | AF142: =IF(A142="","",IF(ISNUMBER(Y142),2,IF(A143="",IF(OR(AH142>0,VLOOKUP(O142,EventConfig!A:C,3,FALSE)=4),3,""),1))) -> 1 | AG142: =IF(AF142="","",CHOOSE(AF142,IF(AH142="",A142+1,AH142),CONCATENATE(IF(AH142="",A142+1,AH142),";101"),IF(AH142="",O142+1,AH142))) -> 1000606 | AI142: 5150
A143: =O143*100+P143 -> 1000606 | B143: 5142 | C143: 疯道人赠与一半风灵珠 | J143: 103 | K143: =IF(J143="","",VLOOKUP(J143,EventNPC!A:E,5,FALSE)) -> 疯道人 | L143: 5151 | M143: 我这一半给你，可助你在大风中，来去自如。 | O143: 10006 | P143: 6 | T143: =IF(R143="","","-"&VLOOKUP(R143,EventConditionConfig!A:C,3,FALSE)&IF(S143="","",CHAR(10)&"-"&VLOOKUP(S143,EventConditionConfig!A:C,3,FALSE))) ->  | AF143: =IF(A143="","",IF(ISNUMBER(Y143),2,IF(A144="",IF(OR(AH143>0,VLOOKUP(O143,EventConfig!A:C,3,FALSE)=4),3,""),1))) -> 3 | AG143: 10007 | AI143: 5151
T144: =IF(R144="","","-"&VLOOKUP(R144,EventConditionConfig!A:C,3,FALSE)&IF(S144="","",CHAR(10)&"-"&VLOOKUP(S144,EventConditionConfig!A:C,3,FALSE))) ->  | AF144: =IF(A144="","",IF(ISNUMBER(Y144),2,IF(A145="",IF(OR(AH144>0,VLOOKUP(O144,EventConfig!A:C,3,FALSE)=4),3,""),1))) -> 
A145: =O145*100+P145 -> 1000701 | B145: 5152 | C145: 没想到痴道人一来就要与你交手 | K145: =IF(J145="","",VLOOKUP(J145,EventNPC!A:E,5,FALSE)) ->  | L145: 5153 | M145: 你获得了疯道人的半颗风灵珠，在狂风中自由飞行，好不自在。 | O145: 10007 | P145: 1 | T145: =IF(R145="","","-"&VLOOKUP(R145,EventConditionConfig!A:C,3,FALSE)&IF(S145="","",CHAR(10)&"-"&VLOOKUP(S145,EventConditionConfig!A:C,3,FALSE))) ->  | W145: =_xlfn.TEXTJOIN(";",1,X145,AA145) ->  | AF145: =IF(A145="","",IF(ISNUMBER(Y145),2,IF(A146="",IF(OR(AH145>0,VLOOKUP(O145,EventConfig!A:C,3,FALSE)=4),3,""),1))) -> 1 | AG145: 1000702 | AI145: 5153
A146: =O146*100+P146 -> 1000702 | B146: 5152 | C146: 没想到痴道人一来就要与你交手 | K146: =IF(J146="","",VLOOKUP(J146,EventNPC!A:E,5,FALSE)) ->  | L146: 5154 | M146: 这......就是逍遥游吗？ | O146: 10007 | P146: 2 | T146: =IF(R146="","","-"&VLOOKUP(R146,EventConditionConfig!A:C,3,FALSE)&IF(S146="","",CHAR(10)&"-"&VLOOKUP(S146,EventConditionConfig!A:C,3,FALSE))) ->  | W146: =_xlfn.TEXTJOIN(";",1,X146,AA146) ->  | AF146: =IF(A146="","",IF(ISNUMBER(Y146),2,IF(A147="",IF(OR(AH146>0,VLOOKUP(O146,EventConfig!A:C,3,FALSE)=4),3,""),1))) -> 1 | AG146: 1000703 | AI146: 5154
A147: =O147*100+P147 -> 1000703 | B147: 5152 | C147: 没想到痴道人一来就要与你交手 | J147: 104 | K147: =IF(J147="","",VLOOKUP(J147,EventNPC!A:E,5,FALSE)) -> 痴道人 | L147: 5155 | M147: 你终于来了...... | O147: 10007 | P147: 3 | T147: =IF(R147="","","-"&VLOOKUP(R147,EventConditionConfig!A:C,3,FALSE)&IF(S147="","",CHAR(10)&"-"&VLOOKUP(S147,EventConditionConfig!A:C,3,FALSE))) ->  | U147: 1 | V147: =A148 -> 1000704 | W147: =_xlfn.TEXTJOIN(";",1,X147,AA147) -> 5156 | X147: 5156 | Y147: 你知道我要来？ | AF147: =IF(A147="","",IF(ISNUMBER(Y147),2,IF(A148="",IF(OR(AH147>0,VLOOKUP(O147,EventConfig!A:C,3,FALSE)=4),3,""),1))) -> 1 | AG147: 1000704 | AI147: 5156
A148: =O148*100+P148 -> 1000704 | B148: 5152 | C148: 没想到痴道人一来就要与你交手 | J148: 104 | K148: =IF(J148="","",VLOOKUP(J148,EventNPC!A:E,5,FALSE)) -> 痴道人 | L148: 5157 | M148: 多说无益，我早已感应到你身上的半颗风灵珠。必是那疯老头让来的。出手吧！ | O148: 10007 | P148: 4 | T148: =IF(R148="","","-"&VLOOKUP(R148,EventConditionConfig!A:C,3,FALSE)&IF(S148="","",CHAR(10)&"-"&VLOOKUP(S148,EventConditionConfig!A:C,3,FALSE))) ->  | U148: =IF(Y148="","",IF(ISTEXT(Y148),1,2)) -> 2 | V148: =IF(U148=1,_xlfn.TEXTJOIN(";",1,IF(Z148="",A148+1,Z148),IF(AND(AA148<>"",AC148=""),A148+1,AC148)),IF(U148=2,Y148,"")) -> 1003 | W148: =_xlfn.TEXTJOIN(";",1,X148,AA148) ->  | Y148: 1003 | AF148: =IF(A148="","",IF(ISNUMBER(Y148),2,IF(A149="",IF(OR(AH148>0,VLOOKUP(O148,EventConfig!A:C,3,FALSE)=4),3,""),1))) -> 2 | AG148: 1000705;101 | AI148: 5157
A149: 1000705 | B149: 5152 | C149: 没想到痴道人一来就要与你交手 | J149: 104 | K149: =IF(J149="","",VLOOKUP(J149,EventNPC!A:E,5,FALSE)) -> 痴道人 | L149: 5158 | M149: （被击倒在一边）够了！ | O149: 10007 | P149: 5 | T149: =IF(R149="","","-"&VLOOKUP(R149,EventConditionConfig!A:C,3,FALSE)&IF(S149="","",CHAR(10)&"-"&VLOOKUP(S149,EventConditionConfig!A:C,3,FALSE))) ->  | AF149: =IF(A149="","",IF(ISNUMBER(Y149),2,IF(A150="",IF(OR(AH149>0,VLOOKUP(O149,EventConfig!A:C,3,FALSE)=4),3,""),1))) -> 3 | AG149: 10008 | AI149: 5158
T150: =IF(R150="","","-"&VLOOKUP(R150,EventConditionConfig!A:C,3,FALSE)&IF(S150="","",CHAR(10)&"-"&VLOOKUP(S150,EventConditionConfig!A:C,3,FALSE))) ->  | AF150: =IF(A150="","",IF(ISNUMBER(Y150),2,IF(A151="",IF(OR(AH150>0,VLOOKUP(O150,EventConfig!A:C,3,FALSE)=4),3,""),1))) -> 
A151: =O151*100+P151 -> 1000801 | B151: 5159 | C151: 疯痴相聚 | J151: 104 | K151: =IF(J151="","",VLOOKUP(J151,EventNPC!A:E,5,FALSE)) -> 痴道人 | L151: 5160 | M151: ...... | O151: 10008 | P151: 1 | T151: =IF(R151="","","-"&VLOOKUP(R151,EventConditionConfig!A:C,3,FALSE)&IF(S151="","",CHAR(10)&"-"&VLOOKUP(S151,EventConditionConfig!A:C,3,FALSE))) ->  | U151: 1 | V151: =A152 -> 1000802 | W151: =_xlfn.TEXTJOIN(";",1,X151,AA151) -> 5161 | X151: 5161 | Y151: （你靠近痴道人）你真的想一直留在这里？你师兄说你不肯走。 | AF151: =IF(A151="","",IF(ISNUMBER(Y151),2,IF(A152="",IF(OR(AH151>0,VLOOKUP(O151,EventConfig!A:C,3,FALSE)=4),3,""),1))) -> 1 | AG151: 1000802 | AI151: 5161
A152: 1000802 | B152: 5159 | C152: 疯痴相聚 | J152: 104 | K152: =IF(J152="","",VLOOKUP(J152,EventNPC!A:E,5,FALSE)) -> 痴道人 | L152: 5162 | M152: 你修炼的时候，有没有过那种感觉——身边的人都在往前走，只有你还在原地。 | O152: 10008 | P152: 2 | T152: =IF(R152="","","-"&VLOOKUP(R152,EventConditionConfig!A:C,3,FALSE)&IF(S152="","",CHAR(10)&"-"&VLOOKUP(S152,EventConditionConfig!A:C,3,FALSE))) ->  | AF152: =IF(A152="","",IF(ISNUMBER(Y152),2,IF(A153="",IF(OR(AH152>0,VLOOKUP(O152,EventConfig!A:C,3,FALSE)=4),3,""),1))) -> 1 | AG152: 1000803 | AI152: 5162
A153: =O153*100+P153 -> 1000803 | B153: 5159 | C153: 疯痴相聚 | J153: 104 | K153: =IF(J153="","",VLOOKUP(J153,EventNPC!A:E,5,FALSE)) -> 痴道人 | L153: 5163 | M153: 我师兄，他悟性极高，一年就能走我三年的路。我不服气，想努力赶上他。 | O153: 10008 | P153: 3 | T153: =IF(R153="","","-"&VLOOKUP(R153,EventConditionConfig!A:C,3,FALSE)&IF(S153="","",CHAR(10)&"-"&VLOOKUP(S153,EventConditionConfig!A:C,3,FALSE))) ->  | U153: 1 | V153: =A154 -> 1000804 | W153: 5164 | X153: 5164 | Y153: 然后呢？ | AF153: =IF(A153="","",IF(ISNUMBER(Y153),2,IF(A154="",IF(OR(AH153>0,VLOOKUP(O153,EventConfig!A:C,3,FALSE)=4),3,""),1))) -> 1 | AG153: 1000804 | AI153: 5164
A154: =O154*100+P154 -> 1000804 | B154: 5159 | C154: 疯痴相聚 | J154: 104 | K154: =IF(J154="","",VLOOKUP(J154,EventNPC!A:E,5,FALSE)) -> 痴道人 | L154: 5165 | M154: 我一直苦心修炼，可人也困在这儿了……越修炼，越困难，修不动了。 | O154: 10008 | P154: 4 | T154: =IF(R154="","","-"&VLOOKUP(R154,EventConditionConfig!A:C,3,FALSE)&IF(S154="","",CHAR(10)&"-"&VLOOKUP(S154,EventConditionConfig!A:C,3,FALSE))) ->  | AF154: =IF(A154="","",IF(ISNUMBER(Y154),2,IF(A155="",IF(OR(AH154>0,VLOOKUP(O154,EventConfig!A:C,3,FALSE)=4),3,""),1))) -> 1 | AG154: 1000805 | AI154: 5165
A155: =O155*100+P155 -> 1000805 | B155: 5159 | C155: 疯痴相聚 | K155: =IF(J155="","",VLOOKUP(J155,EventNPC!A:E,5,FALSE)) ->  | L155: 5166 | M155: [此时，疯道人踏风而至，就在几步之外] | O155: 10008 | P155: 5 | T155: =IF(R155="","","-"&VLOOKUP(R155,EventConditionConfig!A:C,3,FALSE)&IF(S155="","",CHAR(10)&"-"&VLOOKUP(S155,EventConditionConfig!A:C,3,FALSE))) ->  | AF155: =IF(A155="","",IF(ISNUMBER(Y155),2,IF(A156="",IF(OR(AH155>0,VLOOKUP(O155,EventConfig!A:C,3,FALSE)=4),3,""),1))) -> 1 | AG155: 1000806 | AI155: 5166
A156: =O156*100+P156 -> 1000806 | B156: 5159 | C156: 疯痴相聚 | J156: 103 | K156: =IF(J156="","",VLOOKUP(J156,EventNPC!A:E,5,FALSE)) -> 疯道人 | L156: 5167 | M156: 师弟，你修着修着，就不记得一开始，是为了什么而修行。 | O156: 10008 | P156: =IF(O156="","",IF(O156=O155,P155+1,1)) -> 6 | T156: =IF(R156="","","-"&VLOOKUP(R156,EventConditionConfig!A:C,3,FALSE)&IF(S156="","",CHAR(10)&"-"&VLOOKUP(S156,EventConditionConfig!A:C,3,FALSE))) ->  | AF156: =IF(A156="","",IF(ISNUMBER(Y156),2,IF(A157="",IF(OR(AH156>0,VLOOKUP(O156,EventConfig!A:C,3,FALSE)=4),3,""),1))) -> 1 | AG156: 1000807 | AI156: 5167
A157: =O157*100+P157 -> 1000807 | B157: 5159 | C157: 疯痴相聚 | J157: 104 | K157: =IF(J157="","",VLOOKUP(J157,EventNPC!A:E,5,FALSE)) -> 痴道人 | L157: 5168 | M157: （抬头）......我，我真的不记得了。 | O157: 10008 | P157: 7 | T157: =IF(R157="","","-"&VLOOKUP(R157,EventConditionConfig!A:C,3,FALSE)&IF(S157="","",CHAR(10)&"-"&VLOOKUP(S157,EventConditionConfig!A:C,3,FALSE))) ->  | AF157: =IF(A157="","",IF(ISNUMBER(Y157),2,IF(A158="",IF(OR(AH157>0,VLOOKUP(O157,EventConfig!A:C,3,FALSE)=4),3,""),1))) -> 1 | AG157: 1000808 | AI157: 5168
A158: =O158*100+P158 -> 1000808 | B158: 5159 | C158: 疯痴相聚 | J158: 103 | K158: =IF(J158="","",VLOOKUP(J158,EventNPC!A:E,5,FALSE)) -> 疯道人 | L158: 5169 | M158: 那就放下风灵珠，和我出去走走。 | O158: 10008 | P158: 8 | T158: =IF(R158="","","-"&VLOOKUP(R158,EventConditionConfig!A:C,3,FALSE)&IF(S158="","",CHAR(10)&"-"&VLOOKUP(S158,EventConditionConfig!A:C,3,FALSE))) ->  | AF158: =IF(A158="","",IF(ISNUMBER(Y158),2,IF(A159="",IF(OR(AH158>0,VLOOKUP(O158,EventConfig!A:C,3,FALSE)=4),3,""),1))) -> 1 | AG158: 1000809 | AI158: 5169
A159: =O159*100+P159 -> 1000809 | B159: 5159 | C159: 疯痴相聚 | J159: 103 | K159: =IF(J159="","",VLOOKUP(J159,EventNPC!A:E,5,FALSE)) -> 疯道人 | L159: 5170 | M159: [痴道人楞了一下，片刻后轻轻点头] | O159: 10008 | P159: 9 | Q159: =_xlfn.TEXTJOIN(";",1,R159:S159) ->  | T159: =IF(R159="","","-"&VLOOKUP(R159,EventConditionConfig!A:C,3,FALSE)&IF(S159="","",CHAR(10)&"-"&VLOOKUP(S159,EventConditionConfig!A:C,3,FALSE))) ->  | AF159: =IF(A159="","",IF(ISNUMBER(Y159),2,IF(A160="",IF(OR(AH159>0,VLOOKUP(O159,EventConfig!A:C,3,FALSE)=4),3,""),1))) -> 1 | AG159: 1000810 | AI159: 5170
A160: =O160*100+P160 -> 1000810 | B160: 5159 | C160: 疯痴相聚 | K160: =IF(J160="","",VLOOKUP(J160,EventNPC!A:E,5,FALSE)) ->  | L160: 5171 | M160: [突然..洞府周围灵气汇聚，快速涌入痴道人的身体.] | O160: 10008 | P160: 10 | T160: =IF(R160="","","-"&VLOOKUP(R160,EventConditionConfig!A:C,3,FALSE)&IF(S160="","",CHAR(10)&"-"&VLOOKUP(S160,EventConditionConfig!A:C,3,FALSE))) ->  | U160: 1 | V160: =A161 -> 1000811 | W160: 5172 | X160: 5172 | Y160: 前辈，为何灵气会动！ | AF160: =IF(A160="","",IF(ISNUMBER(Y160),2,IF(A161="",IF(OR(AH160>0,VLOOKUP(O160,EventConfig!A:C,3,FALSE)=4),3,""),1))) -> 1 | AG160: 1000811 | AI160: 5172
A161: =O161*100+P161 -> 1000811 | B161: 5159 | C161: 疯痴相聚 | J161: 103 | K161: =IF(J161="","",VLOOKUP(J161,EventNPC!A:E,5,FALSE)) -> 疯道人 | L161: 5173 | M161: 恭喜师弟，突破心魔。 | O161: 10008 | P161: 11 | T161: =IF(R161="","","-"&VLOOKUP(R161,EventConditionConfig!A:C,3,FALSE)&IF(S161="","",CHAR(10)&"-"&VLOOKUP(S161,EventConditionConfig!A:C,3,FALSE))) ->  | AF161: =IF(A161="","",IF(ISNUMBER(Y161),2,IF(A162="",IF(OR(AH161>0,VLOOKUP(O161,EventConfig!A:C,3,FALSE)=4),3,""),1))) -> 1 | AG161: 1000812 | AI161: 5173
A162: =O162*100+P162 -> 1000812 | B162: 5159 | C162: 疯痴相聚 | J162: 104 | K162: =IF(J162="","",VLOOKUP(J162,EventNPC!A:E,5,FALSE)) -> 痴道人 | L162: 5174 | M162: 多谢师兄！ | O162: 10008 | P162: 12 | T162: =IF(R162="","","-"&VLOOKUP(R162,EventConditionConfig!A:C,3,FALSE)&IF(S162="","",CHAR(10)&"-"&VLOOKUP(S162,EventConditionConfig!A:C,3,FALSE))) ->  | U162: 1 | V162: =IF(U162=1,_xlfn.TEXTJOIN(";",1,IF(Z162="",A162+1,Z162),IF(AND(AA162<>"",AC162=""),A162+1,AC162)),IF(U162=2,Y162,"")) -> 1000813;1000813 | W162: 5175;5176 | X162: 5175 | Y162: 原来如此… | AA162: 5176 | AB162: 请前辈赐我风灵珠。 | AF162: =IF(A162="","",IF(ISNUMBER(Y162),2,IF(A163="",IF(OR(AH162>0,VLOOKUP(O162,EventConfig!A:C,3,FALSE)=4),3,""),1))) -> 1 | AG162: 1000813 | AI162: 5176
A163: =O163*100+P163 -> 1000813 | B163: 5159 | C163: 疯痴相聚 | J163: 104 | K163: =IF(J163="","",VLOOKUP(J163,EventNPC!A:E,5,FALSE)) -> 痴道人 | L163: 5177 | M163: 小友莫急… (说罢，痴道人将风灵珠的碎片合成了一颗完整的风灵珠) | O163: 10008 | P163: 13 | T163: =IF(R163="","","-"&VLOOKUP(R163,EventConditionConfig!A:C,3,FALSE)&IF(S163="","",CHAR(10)&"-"&VLOOKUP(S163,EventConditionConfig!A:C,3,FALSE))) ->  | AF163: =IF(A163="","",IF(ISNUMBER(Y163),2,IF(A164="",IF(OR(AH163>0,VLOOKUP(O163,EventConfig!A:C,3,FALSE)=4),3,""),1))) -> 1 | AG163: 1000814 | AI163: 5177
A164: =O164*100+P164 -> 1000814 | B164: 5159 | C164: 疯痴相聚 | J164: 104 | K164: =IF(J164="","",VLOOKUP(J164,EventNPC!A:E,5,FALSE)) -> 痴道人 | L164: 5178 | M164: 拿好了，这风啊……来一回，不容易。 | O164: 10008 | P164: 14 | T164: =IF(R164="","","-"&VLOOKUP(R164,EventConditionConfig!A:C,3,FALSE)&IF(S164="","",CHAR(10)&"-"&VLOOKUP(S164,EventConditionConfig!A:C,3,FALSE))) ->  | AF164: =IF(A164="","",IF(ISNUMBER(Y164),2,IF(A165="",IF(OR(AH164>0,VLOOKUP(O164,EventConfig!A:C,3,FALSE)=4),3,""),1))) -> 3 | AG164: 10009 | AI164: 5178
T165: =IF(R165="","","-"&VLOOKUP(R165,EventConditionConfig!A:C,3,FALSE)&IF(S165="","",CHAR(10)&"-"&VLOOKUP(S165,EventConditionConfig!A:C,3,FALSE))) ->  | AF165: =IF(A165="","",IF(ISNUMBER(Y165),2,IF(A166="",IF(OR(AH165>0,VLOOKUP(O165,EventConfig!A:C,3,FALSE)=4),3,""),1))) -> 
A166: =O166*100+P166 -> 1000901 | B166: 5179 | C166: 达到筑基后期 | J166: 100 | K166: =IF(J166="","",VLOOKUP(J166,EventNPC!A:E,5,FALSE)) -> 玩家 | L166: 5180 | M166: 完整的风灵珠果然不同凡响，我可以更大的狂风中穿行了。 | O166: =IF(O165="",O164+1,O165) -> 10009 | P166: 1 | T166: =IF(R166="","","-"&VLOOKUP(R166,EventConditionConfig!A:C,3,FALSE)&IF(S166="","",CHAR(10)&"-"&VLOOKUP(S166,EventConditionConfig!A:C,3,FALSE))) ->  | W166: =_xlfn.TEXTJOIN(";",1,X166,AA166) ->  | AF166: =IF(A166="","",IF(ISNUMBER(Y166),2,IF(A167="",IF(OR(AH166>0,VLOOKUP(O166,EventConfig!A:C,3,FALSE)=4),3,""),1))) -> 1 | AG166: 1000902 | AI166: 5180
A167: =O167*100+P167 -> 1000902 | B167: 5179 | C167: 达到筑基后期 | J167: 100 | K167: =IF(J167="","",VLOOKUP(J167,EventNPC!A:E,5,FALSE)) -> 玩家 | L167: 5181 | M167: 前方似乎有不少高阶妖兽，我先在此地提升一些修为吧。 | O167: =IF(O166="",O165+1,O166) -> 10009 | P167: 2 | T167: =IF(R167="","","-"&VLOOKUP(R167,EventConditionConfig!A:C,3,FALSE)&IF(S167="","",CHAR(10)&"-"&VLOOKUP(S167,EventConditionConfig!A:C,3,FALSE))) ->  | W167: =_xlfn.TEXTJOIN(";",1,X167,AA167) ->  | AF167: =IF(A167="","",IF(ISNUMBER(Y167),2,IF(A168="",IF(OR(AH167>0,VLOOKUP(O167,EventConfig!A:C,3,FALSE)=4),3,""),1))) -> 1 | AG167: 1000903 | AI167: 5181
A168: =O168*100+P168 -> 1000903 | B168: 5179 | C168: 达到筑基后期 | J168: 100 | K168: =IF(J168="","",VLOOKUP(J168,EventNPC!A:E,5,FALSE)) -> 玩家 | L168: 5182 | M168: 继续寻找冲虚提到的“七道心境”吧，不知鲲鹏是否会给我答案。 | O168: 10009 | P168: 3 | Q168: 8 | R168: 8 | T168: =IF(R168="","","-"&VLOOKUP(R168,EventConditionConfig!A:C,3,FALSE)&IF(S168="","",CHAR(10)&"-"&VLOOKUP(S168,EventConditionConfig!A:C,3,FALSE))) -> -达到境界：练气-后期 | W168: =_xlfn.TEXTJOIN(";",1,X168,AA168) ->  | AF168: =IF(A168="","",IF(ISNUMBER(Y168),2,IF(A169="",IF(OR(AH168>0,VLOOKUP(O168,EventConfig!A:C,3,FALSE)=4),3,""),1))) -> 3 | AG168: 10010 | AI168: 5182
T169: =IF(R169="","","-"&VLOOKUP(R169,EventConditionConfig!A:C,3,FALSE)&IF(S169="","",CHAR(10)&"-"&VLOOKUP(S169,EventConditionConfig!A:C,3,FALSE))) ->  | AF169: =IF(A169="","",IF(ISNUMBER(Y169),2,IF(A170="",IF(OR(AH169>0,VLOOKUP(O169,EventConfig!A:C,3,FALSE)=4),3,""),1))) -> 
A170: =O170*100+P170 -> 1001001 | B170: 5183 | C170: 妖兽横行 | K170: =IF(J170="","",VLOOKUP(J170,EventNPC!A:E,5,FALSE)) ->  | L170: 5184 | M170: 你深入北海，海浪翻涌，云雾缭绕。 | O170: =IF(O169="",O168+1,O169) -> 10010 | P170: 1 | T170: =IF(R170="","","-"&VLOOKUP(R170,EventConditionConfig!A:C,3,FALSE)&IF(S170="","",CHAR(10)&"-"&VLOOKUP(S170,EventConditionConfig!A:C,3,FALSE))) ->  | W170: =_xlfn.TEXTJOIN(";",1,X170,AA170) ->  | AF170: =IF(A170="","",IF(ISNUMBER(Y170),2,IF(A171="",IF(OR(AH170>0,VLOOKUP(O170,EventConfig!A:C,3,FALSE)=4),3,""),1))) -> 1 | AG170: 1001002 | AI170: 5184
A171: =O171*100+P171 -> 1001002 | B171: 5183 | C171: 妖兽横行 | K171: =IF(J171="","",VLOOKUP(J171,EventNPC!A:E,5,FALSE)) ->  | L171: 5185 | M171: 深处阴冷气息笼罩，妖兽从浪中涌出，狂暴阻路，仿佛在守护北海的秘密。 | O171: =IF(O170="",O169+1,O170) -> 10010 | P171: 2 | Q171: =_xlfn.TEXTJOIN(";",1,R171:S171) ->  | T171: =IF(R171="","","-"&VLOOKUP(R171,EventConditionConfig!A:C,3,FALSE)&IF(S171="","",CHAR(10)&"-"&VLOOKUP(S171,EventConditionConfig!A:C,3,FALSE))) ->  | AF171: =IF(A171="","",IF(ISNUMBER(Y171),2,IF(A172="",IF(OR(AH171>0,VLOOKUP(O171,EventConfig!A:C,3,FALSE)=4),3,""),1))) -> 1 | AG171: 1001003 | AI171: 5185
A172: =O172*100+P172 -> 1001003 | B172: 5183 | C172: 妖兽横行 | K172: =IF(J172="","",VLOOKUP(J172,EventNPC!A:E,5,FALSE)) ->  | L172: 5186 | M172: 风灵珠碎片微微发光，助你御风而战。 | O172: =IF(O171="",O170+1,O171) -> 10010 | P172: 3 | Q172: =_xlfn.TEXTJOIN(";",1,R172:S172) ->  | T172: =IF(R172="","","-"&VLOOKUP(R172,EventConditionConfig!A:C,3,FALSE)&IF(S172="","",CHAR(10)&"-"&VLOOKUP(S172,EventConditionConfig!A:C,3,FALSE))) ->  | AF172: =IF(A172="","",IF(ISNUMBER(Y172),2,IF(A173="",IF(OR(AH172>0,VLOOKUP(O172,EventConfig!A:C,3,FALSE)=4),3,""),1))) -> 1 | AG172: 1001004 | AI172: 5186
A173: 1001004 | B173: 5183 | C173: 妖兽横行 | K173: =IF(J173="","",VLOOKUP(J173,EventNPC!A:E,5,FALSE)) ->  | L173: 5187 | M173: 这些妖兽挡道……看来得先清扫一番，才能继续前行。 | O173: =IF(O170="",O169+1,O170) -> 10010 | P173: 4 | Q173: =_xlfn.TEXTJOIN(";",1,R173:S173) ->  | T173: =IF(R173="","","-"&VLOOKUP(R173,EventConditionConfig!A:C,3,FALSE)&IF(S173="","",CHAR(10)&"-"&VLOOKUP(S173,EventConditionConfig!A:C,3,FALSE))) ->  | AF173: =IF(A173="","",IF(ISNUMBER(Y173),2,IF(A174="",IF(OR(AH173>0,VLOOKUP(O173,EventConfig!A:C,3,FALSE)=4),3,""),1))) -> 1 | AG173: 1001005 | AI173: 5187
A174: 1001005 | B174: 5188 | C174: 妖兽肆虐 | J174: 120 | K174: =IF(J174="","",VLOOKUP(J174,EventNPC!A:E,5,FALSE)) -> 妖兽 | L174: 5189 | M174: （咆哮，从深浪跃出）“外来者，北海无路！” | O174: =IF(O170="",O169+1,O170) -> 10010 | P174: 5 | Q174: =_xlfn.TEXTJOIN(";",1,R174:S174) -> 9 | R174: 9 | T174: =IF(R174="","","-"&VLOOKUP(R174,EventConditionConfig!A:C,3,FALSE)&IF(S174="","",CHAR(10)&"-"&VLOOKUP(S174,EventConditionConfig!A:C,3,FALSE))) -> -击杀北海小妖 | AF174: =IF(A174="","",IF(ISNUMBER(Y174),2,IF(A175="",IF(OR(AH174>0,VLOOKUP(O174,EventConfig!A:C,3,FALSE)=4),3,""),1))) -> 1 | AG174: 1001006 | AI174: 5189
A175: =O175*100+P175 -> 1001006 | B175: 5188 | C175: 妖兽肆虐 | K175: =IF(J175="","",VLOOKUP(J175,EventNPC!A:E,5,FALSE)) ->  | O175: =IF(O171="",O170+1,O171) -> 10010 | P175: 6 | Q175: =_xlfn.TEXTJOIN(";",1,R175:S175) -> 36 | R175: 36 | T175: =IF(R175="","","-"&VLOOKUP(R175,EventConditionConfig!A:C,3,FALSE)&IF(S175="","",CHAR(10)&"-"&VLOOKUP(S175,EventConditionConfig!A:C,3,FALSE))) -> -击杀北海妖兽精英 | U175: 2 | V175: 1003 | Y175: 1003 | AF175: =IF(A175="","",IF(ISNUMBER(Y175),2,IF(A176="",IF(OR(AH175>0,VLOOKUP(O175,EventConfig!A:C,3,FALSE)=4),3,""),1))) -> 2 | AG175: 1001007;101 | AI175: 5189
T176: =IF(R176="","","-"&VLOOKUP(R176,EventConditionConfig!A:C,3,FALSE)&IF(S176="","",CHAR(10)&"-"&VLOOKUP(S176,EventConditionConfig!A:C,3,FALSE))) ->  | AF176: =IF(A176="","",IF(ISNUMBER(Y176),2,IF(A177="",IF(OR(AH176>0,VLOOKUP(O176,EventConfig!A:C,3,FALSE)=4),3,""),1))) -> 
A177: =O177*100+P177 -> 1001101 | B177: 5190 | C177: 与鲲鹏对话 | K177: =IF(J177="","",VLOOKUP(J177,EventNPC!A:E,5,FALSE)) ->  | L177: 5191 | M177: 你来到北海尽头。水面如镜，深不见底。一道巨影在水底游弋，这就是北海之鱼——鲲，至少有几千里那么大。 | O177: =IF(O176="",O170+1,O176) -> 10011 | P177: 1 | T177: =IF(R177="","","-"&VLOOKUP(R177,EventConditionConfig!A:C,3,FALSE)&IF(S177="","",CHAR(10)&"-"&VLOOKUP(S177,EventConditionConfig!A:C,3,FALSE))) ->  | W177: =_xlfn.TEXTJOIN(";",1,X177,AA177) ->  | AF177: =IF(A177="","",IF(ISNUMBER(Y177),2,IF(A178="",IF(OR(AH177>0,VLOOKUP(O177,EventConfig!A:C,3,FALSE)=4),3,""),1))) -> 1 | AG177: 1001102 | AI177: 5191
A178: =O178*100+P178 -> 1001102 | B178: 5190 | C178: 与鲲鹏对话 | J178: 119 | K178: =IF(J178="","",VLOOKUP(J178,EventNPC!A:E,5,FALSE)) -> 鲲鹏 | L178: 5192 | M178: (低沉声，从水底传出，如闷雷回荡）……小子，你寻我何事？身上竟有风灵珠的气息，不简单。 | O178: 10011 | P178: 2 | Q178: =_xlfn.TEXTJOIN(";",1,R178:S178) ->  | T178: =IF(R178="","","-"&VLOOKUP(R178,EventConditionConfig!A:C,3,FALSE)&IF(S178="","",CHAR(10)&"-"&VLOOKUP(S178,EventConditionConfig!A:C,3,FALSE))) ->  | AF178: =IF(A178="","",IF(ISNUMBER(Y178),2,IF(A179="",IF(OR(AH178>0,VLOOKUP(O178,EventConfig!A:C,3,FALSE)=4),3,""),1))) -> 1 | AG178: 1001103 | AI178: 5192
A179: =O179*100+P179 -> 1001103 | B179: 5190 | C179: 与鲲鹏对话 | J179: 100 | K179: =IF(J179="","",VLOOKUP(J179,EventNPC!A:E,5,FALSE)) -> 玩家 | L179: 5193 | M179: 前辈，我受冲虚真人指引，游历天下，正在寻找七道心境。 | O179: 10011 | P179: 3 | Q179: =_xlfn.TEXTJOIN(";",1,R179:S179) ->  | T179: =IF(R179="","","-"&VLOOKUP(R179,EventConditionConfig!A:C,3,FALSE)&IF(S179="","",CHAR(10)&"-"&VLOOKUP(S179,EventConditionConfig!A:C,3,FALSE))) ->  | AF179: =IF(A179="","",IF(ISNUMBER(Y179),2,IF(A180="",IF(OR(AH179>0,VLOOKUP(O179,EventConfig!A:C,3,FALSE)=4),3,""),1))) -> 1 | AG179: 1001104 | AI179: 5193
A180: =O180*100+P180 -> 1001104 | B180: 5190 | C180: 与鲲鹏对话 | J180: 100 | K180: =IF(J180="","",VLOOKUP(J180,EventNPC!A:E,5,FALSE)) -> 玩家 | L180: 5194 | M180: 有缘路过此地，听闻前辈欲飞南海天池，可为何停滞于此？ | O180: 10011 | P180: 4 | Q180: =_xlfn.TEXTJOIN(";",1,R180:S180) ->  | T180: =IF(R180="","","-"&VLOOKUP(R180,EventConditionConfig!A:C,3,FALSE)&IF(S180="","",CHAR(10)&"-"&VLOOKUP(S180,EventConditionConfig!A:C,3,FALSE))) ->  | AF180: =IF(A180="","",IF(ISNUMBER(Y180),2,IF(A181="",IF(OR(AH180>0,VLOOKUP(O180,EventConfig!A:C,3,FALSE)=4),3,""),1))) -> 1 | AG180: 1001105 | AI180: 5194
A181: 1001105 | B181: 5190 | C181: 与鲲鹏对话 | J181: 119 | K181: =IF(J181="","",VLOOKUP(J181,EventNPC!A:E,5,FALSE)) -> 鲲鹏 | L181: 5195 | M181: （叹息，水面微颤）北海虽广，却无龙卷大风，我无法化鹏南飞，已困千年。 | O181: 10011 | P181: 5 | T181: =IF(R181="","","-"&VLOOKUP(R181,EventConditionConfig!A:C,3,FALSE)&IF(S181="","",CHAR(10)&"-"&VLOOKUP(S181,EventConditionConfig!A:C,3,FALSE))) ->  | W181: 5196 | X181: 5196 | Y181: 我愿助一臂之力 | AF181: =IF(A181="","",IF(ISNUMBER(Y181),2,IF(A182="",IF(OR(AH181>0,VLOOKUP(O181,EventConfig!A:C,3,FALSE)=4),3,""),1))) -> 1 | AG181: 1001106 | AI181: 5196
A182: 1001106 | B182: 5190 | C182: 与鲲鹏对话 | J182: 119 | K182: =IF(J182="","",VLOOKUP(J182,EventNPC!A:E,5,FALSE)) -> 鲲鹏 | L182: 5197 | M182: （低笑）你修为尚浅，虽然聚齐了风灵珠，但却无法召唤龙卷大风。 | O182: 10011 | P182: 6 | T182: =IF(R182="","","-"&VLOOKUP(R182,EventConditionConfig!A:C,3,FALSE)&IF(S182="","",CHAR(10)&"-"&VLOOKUP(S182,EventConditionConfig!A:C,3,FALSE))) ->  | AF182: =IF(A182="","",IF(ISNUMBER(Y182),2,IF(A183="",IF(OR(AH182>0,VLOOKUP(O182,EventConfig!A:C,3,FALSE)=4),3,""),1))) -> 1 | AG182: 1001107 | AI182: 5197
A183: =O183*100+P183 -> 1001107 | B183: 5190 | C183: 与鲲鹏对话 | J183: 119 | K183: =IF(J183="","",VLOOKUP(J183,EventNPC!A:E,5,FALSE)) -> 鲲鹏 | L183: 5198 | M183: 走吧，去尧都看看，继续你的游历，或许机缘自来。 | O183: 10011 | P183: 7 | Q183: =_xlfn.TEXTJOIN(";",1,R183:S183) ->  | T183: =IF(R183="","","-"&VLOOKUP(R183,EventConditionConfig!A:C,3,FALSE)&IF(S183="","",CHAR(10)&"-"&VLOOKUP(S183,EventConditionConfig!A:C,3,FALSE))) ->  | AF183: =IF(A183="","",IF(ISNUMBER(Y183),2,IF(A184="",IF(OR(AH183>0,VLOOKUP(O183,EventConfig!A:C,3,FALSE)=4),3,""),1))) -> 1 | AG183: 1001108 | AI183: 5198
A184: 1001108 | B184: 5190 | C184: 与鲲鹏对话 | J184: 100 | K184: =IF(J184="","",VLOOKUP(J184,EventNPC!A:E,5,FALSE)) -> 玩家 | L184: 5199 | M184: 多谢前辈指点。我一定会回来，再助前辈一飞冲天。 | O184: 10011 | P184: 8 | T184: =IF(R184="","","-"&VLOOKUP(R184,EventConditionConfig!A:C,3,FALSE)&IF(S184="","",CHAR(10)&"-"&VLOOKUP(S184,EventConditionConfig!A:C,3,FALSE))) ->  | AF184: =IF(A184="","",IF(ISNUMBER(Y184),2,IF(A185="",IF(OR(AH184>0,VLOOKUP(O184,EventConfig!A:C,3,FALSE)=4),3,""),1))) -> 1 | AG184: 1001109 | AI184: 5199
A185: =O185*100+P185 -> 1001109 | B185: 5190 | C185: 与鲲鹏对话 | J185: 100 | K185: =IF(J185="","",VLOOKUP(J185,EventNPC!A:E,5,FALSE)) -> 玩家 | L185: 5200 | M185: 鲲鹏困于无风……看来我的旅程才刚开始。 | O185: 10011 | P185: 9 | Q185: =_xlfn.TEXTJOIN(";",1,R185:S185) ->  | T185: =IF(R185="","","-"&VLOOKUP(R185,EventConditionConfig!A:C,3,FALSE)&IF(S185="","",CHAR(10)&"-"&VLOOKUP(S185,EventConditionConfig!A:C,3,FALSE))) ->  | AF185: =IF(A185="","",IF(ISNUMBER(Y185),2,IF(A186="",IF(OR(AH185>0,VLOOKUP(O185,EventConfig!A:C,3,FALSE)=4),3,""),1))) -> 1 | AG185: 1001110 | AI185: 5200
A186: =O186*100+P186 -> 1001110 | B186: 5190 | C186: 与鲲鹏对话 | J186: 100 | K186: =IF(J186="","",VLOOKUP(J186,EventNPC!A:E,5,FALSE)) -> 玩家 | L186: 5201 | M186: 冲虚真人所言的“七道心境”，或许就在前方。 | O186: 10011 | P186: 10 | Q186: =_xlfn.TEXTJOIN(";",1,R186:S186) ->  | T186: =IF(R186="","","-"&VLOOKUP(R186,EventConditionConfig!A:C,3,FALSE)&IF(S186="","",CHAR(10)&"-"&VLOOKUP(S186,EventConditionConfig!A:C,3,FALSE))) ->  | AF186: =IF(A186="","",IF(ISNUMBER(Y186),2,IF(A187="",IF(OR(AH186>0,VLOOKUP(O186,EventConfig!A:C,3,FALSE)=4),3,""),1))) -> 1 | AG186: 1001111 | AI186: 5201
A187: =O187*100+P187 -> 1001111 | B187: 5190 | C187: 与鲲鹏对话 | J187: 100 | K187: =IF(J187="","",VLOOKUP(J187,EventNPC!A:E,5,FALSE)) -> 玩家 | L187: 5202 | M187: 去尧之都走一遭吧。 | O187: 10011 | P187: 11 | Q187: =_xlfn.TEXTJOIN(";",1,R187:S187) ->  | T187: =IF(R187="","","-"&VLOOKUP(R187,EventConditionConfig!A:C,3,FALSE)&IF(S187="","",CHAR(10)&"-"&VLOOKUP(S187,EventConditionConfig!A:C,3,FALSE))) ->  | AF187: =IF(A187="","",IF(ISNUMBER(Y187),2,IF(A188="",IF(OR(AH187>0,VLOOKUP(O187,EventConfig!A:C,3,FALSE)=4),3,""),1))) -> 1 | AG187: 1001112 | AI187: 5202
A188: =O188*100+P188 -> 1001112 | B188: 5190 | C188: 与鲲鹏对话 | K188: =IF(J188="","",VLOOKUP(J188,EventNPC!A:E,5,FALSE)) ->  | O188: 10011 | P188: 12 | Q188: =_xlfn.TEXTJOIN(";",1,R188:S188) -> 14 | R188: 14 | T188: =IF(R188="","","-"&VLOOKUP(R188,EventConditionConfig!A:C,3,FALSE)&IF(S188="","",CHAR(10)&"-"&VLOOKUP(S188,EventConditionConfig!A:C,3,FALSE))) -> -达到境界：筑基-前期 | AF188: =IF(A188="","",IF(ISNUMBER(Y188),2,IF(A189="",IF(OR(AH188>0,VLOOKUP(O188,EventConfig!A:C,3,FALSE)=4),3,""),1))) -> 3 | AG188: 10012 | AI188: 5202
O189: =IF(M189="","",IF(O177="",O176+1,O177)) ->  | T189: =IF(R189="","","-"&VLOOKUP(R189,EventConditionConfig!A:C,3,FALSE)&IF(S189="","",CHAR(10)&"-"&VLOOKUP(S189,EventConditionConfig!A:C,3,FALSE))) ->  | AF189: =IF(A189="","",IF(ISNUMBER(Y189),2,IF(A190="",IF(OR(AH189>0,VLOOKUP(O189,EventConfig!A:C,3,FALSE)=4),3,""),1))) -> 
A190: =O190*100+P190 -> 1001201 | B190: 5203 | C190: 前往尧都地界 | K190: =IF(J190="","",VLOOKUP(J190,EventNPC!A:E,5,FALSE)) ->  | L190: 5204 | M190: 你离开北海，御剑而行。逍遥铃微微颤动，似乎在指引下一个方向——尧之都，那片祥和的仙域。 | O190: =IF(M190="","",IF(O189="",O177+1,O189)) -> 10012 | P190: 1 | T190: =IF(R190="","","-"&VLOOKUP(R190,EventConditionConfig!A:C,3,FALSE)&IF(S190="","",CHAR(10)&"-"&VLOOKUP(S190,EventConditionConfig!A:C,3,FALSE))) ->  | U190: =IF(Y190="","",IF(ISTEXT(Y190),1,2)) ->  | V190: =IF(U190=1,_xlfn.TEXTJOIN(";",1,IF(Z190="",A190+1,Z190),IF(AND(AA190<>"",AC190=""),A190+1,AC190)),IF(U190=2,Y190,"")) ->  | W190: =_xlfn.TEXTJOIN(";",1,X190,AA190) ->  | AF190: =IF(A190="","",IF(ISNUMBER(Y190),2,IF(A191="",IF(OR(AH190>0,VLOOKUP(O190,EventConfig!A:C,3,FALSE)=4),3,""),1))) -> 1 | AG190: 1001202 | AI190: 5204
A191: =O191*100+P191 -> 1001202 | B191: 5203 | C191: 前往尧都地界 | K191: =IF(J191="","",VLOOKUP(J191,EventNPC!A:E,5,FALSE)) ->  | L191: 5205 | M191: 鲲鹏前辈提及尧都，或许那里有助你悟道的关键。 | O191: =IF(M191="","",IF(O190="",O178+1,O190)) -> 10012 | P191: 2 | Q191: =_xlfn.TEXTJOIN(";",1,R191:S191) ->  | T191: =IF(R191="","","-"&VLOOKUP(R191,EventConditionConfig!A:C,3,FALSE)&IF(S191="","",CHAR(10)&"-"&VLOOKUP(S191,EventConditionConfig!A:C,3,FALSE))) ->  | U191: =IF(Y191="","",IF(ISTEXT(Y191),1,2)) ->  | V191: =IF(U191=1,_xlfn.TEXTJOIN(";",1,IF(Z191="",A191+1,Z191),IF(AND(AA191<>"",AC191=""),A191+1,AC191)),IF(U191=2,Y191,"")) ->  | W191: =_xlfn.TEXTJOIN(";",1,X191,AA191) ->  | AF191: =IF(A191="","",IF(ISNUMBER(Y191),2,IF(A192="",IF(OR(AH191>0,VLOOKUP(O191,EventConfig!A:C,3,FALSE)=4),3,""),1))) -> 1 | AG191: 1001203 | AI191: 5205
A192: =O192*100+P192 -> 1001203 | B192: 5203 | C192: 前往尧都地界 | K192: =IF(J192="","",VLOOKUP(J192,EventNPC!A:E,5,FALSE)) ->  | L192: 5206 | M192: 尧都……据说这里仙凡混居，国泰民安。帝尧治理有方，或许能找到更多线索。 | O192: =IF(M192="","",IF(O191="",O179+1,O191)) -> 10012 | P192: 3 | Q192: =_xlfn.TEXTJOIN(";",1,R192:S192) ->  | T192: =IF(R192="","","-"&VLOOKUP(R192,EventConditionConfig!A:C,3,FALSE)&IF(S192="","",CHAR(10)&"-"&VLOOKUP(S192,EventConditionConfig!A:C,3,FALSE))) ->  | U192: =IF(Y192="","",IF(ISTEXT(Y192),1,2)) ->  | V192: =IF(U192=1,_xlfn.TEXTJOIN(";",1,IF(Z192="",A192+1,Z192),IF(AND(AA192<>"",AC192=""),A192+1,AC192)),IF(U192=2,Y192,"")) ->  | W192: =_xlfn.TEXTJOIN(";",1,X192,AA192) ->  | AF192: =IF(A192="","",IF(ISNUMBER(Y192),2,IF(A193="",IF(OR(AH192>0,VLOOKUP(O192,EventConfig!A:C,3,FALSE)=4),3,""),1))) -> 3 | AG192: 10013 | AI192: 5206
O193: =IF(M193="","",IF(O190="",O189+1,O190)) ->  | AF193: =IF(A193="","",IF(ISNUMBER(Y193),2,IF(A194="",IF(OR(AH193>0,VLOOKUP(O193,EventConfig!A:C,3,FALSE)=4),3,""),1))) -> 
A194: =O194*100+P194 -> 1001301 | B194: 5207 | C194: 尧让天下 | D194: 5208 | E194: 倾听尧帝的烦恼 | K194: =IF(J194="","",VLOOKUP(J194,EventNPC!A:E,5,FALSE)) ->  | L194: 5209 | M194: 你踏入帝尧治下的仙域——一片祥和之地，灵气充沛，民众安居，仿佛世外桃源。 | O194: =IF(M194="","",IF(O193="",O190+1,O193)) -> 10013 | P194: 1 | T194: =IF(R194="","","-"&VLOOKUP(R194,EventConditionConfig!A:C,3,FALSE)&IF(S194="","",CHAR(10)&"-"&VLOOKUP(S194,EventConditionConfig!A:C,3,FALSE))) ->  | W194: =_xlfn.TEXTJOIN(";",1,X194,AA194) ->  | AF194: =IF(A194="","",IF(ISNUMBER(Y194),2,IF(A195="",IF(OR(AH194>0,VLOOKUP(O194,EventConfig!A:C,3,FALSE)=4),3,""),1))) -> 1 | AG194: 1001302 | AI194: 5209
A195: =O195*100+P195 -> 1001302 | B195: 5207 | C195: 尧让天下 | D195: 5208 | E195: 倾听尧帝的烦恼 | K195: =IF(J195="","",VLOOKUP(J195,EventNPC!A:E,5,FALSE)) ->  | L195: 5210 | M195: 然而，这位千年帝君，却眉宇间有难掩的忧色。 | O195: =IF(O194="",O193+1,O194) -> 10013 | P195: 2 | T195: =IF(R195="","","-"&VLOOKUP(R195,EventConditionConfig!A:C,3,FALSE)&IF(S195="","",CHAR(10)&"-"&VLOOKUP(S195,EventConditionConfig!A:C,3,FALSE))) ->  | AF195: =IF(A195="","",IF(ISNUMBER(Y195),2,IF(A196="",IF(OR(AH195>0,VLOOKUP(O195,EventConfig!A:C,3,FALSE)=4),3,""),1))) -> 1 | AG195: 1001303 | AI195: 5210
A196: =O196*100+P196 -> 1001303 | B196: 5207 | C196: 尧让天下 | D196: 5208 | E196: 倾听尧帝的烦恼 | K196: =IF(J196="","",VLOOKUP(J196,EventNPC!A:E,5,FALSE)) ->  | L196: 5211 | M196: （你根据逍遥铃的指引，找到了尧） | O196: 10013 | P196: 3 | T196: =IF(R196="","","-"&VLOOKUP(R196,EventConditionConfig!A:C,3,FALSE)&IF(S196="","",CHAR(10)&"-"&VLOOKUP(S196,EventConditionConfig!A:C,3,FALSE))) ->  | U196: 1 | V196: =A197 -> 1001304 | W196: 5212 | X196: 5212 | Y196: 拜见帝尧，晚辈受冲虚真人的指引，游历到此处。 | AF196: =IF(A196="","",IF(ISNUMBER(Y196),2,IF(A197="",IF(OR(AH196>0,VLOOKUP(O196,EventConfig!A:C,3,FALSE)=4),3,""),1))) -> 1 | AG196: 1001304 | AI196: 5212
A197: =O197*100+P197 -> 1001304 | B197: 5207 | C197: 尧让天下 | D197: 5208 | E197: 倾听尧帝的烦恼 | J197: 105 | K197: =IF(J197="","",VLOOKUP(J197,EventNPC!A:E,5,FALSE)) -> 尧帝 | L197: 5213 | M197: （缓缓回头，脸上带着淡淡忧虑）冲虚真人吗？我也许久没见了.. | O197: 10013 | P197: 4 | T197: =IF(R197="","","-"&VLOOKUP(R197,EventConditionConfig!A:C,3,FALSE)&IF(S197="","",CHAR(10)&"-"&VLOOKUP(S197,EventConditionConfig!A:C,3,FALSE))) ->  | AF197: =IF(A197="","",IF(ISNUMBER(Y197),2,IF(A198="",IF(OR(AH197>0,VLOOKUP(O197,EventConfig!A:C,3,FALSE)=4),3,""),1))) -> 1 | AG197: 1001305 | AI197: 5213
A198: =O198*100+P198 -> 1001305 | B198: 5207 | C198: 尧让天下 | D198: =IF(E198="","",IF(E198=E197,D197,MAX(AI197,AI196,B198)+1)) -> 5208 | E198: 倾听尧帝的烦恼 | J198: 105 | K198: =IF(J198="","",VLOOKUP(J198,EventNPC!A:E,5,FALSE)) -> 尧帝 | L198: =IF(M198="","",MAX(AI197,AI196,B198,D198)+1) -> 5214 | M198: (尧帝邀你来到一高处) 小友，你看此处景致如何？ | O198: 10013 | P198: 5 | T198: =IF(R198="","","-"&VLOOKUP(R198,EventConditionConfig!A:C,3,FALSE)&IF(S198="","",CHAR(10)&"-"&VLOOKUP(S198,EventConditionConfig!A:C,3,FALSE))) ->  | U198: 1 | V198: 1001306;1001306 | W198: 5215;5216 | X198: 5215 | Y198: 万象更新，灵气环绕，是修行的福地。 | AA198: 5216 | AB198: 国泰民安，仙人治理，世间罕见。 | AF198: =IF(A198="","",IF(ISNUMBER(Y198),2,IF(A199="",IF(OR(AH198>0,VLOOKUP(O198,EventConfig!A:C,3,FALSE)=4),3,""),1))) -> 1 | AG198: 1001306 | AI198: =IF(A198="","",MAX(B198,D198,L198,X198,AA198,AI197,AI196)) -> 5216
A199: =O199*100+P199 -> 1001306 | B199: 5207 | C199: 尧让天下 | D199: 5208 | E199: 倾听尧帝的烦恼 | J199: 105 | K199: =IF(J199="","",VLOOKUP(J199,EventNPC!A:E,5,FALSE)) -> 尧帝 | L199: 5217 | M199: （叹息）是啊，人人自在，唯我不自在。这些年来，我境界难以寸进，已有百年。 | O199: 10013 | P199: 6 | T199: =IF(R199="","","-"&VLOOKUP(R199,EventConditionConfig!A:C,3,FALSE)&IF(S199="","",CHAR(10)&"-"&VLOOKUP(S199,EventConditionConfig!A:C,3,FALSE))) ->  | U199: 1 | V199: =A200 -> 1001307 | W199: 5218 | X199: 5218 | Y199: 帝尧何出此言？ | AF199: =IF(A199="","",IF(ISNUMBER(Y199),2,IF(A200="",IF(OR(AH199>0,VLOOKUP(O199,EventConfig!A:C,3,FALSE)=4),3,""),1))) -> 1 | AG199: 1001307 | AI199: 5218
A200: =O200*100+P200 -> 1001307 | B200: 5207 | C200: 尧让天下 | D200: 5208 | E200: 倾听尧帝的烦恼 | J200: 105 | K200: =IF(J200="","",VLOOKUP(J200,EventNPC!A:E,5,FALSE)) -> 尧帝 | L200: 5219 | M200: 你等散修，自由自在，来去如风，可曾体会过身负重任的滋味？ | O200: 10013 | P200: 7 | T200: =IF(R200="","","-"&VLOOKUP(R200,EventConditionConfig!A:C,3,FALSE)&IF(S200="","",CHAR(10)&"-"&VLOOKUP(S200,EventConditionConfig!A:C,3,FALSE))) ->  | U200: 1 | V200: =A201 -> 1001308 | W200: 5220 | X200: 5220 | Y200: 也有重担，却未必如帝尧这样复杂。 | AF200: =IF(A200="","",IF(ISNUMBER(Y200),2,IF(A201="",IF(OR(AH200>0,VLOOKUP(O200,EventConfig!A:C,3,FALSE)=4),3,""),1))) -> 1 | AG200: 1001308 | AI200: 5220
A201: =O201*100+P201 -> 1001308 | B201: 5207 | C201: 尧让天下 | D201: 5208 | E201: 倾听尧帝的烦恼 | J201: 105 | K201: =IF(J201="","",VLOOKUP(J201,EventNPC!A:E,5,FALSE)) -> 尧帝 | L201: 5221 | M201: （微微一笑，摇头）天下如画卷，画卷再美，日夜背负，也终是负担。 | O201: 10013 | P201: 8 | T201: =IF(R201="","","-"&VLOOKUP(R201,EventConditionConfig!A:C,3,FALSE)&IF(S201="","",CHAR(10)&"-"&VLOOKUP(S201,EventConditionConfig!A:C,3,FALSE))) ->  | U201: 1 | V201: =A202 -> 1001309 | W201: 5222 | X201: 5222 | Y201: ...... | AF201: =IF(A201="","",IF(ISNUMBER(Y201),2,IF(A202="",IF(OR(AH201>0,VLOOKUP(O201,EventConfig!A:C,3,FALSE)=4),3,""),1))) -> 1 | AG201: 1001309 | AI201: 5222
A202: =O202*100+P202 -> 1001309 | B202: 5207 | C202: 尧让天下 | D202: 5208 | E202: 倾听尧帝的烦恼 | J202: 105 | K202: =IF(J202="","",VLOOKUP(J202,EventNPC!A:E,5,FALSE)) -> 尧帝 | L202: 5223 | M202: （凝望远方云海）深山之中有位贤士，名为许由，素有盛名，我曾多次请他出山，但未成如愿。 | O202: 10013 | P202: 9 | T202: =IF(R202="","","-"&VLOOKUP(R202,EventConditionConfig!A:C,3,FALSE)&IF(S202="","",CHAR(10)&"-"&VLOOKUP(S202,EventConditionConfig!A:C,3,FALSE))) ->  | AF202: =IF(A202="","",IF(ISNUMBER(Y202),2,IF(A203="",IF(OR(AH202>0,VLOOKUP(O202,EventConfig!A:C,3,FALSE)=4),3,""),1))) -> 1 | AG202: 1001310 | AI202: 5223
A203: =O203*100+P203 -> 1001310 | B203: 5207 | C203: 尧让天下 | D203: 5208 | E203: 倾听尧帝的烦恼 | J203: 105 | K203: =IF(J203="","",VLOOKUP(J203,EventNPC!A:E,5,FALSE)) -> 尧帝 | L203: 5224 | M203: 我甚至提出让天下于他，他也不为所动。 | O203: 10013 | P203: 10 | T203: =IF(R203="","","-"&VLOOKUP(R203,EventConditionConfig!A:C,3,FALSE)&IF(S203="","",CHAR(10)&"-"&VLOOKUP(S203,EventConditionConfig!A:C,3,FALSE))) ->  | U203: 1 | V203: =A204 -> 1001311 | W203: 5225 | X203: 5225 | Y203: 世间竟然有此奇人？ | AF203: =IF(A203="","",IF(ISNUMBER(Y203),2,IF(A204="",IF(OR(AH203>0,VLOOKUP(O203,EventConfig!A:C,3,FALSE)=4),3,""),1))) -> 1 | AG203: 1001311 | AI203: 5225
... 1044 more rows

Sheet EventConditionConfig
A1: ID | B1: message | E1: Operation | G1: ConditionType | H1: ConditionPara | I1: finishCount | J1: RelatedEvents | L1: SkiptoIds
A2: int | B2: int | E2: int | G2: int | H2: int[] | I2: int | J2: int[] | L2: int[]
A4: ID | B4: 描述 | E4: 与0 或1 | G4: 条件判断类型 | H4: 条件判断值 | I4: 条件完成次数or数量 | J4: 关联的事件Id | K4: 提示 | L4: 跳转Id
A5: 1 | B5: 9001 | C5: 拥有金币 | D5: =CONCATENATE("- ",C5,"{0}/{1}") -> - 拥有金币{0}/{1} | G5: 1 | H5: 1001 | I5: 10 | L5: 1;2;3;4
A6: 2 | B6: 9002 | C6: =CONCATENATE("达到境界：",M6,"-",N6) -> 达到境界：练气-中期 | D6: =CONCATENATE("- ",C6,"{0}/{1}") -> - 达到境界：练气-中期{0}/{1} | G6: 3 | H6: 11 | I6: 1 | L6: 1;2;3;4 | M6: 练气 | N6: 中期 | O6: 11 | P6: =CONCATENATE(M6,"-",N6) -> 练气-中期
A7: 3 | B7: 9003 | C7: 击杀魔休 | D7: - 击杀魔休{0}/{1} | G7: 5 | H7: 1001 | I7: 5 | J7: 9031 | L7: 1;2;3;4
A8: 4 | B8: 9004 | C8: 获得钻石 | D8: - 获得钻石{0}/{1} | G8: 6 | H8: 1002 | I8: 10 | L8: 1;2;3;4
A9: 5 | B9: 9005 | C9: 使用神识 | D9: - 使用神识{0}/{1} | G9: 8 | I9: 1 | L9: 5
A10: 6 | B10: 9006 | C10: 继续飞行一段时间 | D10: - 继续飞行一段时间{0}/{1} | G10: 9 | I10: 6 | L10: 1;2;3;4
A11: 7 | B11: 9007 | C11: 击败结界兽 | D11: - 击败结界兽{0}/{1} | G11: 5 | H11: 1002 | I11: 1 | L11: 1;2;3;4
A12: 8 | B12: 9008 | C12: =CONCATENATE("达到境界：",M12,"-",N12) -> 达到境界：练气-后期 | D12: - 达到境界：练气-后期{0}/{1} | G12: 3 | H12: 21 | I12: 1 | L12: 1;2;3;4 | M12: 练气 | N12: 后期 | O12: 21 | P12: =CONCATENATE(M12,"-",N12) -> 练气-后期
A13: 9 | B13: 9009 | C13: 击杀北海小妖 | D13: - 击杀北海小妖{0}/{1} | G13: 5 | H13: 1003 | I13: 3 | J13: 30003 | L13: 1;2;3;4
A14: 10 | B14: 9010 | C14: 击败后山小妖 | D14: - 击败后山小妖{0}/{1} | G14: 5 | H14: 1004 | I14: 3 | J14: 30004 | L14: 1;2;3;4
A15: 11 | B15: 9011 | C15: 收集灵草种子 | D15: - 收集灵草种子{0}/{1} | G15: 6 | H15: 20003 | I15: 3 | J15: 30011 | L15: 1;2;3;4
A16: 12 | B16: 9012 | C16: 击败夜袭的妖兽 | D16: - 击败夜袭的妖兽{0}/{1} | G16: 5 | H16: 1005 | I16: 1 | J16: 30005 | L16: 1;2;3;4
A17: 13 | B17: 9013 | C17: 击败峰顶的妖王 | D17: - 击败峰顶的妖王{0}/{1} | G17: 5 | H17: 1006 | I17: 1 | J17: 30006 | L17: 1;2;3;4
A18: 14 | B18: 9014 | C18: =CONCATENATE("达到境界：",M18,"-",N18) -> 达到境界：筑基-前期 | D18: - 达到境界：筑基-前期{0}/{1} | G18: 3 | H18: 31 | I18: 1 | L18: 1;2;3;4 | M18: 筑基 | N18: 前期 | O18: 31 | P18: =CONCATENATE(M18,"-",N18) -> 筑基-前期
A19: 15 | B19: 9015 | C19: 击败仙山的阵眼妖兽 | D19: - 击败仙山的阵眼妖兽{0}/{1} | G19: 5 | H19: 1007 | I19: 1 | J19: 30007 | L19: 1;2;3;4
A20: 17 | B20: 9016 | C20: 击杀灵兽获得天肥 | D20: =CONCATENATE("- ",C20,"{0}/{1}") -> - 击杀灵兽获得天肥{0}/{1} | G20: 5 | H20: 1008 | I20: 1 | J20: 30008 | L20: 1;2;3;4
A21: 18 | B21: 9017 | C21: 获得一件袈裟 | D21: - 获得一件袈裟{0}/{1} | G21: 6 | H21: 1301 | I21: 1 | J21: 30009 | L21: 1;2;3;4
A22: 19 | B22: 9018 | C22: 夺回琉璃盏 | D22: - 夺回琉璃盏{0}/{1} | G22: 6 | H22: 1001 | I22: 1 | J22: 30010 | L22: 1;2;3;4
A23: 20 | B23: 9019 | C23: 给予渡劫丹 | D23: - 给予渡劫丹{0}/{1} | G23: 1 | H23: 1001 | I23: 1 | L23: 1;2;3;4
A24: 21 | B24: 9020 | C24: =CONCATENATE("达到境界：",M24,"-",N24) -> 达到境界：筑基-中期 | D24: - 达到境界：筑基-中期{0}/{1} | G24: 3 | H24: 41 | I24: 1 | L24: 1;2;3;4 | M24: 筑基 | N24: 中期 | O24: 41 | P24: =CONCATENATE(M24,"-",N24) -> 筑基-中期
A25: 22 | B25: 9021 | C25: =CONCATENATE("达到境界：",M25,"-",N25) -> 达到境界：筑基-后期 | D25: =CONCATENATE("- ",C25,"{0}/{1}") -> - 达到境界：筑基-后期{0}/{1} | G25: 3 | H25: 51 | I25: 1 | L25: 1;2;3;4 | M25: 筑基 | N25: 后期 | O25: 51 | P25: =CONCATENATE(M25,"-",N25) -> 筑基-后期
A26: 23 | B26: 9022 | C26: 达到境界：结丹-前期 | D26: =CONCATENATE("- ",C26,"{0}/{1}") -> - 达到境界：结丹-前期{0}/{1} | G26: 3 | H26: 61 | I26: 1 | L26: 1;2;3;4 | M26: 结丹 | N26: 前期 | O26: 61 | P26: 结丹-前期
A27: 24 | B27: 9023 | C27: 达到境界：结丹-中期 | D27: - 达到境界：结丹-中期{0}/{1} | G27: 3 | H27: 71 | I27: 1 | L27: 1;2;3;4 | M27: 结丹 | N27: 中期 | O27: 71 | P27: 结丹-中期
A28: 25 | B28: 9024 | C28: 达到境界：结丹-后期 | D28: - 达到境界：结丹-后期{0}/{1} | G28: 3 | H28: 81 | I28: 1 | L28: 1;2;3;4 | M28: 结丹 | N28: 后期 | O28: 81 | P28: 结丹-后期
A29: 26 | B29: 9025 | C29: 达到境界：元婴-前期 | D29: =CONCATENATE("- ",C29,"{0}/{1}") -> - 达到境界：元婴-前期{0}/{1} | G29: 3 | H29: 91 | I29: 1 | L29: 1;2;3;4 | M29: 元婴 | N29: 前期 | O29: 91 | P29: 元婴-前期
A30: 27 | B30: 9026 | C30: 收集并饮用甘露 | D30: =CONCATENATE("- ",C30,"{0}/{1}") -> - 收集并饮用甘露{0}/{1} | G30: 6 | H30: 20004 | I30: 3 | L30: 1;2;3;4
A31: 28 | B31: 9027 | C31: 击败心魔 | D31: =CONCATENATE("- ",C31,"{0}/{1}") -> - 击败心魔{0}/{1} | G31: 5 | H31: 1013 | I31: 1 | L31: 1;2;3;4
A32: 29 | B32: 9028 | C32: 击败北海妖兽 | D32: =CONCATENATE("- ",C32,"{0}/{1}") -> - 击败北海妖兽{0}/{1} | G32: 5 | H32: 1014 | I32: 5 | L32: 1;2;3;4
A33: 30 | B33: 9029 | C33: =CONCATENATE("达到境界：",M33,"-",N33) -> 达到境界：元婴-中期 | D33: - 达到境界：元婴-中期{0}/{1} | G33: 3 | H33: 101 | I33: 1 | L33: 1;2;3;4 | M33: 元婴 | N33: 中期 | O33: 101 | P33: =CONCATENATE(M33,"-",N33) -> 元婴-中期
A34: 31 | B34: 9030 | C34: =CONCATENATE("达到境界：",M34,"-",N34) -> 达到境界：元婴-后期 | D34: - 达到境界：元婴-后期{0}/{1} | G34: 3 | H34: 111 | I34: 1 | L34: 1;2;3;4 | M34: 元婴 | N34: 后期 | O34: 111 | P34: =CONCATENATE(M34,"-",N34) -> 元婴-后期
A35: 32 | B35: 9031 | C35: 达到境界：化神-前期 | D35: - 达到境界：化神-前期{0}/{1} | G35: 3 | H35: 121 | I35: 1 | L35: 1;2;3;4 | M35: 化神 | N35: 前期 | O35: 121 | P35: 化神-前期
A36: 33 | B36: 9032 | C36: 达到境界：化神-中期 | D36: =CONCATENATE("- ",C36,"{0}/{1}") -> - 达到境界：化神-中期{0}/{1} | G36: 3 | H36: 131 | I36: 1 | L36: 1;2;3;4 | M36: 化神 | N36: 中期 | O36: 131 | P36: 化神-中期
A37: 34 | B37: 9033 | C37: 达到境界：化神-后期 | D37: - 达到境界：化神-后期{0}/{1} | G37: 3 | H37: 141 | I37: 1 | L37: 1;2;3;4 | M37: 化神 | N37: 后期 | O37: 141 | P37: 化神-后期
A38: 35 | B38: 9034 | C38: 达到境界：炼虚-前期 | D38: - 达到境界：炼虚-前期{0}/{1} | G38: 3 | H38: 151 | I38: 1 | L38: 1;2;3;4 | M38: 炼虚 | N38: 前期 | O38: 151 | P38: 炼虚-前期
A39: 36 | B39: 9035 | C39: 击杀北海妖兽精英 | D39: - 击杀北海妖兽精英{0}/{1} | G39: 5 | H39: 1003 | I39: 1 | L39: 1;2;3;4
A40: 37 | B40: 9036 | C40: 帮雀灵儿搜集风铃 | D40: - 帮雀灵儿搜集风铃{0}/{1} | G40: 1 | H40: 20005 | I40: 3 | L40: 1;2;3;4
A41: =A40+1 -> 38 | B41: =B40+1 -> 9037 | C41: 击败风妖 | D41: =CONCATENATE("- ",C41,"{0}/{1}") -> - 击败风妖{0}/{1} | G41: 5 | H41: 3003 | I41: 3 | J41: 30014 | L41: 1;2;3;4
A42: 39 | B42: 9038 | C42: 收集风灵碎片 | D42: =CONCATENATE("- ",C42,"{0}/{1}") -> - 收集风灵碎片{0}/{1} | G42: 1 | H42: 20006 | I42: 3 | J42: 30015 | L42: 1;2;3;4
A43: 40 | B43: 9039 | C43: 完成神识探索-云隐秘闻 | D43: =CONCATENATE("- ",C43,"{0}/{1}") -> - 完成神识探索-云隐秘闻{0}/{1} | G43: 10 | H43: 30016 | I43: 1 | J43: 30016 | L43: 1;2;3;4
A44: 41 | B44: 9040 | C44: 完成神识探索-误食灵石的妖兽 | D44: =CONCATENATE("- ",C44,"{0}/{1}") -> - 完成神识探索-误食灵石的妖兽{0}/{1} | G44: 10 | H44: 30017 | I44: 3 | J44: 30017 | L44: 1;2;3;4
A45: 42 | B45: 9041 | C45: 完成神识探索-云隐宗长老密信 | D45: =CONCATENATE("- ",C45,"{0}/{1}") -> - 完成神识探索-云隐宗长老密信{0}/{1} | G45: 10 | H45: 30018 | I45: 1 | J45: 30018 | L45: 1;2;3;4
A46: 43 | B46: 9042 | C46: 完成神识探索-抢走玉佩的山林小妖 | D46: =CONCATENATE("- ",C46,"{0}/{1}") -> - 完成神识探索-抢走玉佩的山林小妖{0}/{1} | G46: 10 | H46: 30019 | I46: 2 | J46: 30019 | L46: 1;2;3;4
A47: 44 | B47: 9043 | C47: 完成神识探索-山野采草 | D47: =CONCATENATE("- ",C47,"{0}/{1}") -> - 完成神识探索-山野采草{0}/{1} | G47: 10 | H47: 30020 | I47: 3 | J47: 30020 | L47: 1;2;3;4
A48: 45 | B48: 9044 | C48: 完成神识探索-秘境种子 | D48: =CONCATENATE("- ",C48,"{0}/{1}") -> - 完成神识探索-秘境种子{0}/{1} | G48: 10 | H48: 30021 | I48: 2 | J48: 30021 | L48: 1;2;3;4
A49: 46 | B49: 9045 | C49: 完成神识探索-甜蜜果实 | D49: =CONCATENATE("- ",C49,"{0}/{1}") -> - 完成神识探索-甜蜜果实{0}/{1} | G49: 10 | H49: 30022 | I49: 3 | J49: 30022 | L49: 1;2;3;4
A50: 47 | B50: 9046 | C50: 完成神识探索-消灭妖邪 | D50: =CONCATENATE("- ",C50,"{0}/{1}") -> - 完成神识探索-消灭妖邪{0}/{1} | G50: 10 | H50: 30023 | I50: 5 | J50: 9141 | L50: 1;2;3;4
A51: 48 | B51: 9047 | C51: 完成神识探索-消灭仙山山径西边的妖物 | D51: =CONCATENATE("- ",C51,"{0}/{1}") -> - 完成神识探索-消灭仙山山径西边的妖物{0}/{1} | G51: 10 | H51: 30024 | I51: 5 | J51: 9143 | L51: 1;2;3;4

Sheet 条件类型查询
A1: ID | B1: 条件判断类型 | C1: 条件判断值 | D1: 条件完成次数or数量 | E1: 额外文本 | F1: 不可用 | G1: 是否可用于事件 | K1: 事件类型：
A2: 1 | B2: 拥有特定道具 | C2: 道具ID | D2: 数量≥ | E2: 检测背包道具 | G2: 1 | J2: 1 | K2: 1.通用事件
A3: 2 | B3: 灵根判定 | C3: 哪个灵根 | D3: 灵根值≥ | F3: 1 | J3: 2 | K3: 2.挂机事件
A4: 3 | B4: 境界判断 | C4: 境界id | G4: 1 | J4: 4 | K4: 4.主线任务
A5: 5 | B5: 战斗胜利 | C5: 战斗组ID | D5: 胜利次数≥ | J5: 5 | K5: 5.仙山探险
A6: 6 | B6: 获得道具 | C6: 道具的ID | D6: 数量≥ | E6: 探测出事件才开始检测 | J6: 6 | K6: 6.支线事件
A7: 7 | B7: 触发概率 | C7: 概率值 1000=100% | G7: 1 | J7: 88 | K7: 88.特定任务触发的事件
A8: 8 | B8: 使用神识 | D8: 数量≥ | J8: 99 | K8: 99.无标记
A9: 9 | B9: 游戏在线多少时长（秒） | D9: 时间≥（秒） | G9: 1 | J9: 7 | K9: 道友剧情任务
A10: 10 | B10: 前置事件 | C10: 事件ID | G10: 1

Sheet 产出tag查询
A1: 产出TAG | B1: 产出类型
A2: 1 | B2: 金币
A3: 2 | B3: 修为
A4: 3 | B4: 功法灵气
A5: 4 | B5: 法宝灵韵
A6: 5 | B6: 功法碎片
A7: 6 | B7: 法宝碎片
A8: 7 | B8: 修为丹
A9: 8 | B9: 天材地宝
A10: 9 | B10: 渡劫丹
A11: 10 | B11: 好感度礼物
A12: 11 | B12: 心情礼物
A13: 12
A14: 13
A15: 14
A16: 15
A17: 16
A18: 17
A19: 18
A20: 19
A21: 20
A22: 21
A23: 22

Sheet EventNPC
A1: ID | B1: name | C1: icon | D1: DaoyouID
A2: int | B2: int | C2: string | D2: int
A4: ID | B4: 名字 | C4: 半身像icon | D4: 道友ID | E4: 名称
A5: 1 | B5: 3000 | C5: bg_lh_chidaoren
A6: 2 | B6: 1953 | C6: bg_lh_quelinger | D6: 1 | E6: 雀灵儿
A7: 3 | B7: 1954 | C7: bg_lh_chidaoren | D7: 2 | E7: 云枝
A8: 4 | B8: 1955 | C8: bg_lh_fengyao | D8: 3 | E8: 风瑶
A9: 5 | B9: 1956 | C9: bg_lh_wanxi | D9: 4 | E9: 婉溪
A10: 6 | B10: 1957 | C10: bg_lh_xuyou | D10: 5 | E10: 许由
A11: 7 | B11: 1958 | C11: bg_lh_fengdaoren | D11: 6 | E11: 疯道人
A12: 8 | B12: 1959 | C12: bg_lh_chidaoren | D12: 7 | E12: 道友7
A13: 9 | B13: 1960 | C13: bg_lh_chidaoren | D13: 8 | E13: 道友8
A14: 10 | B14: 1961 | C14: bg_lh_chidaoren | D14: 9 | E14: 道友9
A15: 11 | B15: 1962 | C15: bg_lh_chidaoren | D15: 10 | E15: 道友10
A17: 100 | B17: 3000 | E17: 玩家
A18: 101 | B18: 3001 | C18: bg_lh_chidaoren | E18: 蜩鸟
A19: 102 | B19: 3002 | C19: bg_lh_quelinger | E19: 小麻雀
A20: 103 | B20: 3003 | C20: bg_lh_fengdaoren | E20: 疯道人
A21: 104 | B21: 3004 | C21: bg_lh_chidaoren | E21: 痴道人
A22: 105 | B22: 3005 | C22: bg_lh_yao | E22: 尧帝
A23: 106 | B23: 3006 | C23: bg_lh_xuyou | E23: 许由
A24: 107 | B24: 3007 | C24: bg_lh_chidaoren | E24: 村名甲
A25: 108 | B25: 3008 | C25: bg_lh_chidaoren | E25: 村名乙
A26: 109 | B26: 3009 | C26: bg_lh_chidaoren | E26: 村名丙
A27: 110 | B27: 3010 | C27: bg_lh_emuzhiling | E27: 樗木之灵
A28: 111 | B28: 2078 | C28: bg_lh_huizi | E28: 惠子
A29: 112 | B29: 3021 | C29: bg_lh_chidaoren | E29: 风无咎
A30: 113 | B30: 3034 | C30: bg_lh_chidaoren | E30: 北海剑妖
A31: 114 | B31: 3067 | C31: bg_lh_chidaoren | E31: 拦路妖兽
A32: 115 | B32: 2091 | C32: bg_lh_chidaoren | E32: 小麻雀幻影
A33: 116 | B33: 2092 | C33: bg_lh_chidaoren | E33: 痴道人幻影
A34: 117 | B34: 2093 | C34: bg_lh_chidaoren | E34: 樗木之灵幻影
A35: 118 | B35: 2094 | C35: bg_lh_gushexianzi | E35: 神人
A36: 119 | B36: 2095 | C36: bg_lh_chidaoren | E36: 鲲鹏
A37: 120 | B37: 2096 | C37: bg_lh_chidaoren | E37: 妖兽
A38: 121 | B38: 2097 | C38: bg_lh_zhiyao | E38: 云枝
A39: 122 | B39: 2098 | C39: bg_lh_fengyao | E39: 风瑶
A40: 123 | B40: 2099 | C40: bg_lh_chidaoren | E40: 散修甲
A41: 124 | B41: 2100 | C41: bg_lh_chidaoren | E41: 散修乙
A42: 125 | B42: 2101 | C42: bg_lh_chidaoren | E42: 散修丙
A43: 126 | E43: 老张
A44: 127 | E44: 老李
A45: 128 | E45: 敌人
A46: 129 | E46: 灵姬
A47: 130 | E47: 冤魂
A48: 131 | E48: 馨儿
A49: 132 | E49: 信使
A50: 133 | E50: 血海宗弟子A
A51: 134 | E51: 柳轻烟
A52: 135 | E52: 血海宗弟子B
A53: 136 | E53: 血海宗敌人
A54: 137 | E54: 冲虚真人
A55: 138 | E55: 散修
A56: 139 | E56: 蒙面散修精英
A57: 140 | E57: 楚云缪
A58: =A57+1 -> 141 | E58: 青狼散人
A59: =A58+1 -> 142 | E59: 林风
A60: =A59+1 -> 143 | E60: 柳清清
A61: =A60+1 -> 144 | E61: 玄水真人
A62: =A61+1 -> 145 | E62: 云霄龙鹰

Sheet XianTuLogConfig
A1: ID | B1: EventType | C1: Title | D1: Desc | E1: BigMapID
A2: int | B2: int | C2: int | D2: int | E2: int
A4: ID | B4: 1主线 2事件 | C4: 名称 | D4: 描述 | E4: 属于哪个章节
A5: 1 | B5: 1 | C5: 2087 | D5: 2089 | E5: 1 | F5: 第一章.逍遥游 | G5: 多次渡劫失败的你，误入“无何有之乡”，在这里受到了列子的指引，踏上了寻找七道心境的修仙之路。
A6: 2 | B6: 2 | C6: 2088 | D6: 2090 | E6: 1 | F6: 无用的大葫芦 | G6: 惠子种出了巨大葫芦，他觉得毫无用处，非常生气！
A7: 3 | B7: 2 | C7: 2088 | D7: 2090 | E7: 2 | F7: 无用的大葫芦 | G7: 惠子种出了巨大葫芦，他觉得毫无用处，非常生气！
A8: 4 | B8: 2 | C8: 2088 | D8: 2090 | E8: 3 | F8: 无用的大葫芦 | G8: 惠子种出了巨大葫芦，他觉得毫无用处，非常生气！
